Workbook

Sheet Controles de Ley
C4: CONTROLES DE LEY
C7: Patrimonio Adecuado y Patrimonio Técnico - Seguros Generales
C9: Patrimonio Adecuado y Patrimonio Técnico - Seguros de Vida
C11: Riesgo de Suscripción - Seguros Generales
C13: Riesgo de Suscripción - Seguros de Vida
C15: Riesgo de Activos - Seguros Generales
C17: Riesgo de Activos - Seguros de Vida
C19: Capitales Mínimos - Seguros Generales
C21: Capitales Mínimos - Seguros de Vida

Sheet ListaD (hidden)
A1: 2025-04-30 | B1: Fecha
A2: 2025-05-31 | B2: 2016-12-31
A3: 2025-06-30 | B3: 2017-01-31
B4: 2017-02-28
B5: 2017-03-31
B6: 2017-04-30
B7: 2017-05-31
B8: 2017-06-30
B9: 2017-07-31
B10: 2017-08-31
B11: 2017-09-30
B12: 2017-10-31
B13: 2017-11-30
B14: 2017-12-31
B15: 2018-01-31
B16: 2018-02-28
B17: 2018-03-31
B18: 2018-04-30
B19: 2018-05-31
B20: 2018-06-30
B21: 2018-07-31
B22: 2018-08-31
B23: 2018-09-30
B24: 2018-10-31
B25: 2018-11-30
B26: 2018-12-31
B27: 2019-01-31
B28: 2019-02-28
B29: 2019-03-31
B30: 2019-04-30
B31: 2019-05-31
B32: 2019-06-30
B33: 2019-07-31
B34: 2019-08-31
B35: 2019-09-30
B36: 2019-10-31
B37: 2019-11-30
B38: 2019-12-31
B39: 2020-01-31
B40: 2020-02-29
B41: 2020-03-31
B42: 2020-04-30
B43: 2020-05-31
B44: 2020-06-30
B45: 2020-07-31
B46: 2020-08-31
B47: 2020-09-30
B48: 2020-10-31
B49: 2020-11-30
B50: 2020-12-31
B51: 2021-01-31
B52: 2021-02-28
B53: 2021-03-31
B54: 2021-04-30
B55: 2021-05-31
B56: 2021-06-30
B57: 2021-07-31
B58: 2021-08-31
B59: 2021-09-30
B60: 2021-10-31
B61: 2021-11-30
B62: 2021-12-31
B63: 2022-01-31
B64: 2022-02-28
B65: 2022-03-31
B66: 2022-04-30
B67: 2022-05-31
B68: 2022-06-30
B69: 2022-07-31
B70: 2022-08-31
B71: 2022-09-30
B72: 2022-10-31
B73: 2022-11-30
B74: 2022-12-31
B75: 2023-01-31
B76: 2023-02-28
B77: 2023-03-31
B78: 2023-04-30
B79: 2023-05-31
B80: 2023-06-30
B81: 2023-07-31
B82: 2023-08-31
B83: 2023-09-30
B84: 2023-10-31
B85: 2023-11-30
B86: 2023-12-31
B87: 2024-01-31
B88: 2024-02-29
B89: 2024-03-31
B90: 2024-04-30
B91: 2024-05-31
B92: 2024-06-30
B93: 2024-07-31
B94: 2024-08-31
B95: 2024-09-30
B96: 2024-10-31
B97: 2024-11-30
B98: 2024-12-31
B99: 2025-01-31
B100: 2025-02-28
B101: 2025-03-31
B102: 2025-04-30
B103: 2025-05-31
B104: 2025-06-30
B105: 2025-07-31
B106: 2025-08-31
B107: 2025-09-30
B108: 2025-10-31
B109: 2025-11-30
B110: 2025-12-31
B111: 2026-01-31
B112: 2026-02-28
B113: 2026-03-31
B114: 2026-04-30
B115: 2026-05-31
B116: 2026-06-30
B117: 2026-07-31
B118: 2026-08-31
B119: 2026-09-30
B120: 2026-10-31
B121: 2026-11-30
B122: 2026-12-31
B123: 2027-01-31
B124: 2027-02-28
B125: 2027-03-31
B126: 2027-04-30
B127: 2027-05-31
B128: 2027-06-30
B129: 2027-07-31
B130: 2027-08-31
B131: 2027-09-30
B132: 2027-10-31
B133: 2027-11-30
B134: 2027-12-31
B135: 2028-01-31
B136: 2028-02-29
B137: 2028-03-31
B138: 2028-04-30
B139: 2028-05-31
B140: 2028-06-30
B141: 2028-07-31
B142: 2028-08-31
B143: 2028-09-30
B144: 2028-10-31
B145: 2028-11-30
B146: 2028-12-31
B147: 2029-01-31
B148: 2029-02-28
B149: 2029-03-31
B150: 2029-04-30
B151: 2029-05-31
B152: 2029-06-30
B153: 2029-07-31
B154: 2029-08-31
B155: 2029-09-30
B156: 2029-10-31
B157: 2029-11-30
B158: 2029-12-31
B159: 2030-01-31
B160: 2030-02-28
B161: 2030-03-31
B162: 2030-04-30
B163: 2030-05-31
B164: 2030-06-30
B165: 2030-07-31
B166: 2030-08-31
B167: 2030-09-30
B168: 2030-10-31
B169: 2030-11-30
B170: 2030-12-31
B171: 2031-01-31
B172: 2031-02-28
B173: 2031-03-31
B174: 2031-04-30
B175: 2031-05-31
B176: 2031-06-30
B177: 2031-07-31
B178: 2031-08-31
B179: 2031-09-30
B180: 2031-10-31
B181: 2031-11-30
B182: 2031-12-31
B183: 2032-01-31
B184: 2032-02-29
B185: 2032-03-31
B186: 2032-04-30
B187: 2032-05-31
B188: 2032-06-30
B189: 2032-07-31
B190: 2032-08-31
B191: 2032-09-30
B192: 2032-10-31
B193: 2032-11-30
B194: 2032-12-31
B195: 2033-01-31
B196: 2033-02-28
B197: 2033-03-31
B198: 2033-04-30
B199: 2033-05-31
B200: 2033-06-30
... 777 more rows

Sheet BasePA_GEN (hidden)
D1: Riesgo de Suscripción | E1: Riesgo de Activo | F1: Riesgo de Mercado | G1: TOTAL PATRIMONIO ADECUADO | H1: Patrimonio Básico Ordinario antes de deducciones | I1: Deducciones del Patrimonio Básico Ordinario | J1: Patrimonio Básico Ordinario | K1: Patrimonio Adicional (computable) | L1: PATRIMONIO TÉCNICO | M1: EXCESO (DEFECTO)
A2: =+B2&C2 -> ALFA45777 | B2: ALFA | C2: 2025-04-30 | D2: 34,212 | E2: 5,444 | F2: 776 | G2: 40,432 | H2: 144,820.38 | I2: 44,937.28 | J2: 99,883 | K2: 0 | L2: 99,883 | M2: 59,452
A3: =+B3&C3 -> ALFA45808 | B3: ALFA | C3: 2025-05-31 | D3: 34,443 | E3: 5,843 | F3: 1,735 | G3: 42,022 | H3: 148,124.95 | I3: 47,006.76 | J3: 101,118 | K3: 0 | L3: 101,118 | M3: 59,097
A4: ALFA45838 | B4: ALFA | C4: 2025-06-30 | D4: 32,583 | E4: 5,977 | F4: 1,504 | G4: 40,064 | H4: 147,950.78 | I4: 45,997.50 | J4: 101,953 | K4: 0 | L4: 101,953 | M4: 61,889
A5: ALLIANZ45777 | B5: ALLIANZ | C5: 2025-04-30 | D5: 184,408 | E5: 7,426 | F5: 1,789 | G5: 193,623 | H5: 364,248.25 | I5: 20,714.78 | J5: 343,533 | K5: 5,496 | L5: 349,030 | M5: 155,406
A6: ALLIANZ45808 | B6: ALLIANZ | C6: 2025-05-31 | D6: 182,549 | E6: 7,267 | F6: 2,151 | G6: 191,967 | H6: 375,271.78 | I6: 21,302.02 | J6: 353,970 | K6: 5,496 | L6: 359,466 | M6: 167,499
A7: ALLIANZ45838 | B7: ALLIANZ | C7: 2025-06-30 | D7: 183,751 | E7: 7,498 | F7: 1,887 | G7: 193,137 | H7: 379,277.80 | I7: 22,141.37 | J7: 357,136 | K7: 6,574 | L7: 363,710 | M7: 170,573
A8: AXA COLPATRIA45777 | B8: AXA COLPATRIA | C8: 2025-04-30 | D8: 331,117 | E8: 21,508 | F8: 25,499 | G8: 378,123 | H8: 532,110.41 | I8: 66,528.82 | J8: 465,582 | K8: 56,718 | L8: 522,300 | M8: 144,177
A9: AXA COLPATRIA45808 | B9: AXA COLPATRIA | C9: 2025-05-31 | D9: 320,795 | E9: 22,593 | F9: 22,625 | G9: 366,013 | H9: 544,160.41 | I9: 65,591.92 | J9: 478,568 | K9: 54,902 | L9: 533,470 | M9: 167,458
A10: AXA COLPATRIA45838 | B10: AXA COLPATRIA | C10: 2025-06-30 | D10: 320,785 | E10: 21,655 | F10: 21,830 | G10: 364,271 | H10: 547,326.09 | I10: 67,754.12 | J10: 479,572 | K10: 54,641 | L10: 534,213 | M10: 169,942
A11: BBVA SEGUROS45777 | B11: BBVA SEGUROS | C11: 2025-04-30 | D11: 29,016 | E11: 6,918 | F11: 851 | G11: 36,786 | H11: 166,029.55 | I11: 6,439.45 | J11: 159,590 | K11: 2,149 | L11: 161,739 | M11: 124,953
A12: BBVA SEGUROS45808 | B12: BBVA SEGUROS | C12: 2025-05-31 | D12: 29,167 | E12: 7,353 | F12: 1,403 | G12: 37,922 | H12: 166,046.86 | I12: 5,786.40 | J12: 160,260 | K12: 1,562 | L12: 161,822 | M12: 123,900
A13: BBVA SEGUROS45838 | B13: BBVA SEGUROS | C13: 2025-06-30 | D13: 28,507 | E13: 7,481 | F13: 1,566 | G13: 37,554 | H13: 169,513.95 | I13: 5,769.53 | J13: 163,744 | K13: 1,604 | L13: 165,349 | M13: 127,795
A14: BERKLEY45777 | B14: BERKLEY | C14: 2025-04-30 | D14: 13,978 | E14: 409 | F14: 3,567 | G14: 17,954 | H14: 41,315.51 | I14: 2,321.72 | J14: 38,994 | K14: 2,322 | L14: 41,316 | M14: 23,361
A15: BERKLEY45808 | B15: BERKLEY | C15: 2025-05-31 | D15: 14,169 | E15: 1,000 | F15: 4,185 | G15: 19,354 | H15: 41,941.11 | I15: 2,321.72 | J15: 39,619 | K15: 2,322 | L15: 41,941 | M15: 22,587
A16: BERKLEY45838 | B16: BERKLEY | C16: 2025-06-30 | D16: 14,351 | E16: 1,053 | F16: 4,524 | G16: 19,927 | H16: 41,753.17 | I16: 2,739.37 | J16: 39,014 | K16: 2,739 | L16: 41,753 | M16: 21,826
A17: BOLIVAR45777 | B17: BOLIVAR | C17: 2025-04-30 | D17: 229,623 | E17: 17,056 | F17: 54,764 | G17: 301,443 | H17: 1,623,182.48 | I17: 1,074,756.60 | J17: 548,426 | K17: 9,477 | L17: 557,903 | M17: 256,460
A18: BOLIVAR45808 | B18: BOLIVAR | C18: 2025-05-31 | D18: 231,260 | E18: 25,080 | F18: 54,226 | G18: 310,566 | H18: 1,626,742.53 | I18: 1,067,768.38 | J18: 558,974 | K18: 0 | L18: 558,974 | M18: 248,408
A19: BOLIVAR45838 | B19: BOLIVAR | C19: 2025-06-30 | D19: 229,081 | E19: 22,259 | F19: 50,526 | G19: 301,865 | H19: 1,644,820.20 | I19: 1,074,075.07 | J19: 570,745 | K19: 4,391 | L19: 575,136 | M19: 273,270
A20: CARDIF45777 | B20: CARDIF | C20: 2025-04-30 | D20: 225,444 | E20: 9,324 | F20: 8,586 | G20: 243,354 | H20: 586,172.60 | I20: 51,939.79 | J20: 534,233 | K20: 28,405 | L20: 562,638 | M20: 319,284
A21: CARDIF45808 | B21: CARDIF | C21: 2025-05-31 | D21: 225,658 | E21: 9,351 | F21: 8,145 | G21: 243,154 | H21: 466,366.39 | I21: 49,001.73 | J21: 417,365 | K21: 25,886 | L21: 443,251 | M21: 200,097
A22: CARDIF45838 | B22: CARDIF | C22: 2025-06-30 | D22: 224,954 | E22: 9,337 | F22: 8,411 | G22: 242,702 | H22: 475,284.55 | I22: 46,799.74 | J22: 428,485 | K22: 24,067 | L22: 452,552 | M22: 209,850
A23: CHUBB45777 | B23: CHUBB | C23: 2025-04-30 | D23: 81,130 | E23: 13,609 | F23: 58,263 | G23: 153,002 | H23: 321,578.92 | I23: 23,408.60 | J23: 298,170 | K23: 17,356 | L23: 315,527 | M23: 162,525
A24: CHUBB45808 | B24: CHUBB | C24: 2025-05-31 | D24: 78,883 | E24: 16,922 | F24: 57,561 | G24: 153,365 | H24: 321,585.52 | I24: 27,698.68 | J24: 293,887 | K24: 21,646 | L24: 315,533 | M24: 162,168
A25: CHUBB45838 | B25: CHUBB | C25: 2025-06-30 | D25: 76,915 | E25: 15,700 | F25: 56,500 | G25: 149,116 | H25: 320,645.70 | I25: 32,244.63 | J25: 288,401 | K25: 22,367 | L25: 310,768 | M25: 161,653
A26: COFACE45777 | B26: COFACE | C26: 2025-04-30 | D26: 2,541 | E26: 592 | F26: 310 | G26: 3,443 | H26: 24,214.15 | I26: 2,501.43 | J26: 21,713 | K26: 516 | L26: 22,229 | M26: 18,786
A27: COFACE45808 | B27: COFACE | C27: 2025-05-31 | D27: 2,540 | E27: 396 | F27: 302 | G27: 3,238 | H27: 24,300.76 | I27: 2,602.47 | J27: 21,698 | K27: 486 | L27: 22,184 | M27: 18,946
A28: COFACE45838 | B28: COFACE | C28: 2025-06-30 | D28: 2,540 | E28: 373 | F28: 314 | G28: 3,226 | H28: 27,064.30 | I28: 2,596.62 | J28: 24,468 | K28: 484 | L28: 24,952 | M28: 21,726
A29: COLMENA45777 | B29: COLMENA | C29: 2025-04-30 | D29: 7,803 | E29: 3,562 | F29: 1,170 | G29: 12,536 | H29: 97,190.39 | I29: 720.62 | J29: 96,470 | K29: 721 | L29: 97,190 | M29: 84,655
A30: COLMENA45808 | B30: COLMENA | C30: 2025-05-31 | D30: 8,063 | E30: 2,770 | F30: 1,159 | G30: 11,991 | H30: 97,839.70 | I30: 720.62 | J30: 97,119 | K30: 721 | L30: 97,840 | M30: 85,849
A31: COLMENA45838 | B31: COLMENA | C31: 2025-06-30 | D31: 8,142 | E31: 2,700 | F31: 1,146 | G31: 11,988 | H31: 97,861.47 | I31: 706.86 | J31: 97,155 | K31: 707 | L31: 97,861 | M31: 85,873
A32: CONFIANZA45777 | B32: CONFIANZA | C32: 2025-04-30 | D32: 20,304 | E32: 9,743 | F32: 7,714 | G32: 37,762 | H32: 144,087.19 | I32: 17,908.59 | J32: 126,179 | K32: 4,032 | L32: 130,211 | M32: 92,448
A33: CONFIANZA45808 | B33: CONFIANZA | C33: 2025-05-31 | D33: 20,353 | E33: 10,255 | F33: 8,297 | G33: 38,904 | H33: 146,103.97 | I33: 17,883.92 | J33: 128,220 | K33: 3,821 | L33: 132,041 | M33: 93,137
A34: CONFIANZA45838 | B34: CONFIANZA | C34: 2025-06-30 | D34: 20,627 | E34: 11,056 | F34: 7,670 | G34: 39,352 | H34: 145,600.44 | I34: 17,993.02 | J34: 127,607 | K34: 4,451 | L34: 132,059 | M34: 92,706
A35: EQUIDAD45777 | B35: EQUIDAD | C35: 2025-04-30 | D35: 55,609 | E35: 7,918 | F35: 734 | G35: 64,261 | H35: 112,005.58 | I35: 31,649.04 | J35: 80,357 | K35: 0 | L35: 80,357 | M35: 16,095
A36: EQUIDAD45808 | B36: EQUIDAD | C36: 2025-05-31 | D36: 54,806 | E36: 7,131 | F36: 675 | G36: 62,611 | H36: 113,368.02 | I36: 31,376.73 | J36: 81,991 | K36: 0 | L36: 81,991 | M36: 19,380
A37: EQUIDAD45838 | B37: EQUIDAD | C37: 2025-06-30 | D37: 53,995 | E37: 7,234 | F37: 1,013 | G37: 62,243 | H37: 112,458.20 | I37: 31,437.14 | J37: 81,021 | K37: 0 | L37: 81,021 | M37: 18,778
A38: ESTADO45777 | B38: ESTADO | C38: 2025-04-30 | D38: 179,681 | E38: 39,765 | F38: 28,670 | G38: 248,116 | H38: 385,779.59 | I38: 31,678.53 | J38: 354,101 | K38: 23,375 | L38: 377,476 | M38: 129,360
A39: ESTADO45808 | B39: ESTADO | C39: 2025-05-31 | D39: 178,595 | E39: 40,041 | F39: 29,653 | G39: 248,289 | H39: 403,676.58 | I39: 31,827.41 | J39: 371,849 | K39: 23,902 | L39: 395,751 | M39: 147,462
A40: ESTADO45838 | B40: ESTADO | C40: 2025-06-30 | D40: 179,328 | E40: 39,169 | F40: 25,772 | G40: 244,269 | H40: 398,930.61 | I40: 34,437.57 | J40: 364,493 | K40: 26,890 | L40: 391,383 | M40: 147,114
A41: EVEREST45777 | B41: EVEREST | C41: 2025-04-30 | D41: 844 | E41: 249 | F41: 339 | G41: 1,433 | H41: 38,672.26 | I41: 7,230.97 | J41: 31,441 | K41: 215 | L41: 31,656 | M41: 30,224
A42: EVEREST45808 | B42: EVEREST | C42: 2025-05-31 | D42: 1,198 | E42: 344 | F42: 332 | G42: 1,874 | H42: 38,403.75 | I42: 7,407.24 | J42: 30,997 | K42: 281 | L42: 31,278 | M42: 29,404
A43: EVEREST45838 | B43: EVEREST | C43: 2025-06-30 | D43: 1,481 | E43: 668 | F43: 332 | G43: 2,481 | H43: 102,550.00 | I43: 8,639.21 | J43: 93,911 | K43: 372 | L43: 94,283 | M43: 91,802
A44: JMALUCELLI TRAVELERS45777 | B44: JMALUCELLI TRAVELERS | C44: 2025-04-30 | D44: 3,612 | E44: 343 | F44: 575 | G44: 4,529 | H44: 45,059.26 | I44: 2,288.77 | J44: 42,770 | K44: 156 | L44: 42,926 | M44: 38,397
A45: JMALUCELLI TRAVELERS45808 | B45: JMALUCELLI TRAVELERS | C45: 2025-05-31 | D45: 3,456 | E45: 445 | F45: 559 | G45: 4,459 | H45: 45,059.26 | I45: 1,995.44 | J45: 43,064 | K45: 156 | L45: 43,220 | M45: 38,760
A46: JMALUCELLI TRAVELERS45838 | B46: JMALUCELLI TRAVELERS | C46: 2025-06-30 | D46: 3,636 | E46: 1,280 | F46: 510 | G46: 5,426 | H46: 45,059.26 | I46: 2,215.71 | J46: 42,844 | K46: 195 | L46: 43,038 | M46: 37,612
A47: HDI SEGUROS45777 | B47: HDI SEGUROS | C47: 2025-04-30 | D47: 204,502 | E47: 13,888 | F47: 13,514 | G47: 231,904 | H47: 541,804.03 | I47: 96,984.40 | J47: 444,820 | K47: 34,786 | L47: 479,605 | M47: 247,701
A48: HDI SEGUROS45808 | B48: HDI SEGUROS | C48: 2025-05-31 | D48: 204,071 | E48: 12,391 | F48: 13,716 | G48: 230,177 | H48: 554,462.66 | I48: 96,422.30 | J48: 458,040 | K48: 34,527 | L48: 492,567 | M48: 262,390
A49: HDI SEGUROS45838 | B49: HDI SEGUROS | C49: 2025-06-30 | D49: 206,355 | E49: 14,330 | F49: 13,249 | G49: 233,934 | H49: 566,070.54 | I49: 95,516.50 | J49: 470,554 | K49: 35,090 | L49: 505,644 | M49: 271,710
A50: MAPFRE45777 | B50: MAPFRE | C50: 2025-04-30 | D50: 166,315 | E50: 20,773 | F50: 42,355 | G50: 229,443 | H50: 512,385.60 | I50: 141,028.96 | J50: 371,357 | K50: 34,416 | L50: 405,773 | M50: 176,330
A51: MAPFRE45808 | B51: MAPFRE | C51: 2025-05-31 | D51: 203,855 | E51: 21,702 | F51: 40,325 | G51: 265,882 | H51: 522,275.00 | I51: 139,575.50 | J51: 382,699 | K51: 39,882 | L51: 422,582 | M51: 156,700
A52: MAPFRE45838 | B52: MAPFRE | C52: 2025-06-30 | D52: 199,742 | E52: 19,058 | F52: 40,575 | G52: 259,374 | H52: 532,189.62 | I52: 133,199.30 | J52: 398,990 | K52: 38,906 | L52: 437,896 | M52: 178,522
A53: MUNDIAL45777 | B53: MUNDIAL | C53: 2025-04-30 | D53: 160,068 | E53: 12,521 | F53: 3,812 | G53: 176,401 | H53: 253,090.21 | I53: 23,308.42 | J53: 229,782 | K53: 468 | L53: 230,250 | M53: 53,849
A54: MUNDIAL45808 | B54: MUNDIAL | C54: 2025-05-31 | D54: 160,647 | E54: 12,989 | F54: 4,551 | G54: 178,187 | H54: 258,763.51 | I54: 22,443.55 | J54: 236,320 | K54: 468 | L54: 236,788 | M54: 58,601
A55: MUNDIAL45838 | B55: MUNDIAL | C55: 2025-06-30 | D55: 162,877 | E55: 13,300 | F55: 4,302 | G55: 180,478 | H55: 240,191.88 | I55: 21,566.94 | J55: 218,625 | K55: 468 | L55: 219,093 | M55: 38,615
A56: NACIONAL45777 | B56: NACIONAL | C56: 2025-04-30 | D56: 14,430 | E56: 4,853 | F56: 1,290 | G56: 20,573 | H56: 100,370.18 | I56: 1,901.49 | J56: 98,469 | K56: 0 | L56: 98,469 | M56: 77,895
A57: NACIONAL45808 | B57: NACIONAL | C57: 2025-05-31 | D57: 14,409 | E57: 4,892 | F57: 1,524 | G57: 20,825 | H57: 101,873.33 | I57: 1,901.49 | J57: 99,972 | K57: 0 | L57: 99,972 | M57: 79,146
A58: NACIONAL45838 | B58: NACIONAL | C58: 2025-06-30 | D58: 14,724 | E58: 5,641 | F58: 1,801 | G58: 22,166 | H58: 103,324.88 | I58: 1,901.49 | J58: 101,423 | K58: 0 | L58: 101,423 | M58: 79,257
A59: =+B59&C59 -> PREVISORA45777 | B59: PREVISORA | C59: 2025-04-30 | D59: 420,298 | E59: 40,898 | F59: 74,523 | G59: 535,719 | H59: 853,933.52 | I59: 168,440.68 | J59: 685,493 | K59: 0 | L59: 685,493 | M59: 149,774
A60: PREVISORA45808 | B60: PREVISORA | C60: 2025-05-31 | D60: 424,070 | E60: 39,980 | F60: 73,152 | G60: 537,203 | H60: 864,671.47 | I60: 168,590.36 | J60: 696,081 | K60: 0 | L60: 696,081 | M60: 158,878
A61: PREVISORA45838 | B61: PREVISORA | C61: 2025-06-30 | D61: 412,888 | E61: 40,462 | F61: 75,182 | G61: 528,532 | H61: 882,602.57 | I61: 170,832.27 | J61: 711,770 | K61: 0 | L61: 711,770 | M61: 183,238
A62: QUALITAS45777 | B62: QUALITAS | C62: 2025-04-30 | D62: 129 | E62: 89 | F62: 64 | G62: 282 | H62: 37,941.43 | I62: 7,123.15 | J62: 30,818 | K62: 0 | L62: 30,818 | M62: 30,536
A63: QUALITAS45808 | B63: QUALITAS | C63: 2025-05-31 | D63: 234 | E63: 89 | F63: 62 | G63: 386 | H63: 37,946.78 | I63: 8,261.88 | J63: 29,685 | K63: 0 | L63: 29,685 | M63: 29,299
A64: QUALITAS45838 | B64: QUALITAS | C64: 2025-06-30 | D64: 360 | E64: 134 | F64: 92 | G64: 586 | H64: 47,916.32 | I64: 9,168.85 | J64: 38,747 | K64: 0 | L64: 38,747 | M64: 38,162
A65: SBS SEGUROS45777 | B65: SBS SEGUROS | C65: 2025-04-30 | D65: 123,086 | E65: 9,176 | F65: 38,890 | G65: 171,152 | H65: 302,369.26 | I65: 38,926.52 | J65: 263,443 | K65: 11,221 | L65: 274,664 | M65: 103,512
A66: SBS SEGUROS45808 | B66: SBS SEGUROS | C66: 2025-05-31 | D66: 125,719 | E66: 10,649 | F66: 39,015 | G66: 175,383 | H66: 309,013.57 | I66: 38,651.25 | J66: 270,362 | K66: 10,726 | L66: 281,089 | M66: 105,706
A67: SBS SEGUROS45838 | B67: SBS SEGUROS | C67: 2025-06-30 | D67: 127,199 | E67: 8,565 | F67: 42,305 | G67: 178,069 | H67: 311,850.43 | I67: 39,168.53 | J67: 272,682 | K67: 10,949 | L67: 283,631 | M67: 105,562
A68: SEGUREXPO45777 | B68: SEGUREXPO | C68: 2025-04-30 | D68: 6,728 | E68: 2,359 | F68: 1,274 | G68: 10,361 | H68: 34,495.45 | I68: 1,365.40 | J68: 33,130 | K68: 0 | L68: 33,130 | M68: 22,769
A69: SEGUREXPO45808 | B69: SEGUREXPO | C69: 2025-05-31 | D69: 6,870 | E69: 2,318 | F69: 1,153 | G69: 10,342 | H69: 33,984.23 | I69: 1,365.40 | J69: 32,619 | K69: 0 | L69: 32,619 | M69: 22,277
A70: SEGUREXPO45838 | B70: SEGUREXPO | C70: 2025-06-30 | D70: 6,912 | E70: 2,428 | F70: 1,173 | G70: 10,514 | H70: 33,386.95 | I70: 1,365.40 | J70: 32,022 | K70: 0 | L70: 32,022 | M70: 21,508
A71: SOLIDARIA45777 | B71: SOLIDARIA | C71: 2025-04-30 | D71: 84,539 | E71: 7,663 | F71: 0 | G71: 92,202 | H71: 369,984.88 | I71: 7,684.48 | J71: 362,300 | K71: 0 | L71: 362,300 | M71: 270,098
A72: SOLIDARIA45808 | B72: SOLIDARIA | C72: 2025-05-31 | D72: 83,493 | E72: 7,481 | F72: 0 | G72: 90,974 | H72: 372,500.43 | I72: 7,684.48 | J72: 364,816 | K72: 0 | L72: 364,816 | M72: 273,842
A73: SOLIDARIA45838 | B73: SOLIDARIA | C73: 2025-06-30 | D73: 83,081 | E73: 7,499 | F73: 0 | G73: 90,581 | H73: 378,126.95 | I73: 7,684.48 | J73: 370,442 | K73: 0 | L73: 370,442 | M73: 279,862
A74: SOLUNION45777 | B74: SOLUNION | C74: 2025-04-30 | D74: 9,725 | E74: 1,218 | F74: 1,665 | G74: 12,608 | H74: 52,247.77 | I74: 559.65 | J74: 51,688 | K74: 267 | L74: 51,956 | M74: 39,347
A75: SOLUNION45808 | B75: SOLUNION | C75: 2025-05-31 | D75: 9,877 | E75: 1,376 | F75: 1,753 | G75: 13,005 | H75: 51,646.50 | I75: 559.65 | J75: 51,087 | K75: 267 | L75: 51,354 | M75: 38,349
A76: SOLUNION45838 | B76: SOLUNION | C76: 2025-06-30 | D76: 10,138 | E76: 1,036 | F76: 1,683 | G76: 12,858 | H76: 52,567.87 | I76: 559.65 | J76: 52,008 | K76: 267 | L76: 52,276 | M76: 39,417
A77: SURAMERICANA45777 | B77: SURAMERICANA | C77: 2025-04-30 | D77: 400,759 | E77: 56,322 | F77: 40,834 | G77: 497,915 | H77: 914,116.44 | I77: 178,608.34 | J77: 735,508 | K77: 0 | L77: 735,508 | M77: 237,593
A78: SURAMERICANA45808 | B78: SURAMERICANA | C78: 2025-05-31 | D78: 397,440 | E78: 51,330 | F78: 40,511 | G78: 489,282 | H78: 931,833.96 | I78: 177,645.39 | J78: 754,189 | K78: 0 | L78: 754,189 | M78: 264,907
A79: SURAMERICANA45838 | B79: SURAMERICANA | C79: 2025-06-30 | D79: 385,892 | E79: 58,204 | F79: 39,352 | G79: 483,449 | H79: 941,241.46 | I79: 176,495.68 | J79: 764,746 | K79: 0 | L79: 764,746 | M79: 281,297
A80: ZURICH45777 | B80: ZURICH | C80: 2025-04-30 | D80: 55,532 | E80: 14,569 | F80: 7,040 | G80: 77,141 | H80: 301,707.79 | I80: 206,460.17 | J80: 95,248 | K80: 11,571 | L80: 106,819 | M80: 29,678
A81: ZURICH45808 | B81: ZURICH | C81: 2025-05-31 | D81: 54,574 | E81: 13,538 | F81: 6,725 | G81: 74,837 | H81: 301,707.79 | I81: 212,444.14 | J81: 89,264 | K81: 11,226 | L81: 100,489 | M81: 25,652
A82: ZURICH45838 | B82: ZURICH | C82: 2025-06-30 | D82: 55,699 | E82: 14,811 | F82: 6,574 | G82: 77,084 | H82: 301,707.79 | I82: 213,802.28 | J82: 87,906 | K82: 11,563 | L82: 99,468 | M82: 22,384

Sheet PA_GEN
B1: COMPAÑÍAS DE SEGUROS GENERALES
B2: PATRIMONIO ADECUADO Y PATRIMONIO TÉCNICO
E3: 2025-06-30
B4: CIFRAS EN MILLONES DE PESOS
A5: COMPAÑÍAS | B5: PATRIMONIO ADECUADO | F5: PATRIMONIO TÉCNICO
B6: Riesgo de suscripción | C6: Riesgo de activo | D6: Riesgo de mercado | E6: Total patrimonio adecuado | F6: PBO antes de deducciones | G6: Deducciones de PBO | H6: Patrimonio Básico Ordinario | I6: Patrimonio Adicional | J6: Patrimonio técnico | K6: Exceso (defecto)
A7: ALFA | B7: =+IFERROR(VLOOKUP($A7&$E$3,BasePA_GEN!$A$2:$K$835,4,0),"N.A.") -> 32,583 | C7: =+IFERROR(VLOOKUP($A7&$E$3,BasePA_GEN!$A$2:$K$835,5,0),"N.A.") -> 5,977 | D7: =+IFERROR(VLOOKUP($A7&$E$3,BasePA_GEN!$A$2:$K$835,6,0),"N.A.") -> 1,504 | E7: =+IFERROR(VLOOKUP($A7&$E$3,BasePA_GEN!$A$2:$K$835,7,0),"N.A.") -> 40,064 | F7: =+IFERROR(VLOOKUP($A7&$E$3,BasePA_GEN!$A$2:$K$835,8,0),"N.A.") -> 147,951 | G7: =+IFERROR(VLOOKUP($A7&$E$3,BasePA_GEN!$A$2:$K$835,9,0),"N.A.") -> 45,998 | H7: =+IFERROR(VLOOKUP($A7&$E$3,BasePA_GEN!$A$2:$K$835,10,0),"N.A.") -> 101,953 | I7: =+IFERROR(VLOOKUP($A7&$E$3,BasePA_GEN!$A$2:$M$835,11,0),"N.A.") -> 0 | J7: =+IFERROR(VLOOKUP($A7&$E$3,BasePA_GEN!$A$2:$M$835,12,0),"N.A.") -> 101,953 | K7: =+IFERROR(VLOOKUP($A7&$E$3,BasePA_GEN!$A$2:$M$835,13,0),"N.A.") -> 61,889
A8: ALLIANZ | B8: =+IFERROR(VLOOKUP($A8&$E$3,BasePA_GEN!$A$2:$K$835,4,0),"N.A.") -> 183,751 | C8: =+IFERROR(VLOOKUP($A8&$E$3,BasePA_GEN!$A$2:$K$835,5,0),"N.A.") -> 7,498 | D8: =+IFERROR(VLOOKUP($A8&$E$3,BasePA_GEN!$A$2:$K$835,6,0),"N.A.") -> 1,887 | E8: =+IFERROR(VLOOKUP($A8&$E$3,BasePA_GEN!$A$2:$K$835,7,0),"N.A.") -> 193,137 | F8: =+IFERROR(VLOOKUP($A8&$E$3,BasePA_GEN!$A$2:$K$835,8,0),"N.A.") -> 379,278 | G8: =+IFERROR(VLOOKUP($A8&$E$3,BasePA_GEN!$A$2:$K$835,9,0),"N.A.") -> 22,141 | H8: =+IFERROR(VLOOKUP($A8&$E$3,BasePA_GEN!$A$2:$K$835,10,0),"N.A.") -> 357,136 | I8: =+IFERROR(VLOOKUP($A8&$E$3,BasePA_GEN!$A$2:$M$835,11,0),"N.A.") -> 6,574 | J8: =+IFERROR(VLOOKUP($A8&$E$3,BasePA_GEN!$A$2:$M$835,12,0),"N.A.") -> 363,710 | K8: =+IFERROR(VLOOKUP($A8&$E$3,BasePA_GEN!$A$2:$M$835,13,0),"N.A.") -> 170,573
A9: AXA COLPATRIA | B9: =+IFERROR(VLOOKUP($A9&$E$3,BasePA_GEN!$A$2:$K$835,4,0),"N.A.") -> 320,785 | C9: =+IFERROR(VLOOKUP($A9&$E$3,BasePA_GEN!$A$2:$K$835,5,0),"N.A.") -> 21,655 | D9: =+IFERROR(VLOOKUP($A9&$E$3,BasePA_GEN!$A$2:$K$835,6,0),"N.A.") -> 21,830 | E9: =+IFERROR(VLOOKUP($A9&$E$3,BasePA_GEN!$A$2:$K$835,7,0),"N.A.") -> 364,271 | F9: =+IFERROR(VLOOKUP($A9&$E$3,BasePA_GEN!$A$2:$K$835,8,0),"N.A.") -> 547,326 | G9: =+IFERROR(VLOOKUP($A9&$E$3,BasePA_GEN!$A$2:$K$835,9,0),"N.A.") -> 67,754 | H9: =+IFERROR(VLOOKUP($A9&$E$3,BasePA_GEN!$A$2:$K$835,10,0),"N.A.") -> 479,572 | I9: =+IFERROR(VLOOKUP($A9&$E$3,BasePA_GEN!$A$2:$M$835,11,0),"N.A.") -> 54,641 | J9: =+IFERROR(VLOOKUP($A9&$E$3,BasePA_GEN!$A$2:$M$835,12,0),"N.A.") -> 534,213 | K9: =+IFERROR(VLOOKUP($A9&$E$3,BasePA_GEN!$A$2:$M$835,13,0),"N.A.") -> 169,942
A10: BBVA SEGUROS | B10: =+IFERROR(VLOOKUP($A10&$E$3,BasePA_GEN!$A$2:$K$835,4,0),"N.A.") -> 28,507 | C10: =+IFERROR(VLOOKUP($A10&$E$3,BasePA_GEN!$A$2:$K$835,5,0),"N.A.") -> 7,481 | D10: =+IFERROR(VLOOKUP($A10&$E$3,BasePA_GEN!$A$2:$K$835,6,0),"N.A.") -> 1,566 | E10: =+IFERROR(VLOOKUP($A10&$E$3,BasePA_GEN!$A$2:$K$835,7,0),"N.A.") -> 37,554 | F10: =+IFERROR(VLOOKUP($A10&$E$3,BasePA_GEN!$A$2:$K$835,8,0),"N.A.") -> 169,514 | G10: =+IFERROR(VLOOKUP($A10&$E$3,BasePA_GEN!$A$2:$K$835,9,0),"N.A.") -> 5,770 | H10: =+IFERROR(VLOOKUP($A10&$E$3,BasePA_GEN!$A$2:$K$835,10,0),"N.A.") -> 163,744 | I10: =+IFERROR(VLOOKUP($A10&$E$3,BasePA_GEN!$A$2:$M$835,11,0),"N.A.") -> 1,604 | J10: =+IFERROR(VLOOKUP($A10&$E$3,BasePA_GEN!$A$2:$M$835,12,0),"N.A.") -> 165,349 | K10: =+IFERROR(VLOOKUP($A10&$E$3,BasePA_GEN!$A$2:$M$835,13,0),"N.A.") -> 127,795
A11: BERKLEY | B11: =+IFERROR(VLOOKUP($A11&$E$3,BasePA_GEN!$A$2:$K$835,4,0),"N.A.") -> 14,351 | C11: =+IFERROR(VLOOKUP($A11&$E$3,BasePA_GEN!$A$2:$K$835,5,0),"N.A.") -> 1,053 | D11: =+IFERROR(VLOOKUP($A11&$E$3,BasePA_GEN!$A$2:$K$835,6,0),"N.A.") -> 4,524 | E11: =+IFERROR(VLOOKUP($A11&$E$3,BasePA_GEN!$A$2:$K$835,7,0),"N.A.") -> 19,927 | F11: =+IFERROR(VLOOKUP($A11&$E$3,BasePA_GEN!$A$2:$K$835,8,0),"N.A.") -> 41,753 | G11: =+IFERROR(VLOOKUP($A11&$E$3,BasePA_GEN!$A$2:$K$835,9,0),"N.A.") -> 2,739 | H11: =+IFERROR(VLOOKUP($A11&$E$3,BasePA_GEN!$A$2:$K$835,10,0),"N.A.") -> 39,014 | I11: =+IFERROR(VLOOKUP($A11&$E$3,BasePA_GEN!$A$2:$M$835,11,0),"N.A.") -> 2,739 | J11: =+IFERROR(VLOOKUP($A11&$E$3,BasePA_GEN!$A$2:$M$835,12,0),"N.A.") -> 41,753 | K11: =+IFERROR(VLOOKUP($A11&$E$3,BasePA_GEN!$A$2:$M$835,13,0),"N.A.") -> 21,826
A12: BOLIVAR | B12: =+IFERROR(VLOOKUP($A12&$E$3,BasePA_GEN!$A$2:$K$835,4,0),"N.A.") -> 229,081 | C12: =+IFERROR(VLOOKUP($A12&$E$3,BasePA_GEN!$A$2:$K$835,5,0),"N.A.") -> 22,259 | D12: =+IFERROR(VLOOKUP($A12&$E$3,BasePA_GEN!$A$2:$K$835,6,0),"N.A.") -> 50,526 | E12: =+IFERROR(VLOOKUP($A12&$E$3,BasePA_GEN!$A$2:$K$835,7,0),"N.A.") -> 301,865 | F12: =+IFERROR(VLOOKUP($A12&$E$3,BasePA_GEN!$A$2:$K$835,8,0),"N.A.") -> 1,644,820 | G12: =+IFERROR(VLOOKUP($A12&$E$3,BasePA_GEN!$A$2:$K$835,9,0),"N.A.") -> 1,074,075 | H12: =+IFERROR(VLOOKUP($A12&$E$3,BasePA_GEN!$A$2:$K$835,10,0),"N.A.") -> 570,745 | I12: =+IFERROR(VLOOKUP($A12&$E$3,BasePA_GEN!$A$2:$M$835,11,0),"N.A.") -> 4,391 | J12: =+IFERROR(VLOOKUP($A12&$E$3,BasePA_GEN!$A$2:$M$835,12,0),"N.A.") -> 575,136 | K12: =+IFERROR(VLOOKUP($A12&$E$3,BasePA_GEN!$A$2:$M$835,13,0),"N.A.") -> 273,270
A13: CARDIF | B13: =+IFERROR(VLOOKUP($A13&$E$3,BasePA_GEN!$A$2:$K$835,4,0),"N.A.") -> 224,954 | C13: =+IFERROR(VLOOKUP($A13&$E$3,BasePA_GEN!$A$2:$K$835,5,0),"N.A.") -> 9,337 | D13: =+IFERROR(VLOOKUP($A13&$E$3,BasePA_GEN!$A$2:$K$835,6,0),"N.A.") -> 8,411 | E13: =+IFERROR(VLOOKUP($A13&$E$3,BasePA_GEN!$A$2:$K$835,7,0),"N.A.") -> 242,702 | F13: =+IFERROR(VLOOKUP($A13&$E$3,BasePA_GEN!$A$2:$K$835,8,0),"N.A.") -> 475,285 | G13: =+IFERROR(VLOOKUP($A13&$E$3,BasePA_GEN!$A$2:$K$835,9,0),"N.A.") -> 46,800 | H13: =+IFERROR(VLOOKUP($A13&$E$3,BasePA_GEN!$A$2:$K$835,10,0),"N.A.") -> 428,485 | I13: =+IFERROR(VLOOKUP($A13&$E$3,BasePA_GEN!$A$2:$M$835,11,0),"N.A.") -> 24,067 | J13: =+IFERROR(VLOOKUP($A13&$E$3,BasePA_GEN!$A$2:$M$835,12,0),"N.A.") -> 452,552 | K13: =+IFERROR(VLOOKUP($A13&$E$3,BasePA_GEN!$A$2:$M$835,13,0),"N.A.") -> 209,850
A14: CHUBB | B14: =+IFERROR(VLOOKUP($A14&$E$3,BasePA_GEN!$A$2:$K$835,4,0),"N.A.") -> 76,915 | C14: =+IFERROR(VLOOKUP($A14&$E$3,BasePA_GEN!$A$2:$K$835,5,0),"N.A.") -> 15,700 | D14: =+IFERROR(VLOOKUP($A14&$E$3,BasePA_GEN!$A$2:$K$835,6,0),"N.A.") -> 56,500 | E14: =+IFERROR(VLOOKUP($A14&$E$3,BasePA_GEN!$A$2:$K$835,7,0),"N.A.") -> 149,116 | F14: =+IFERROR(VLOOKUP($A14&$E$3,BasePA_GEN!$A$2:$K$835,8,0),"N.A.") -> 320,646 | G14: =+IFERROR(VLOOKUP($A14&$E$3,BasePA_GEN!$A$2:$K$835,9,0),"N.A.") -> 32,245 | H14: =+IFERROR(VLOOKUP($A14&$E$3,BasePA_GEN!$A$2:$K$835,10,0),"N.A.") -> 288,401 | I14: =+IFERROR(VLOOKUP($A14&$E$3,BasePA_GEN!$A$2:$M$835,11,0),"N.A.") -> 22,367 | J14: =+IFERROR(VLOOKUP($A14&$E$3,BasePA_GEN!$A$2:$M$835,12,0),"N.A.") -> 310,768 | K14: =+IFERROR(VLOOKUP($A14&$E$3,BasePA_GEN!$A$2:$M$835,13,0),"N.A.") -> 161,653
A15: COFACE | B15: =+IFERROR(VLOOKUP($A15&$E$3,BasePA_GEN!$A$2:$K$835,4,0),"N.A.") -> 2,540 | C15: =+IFERROR(VLOOKUP($A15&$E$3,BasePA_GEN!$A$2:$K$835,5,0),"N.A.") -> 373 | D15: =+IFERROR(VLOOKUP($A15&$E$3,BasePA_GEN!$A$2:$K$835,6,0),"N.A.") -> 314 | E15: =+IFERROR(VLOOKUP($A15&$E$3,BasePA_GEN!$A$2:$K$835,7,0),"N.A.") -> 3,226 | F15: =+IFERROR(VLOOKUP($A15&$E$3,BasePA_GEN!$A$2:$K$835,8,0),"N.A.") -> 27,064 | G15: =+IFERROR(VLOOKUP($A15&$E$3,BasePA_GEN!$A$2:$K$835,9,0),"N.A.") -> 2,597 | H15: =+IFERROR(VLOOKUP($A15&$E$3,BasePA_GEN!$A$2:$K$835,10,0),"N.A.") -> 24,468 | I15: =+IFERROR(VLOOKUP($A15&$E$3,BasePA_GEN!$A$2:$M$835,11,0),"N.A.") -> 484 | J15: =+IFERROR(VLOOKUP($A15&$E$3,BasePA_GEN!$A$2:$M$835,12,0),"N.A.") -> 24,952 | K15: =+IFERROR(VLOOKUP($A15&$E$3,BasePA_GEN!$A$2:$M$835,13,0),"N.A.") -> 21,726
A16: COLMENA | B16: =+IFERROR(VLOOKUP($A16&$E$3,BasePA_GEN!$A$2:$K$835,4,0),"N.A.") -> 8,142 | C16: =+IFERROR(VLOOKUP($A16&$E$3,BasePA_GEN!$A$2:$K$835,5,0),"N.A.") -> 2,700 | D16: =+IFERROR(VLOOKUP($A16&$E$3,BasePA_GEN!$A$2:$K$835,6,0),"N.A.") -> 1,146 | E16: =+IFERROR(VLOOKUP($A16&$E$3,BasePA_GEN!$A$2:$K$835,7,0),"N.A.") -> 11,988 | F16: =+IFERROR(VLOOKUP($A16&$E$3,BasePA_GEN!$A$2:$K$835,8,0),"N.A.") -> 97,861 | G16: =+IFERROR(VLOOKUP($A16&$E$3,BasePA_GEN!$A$2:$K$835,9,0),"N.A.") -> 707 | H16: =+IFERROR(VLOOKUP($A16&$E$3,BasePA_GEN!$A$2:$K$835,10,0),"N.A.") -> 97,155 | I16: =+IFERROR(VLOOKUP($A16&$E$3,BasePA_GEN!$A$2:$M$835,11,0),"N.A.") -> 707 | J16: =+IFERROR(VLOOKUP($A16&$E$3,BasePA_GEN!$A$2:$M$835,12,0),"N.A.") -> 97,861 | K16: =+IFERROR(VLOOKUP($A16&$E$3,BasePA_GEN!$A$2:$M$835,13,0),"N.A.") -> 85,873
A17: CONFIANZA | B17: =+IFERROR(VLOOKUP($A17&$E$3,BasePA_GEN!$A$2:$K$835,4,0),"N.A.") -> 20,627 | C17: =+IFERROR(VLOOKUP($A17&$E$3,BasePA_GEN!$A$2:$K$835,5,0),"N.A.") -> 11,056 | D17: =+IFERROR(VLOOKUP($A17&$E$3,BasePA_GEN!$A$2:$K$835,6,0),"N.A.") -> 7,670 | E17: =+IFERROR(VLOOKUP($A17&$E$3,BasePA_GEN!$A$2:$K$835,7,0),"N.A.") -> 39,352 | F17: =+IFERROR(VLOOKUP($A17&$E$3,BasePA_GEN!$A$2:$K$835,8,0),"N.A.") -> 145,600 | G17: =+IFERROR(VLOOKUP($A17&$E$3,BasePA_GEN!$A$2:$K$835,9,0),"N.A.") -> 17,993 | H17: =+IFERROR(VLOOKUP($A17&$E$3,BasePA_GEN!$A$2:$K$835,10,0),"N.A.") -> 127,607 | I17: =+IFERROR(VLOOKUP($A17&$E$3,BasePA_GEN!$A$2:$M$835,11,0),"N.A.") -> 4,451 | J17: =+IFERROR(VLOOKUP($A17&$E$3,BasePA_GEN!$A$2:$M$835,12,0),"N.A.") -> 132,059 | K17: =+IFERROR(VLOOKUP($A17&$E$3,BasePA_GEN!$A$2:$M$835,13,0),"N.A.") -> 92,706
A18: EQUIDAD | B18: =+IFERROR(VLOOKUP($A18&$E$3,BasePA_GEN!$A$2:$K$835,4,0),"N.A.") -> 53,995 | C18: =+IFERROR(VLOOKUP($A18&$E$3,BasePA_GEN!$A$2:$K$835,5,0),"N.A.") -> 7,234 | D18: =+IFERROR(VLOOKUP($A18&$E$3,BasePA_GEN!$A$2:$K$835,6,0),"N.A.") -> 1,013 | E18: =+IFERROR(VLOOKUP($A18&$E$3,BasePA_GEN!$A$2:$K$835,7,0),"N.A.") -> 62,243 | F18: =+IFERROR(VLOOKUP($A18&$E$3,BasePA_GEN!$A$2:$K$835,8,0),"N.A.") -> 112,458 | G18: =+IFERROR(VLOOKUP($A18&$E$3,BasePA_GEN!$A$2:$K$835,9,0),"N.A.") -> 31,437 | H18: =+IFERROR(VLOOKUP($A18&$E$3,BasePA_GEN!$A$2:$K$835,10,0),"N.A.") -> 81,021 | I18: =+IFERROR(VLOOKUP($A18&$E$3,BasePA_GEN!$A$2:$M$835,11,0),"N.A.") -> 0 | J18: =+IFERROR(VLOOKUP($A18&$E$3,BasePA_GEN!$A$2:$M$835,12,0),"N.A.") -> 81,021 | K18: =+IFERROR(VLOOKUP($A18&$E$3,BasePA_GEN!$A$2:$M$835,13,0),"N.A.") -> 18,778
A19: ESTADO | B19: =+IFERROR(VLOOKUP($A19&$E$3,BasePA_GEN!$A$2:$K$835,4,0),"N.A.") -> 179,328 | C19: =+IFERROR(VLOOKUP($A19&$E$3,BasePA_GEN!$A$2:$K$835,5,0),"N.A.") -> 39,169 | D19: =+IFERROR(VLOOKUP($A19&$E$3,BasePA_GEN!$A$2:$K$835,6,0),"N.A.") -> 25,772 | E19: =+IFERROR(VLOOKUP($A19&$E$3,BasePA_GEN!$A$2:$K$835,7,0),"N.A.") -> 244,269 | F19: =+IFERROR(VLOOKUP($A19&$E$3,BasePA_GEN!$A$2:$K$835,8,0),"N.A.") -> 398,931 | G19: =+IFERROR(VLOOKUP($A19&$E$3,BasePA_GEN!$A$2:$K$835,9,0),"N.A.") -> 34,438 | H19: =+IFERROR(VLOOKUP($A19&$E$3,BasePA_GEN!$A$2:$K$835,10,0),"N.A.") -> 364,493 | I19: =+IFERROR(VLOOKUP($A19&$E$3,BasePA_GEN!$A$2:$M$835,11,0),"N.A.") -> 26,890 | J19: =+IFERROR(VLOOKUP($A19&$E$3,BasePA_GEN!$A$2:$M$835,12,0),"N.A.") -> 391,383 | K19: =+IFERROR(VLOOKUP($A19&$E$3,BasePA_GEN!$A$2:$M$835,13,0),"N.A.") -> 147,114
A20: EVEREST | B20: =+IFERROR(VLOOKUP($A20&$E$3,BasePA_GEN!$A$2:$K$835,4,0),"N.A.") -> 1,481 | C20: =+IFERROR(VLOOKUP($A20&$E$3,BasePA_GEN!$A$2:$K$835,5,0),"N.A.") -> 668 | D20: =+IFERROR(VLOOKUP($A20&$E$3,BasePA_GEN!$A$2:$K$835,6,0),"N.A.") -> 332 | E20: =+IFERROR(VLOOKUP($A20&$E$3,BasePA_GEN!$A$2:$K$835,7,0),"N.A.") -> 2,481 | F20: =+IFERROR(VLOOKUP($A20&$E$3,BasePA_GEN!$A$2:$K$835,8,0),"N.A.") -> 102,550 | G20: =+IFERROR(VLOOKUP($A20&$E$3,BasePA_GEN!$A$2:$K$835,9,0),"N.A.") -> 8,639 | H20: =+IFERROR(VLOOKUP($A20&$E$3,BasePA_GEN!$A$2:$K$835,10,0),"N.A.") -> 93,911 | I20: =+IFERROR(VLOOKUP($A20&$E$3,BasePA_GEN!$A$2:$M$835,11,0),"N.A.") -> 372 | J20: =+IFERROR(VLOOKUP($A20&$E$3,BasePA_GEN!$A$2:$M$835,12,0),"N.A.") -> 94,283 | K20: =+IFERROR(VLOOKUP($A20&$E$3,BasePA_GEN!$A$2:$M$835,13,0),"N.A.") -> 91,802
A21: HDI SEGUROS | B21: =+IFERROR(VLOOKUP($A21&$E$3,BasePA_GEN!$A$2:$K$835,4,0),"N.A.") -> 206,355 | C21: =+IFERROR(VLOOKUP($A21&$E$3,BasePA_GEN!$A$2:$K$835,5,0),"N.A.") -> 14,330 | D21: =+IFERROR(VLOOKUP($A21&$E$3,BasePA_GEN!$A$2:$K$835,6,0),"N.A.") -> 13,249 | E21: =+IFERROR(VLOOKUP($A21&$E$3,BasePA_GEN!$A$2:$K$835,7,0),"N.A.") -> 233,934 | F21: =+IFERROR(VLOOKUP($A21&$E$3,BasePA_GEN!$A$2:$K$835,8,0),"N.A.") -> 566,071 | G21: =+IFERROR(VLOOKUP($A21&$E$3,BasePA_GEN!$A$2:$K$835,9,0),"N.A.") -> 95,517 | H21: =+IFERROR(VLOOKUP($A21&$E$3,BasePA_GEN!$A$2:$K$835,10,0),"N.A.") -> 470,554 | I21: =+IFERROR(VLOOKUP($A21&$E$3,BasePA_GEN!$A$2:$M$835,11,0),"N.A.") -> 35,090 | J21: =+IFERROR(VLOOKUP($A21&$E$3,BasePA_GEN!$A$2:$M$835,12,0),"N.A.") -> 505,644 | K21: =+IFERROR(VLOOKUP($A21&$E$3,BasePA_GEN!$A$2:$M$835,13,0),"N.A.") -> 271,710
A22: JMALUCELLI TRAVELERS | B22: =+IFERROR(VLOOKUP($A22&$E$3,BasePA_GEN!$A$2:$K$835,4,0),"N.A.") -> 3,636 | C22: =+IFERROR(VLOOKUP($A22&$E$3,BasePA_GEN!$A$2:$K$835,5,0),"N.A.") -> 1,280 | D22: =+IFERROR(VLOOKUP($A22&$E$3,BasePA_GEN!$A$2:$K$835,6,0),"N.A.") -> 510 | E22: =+IFERROR(VLOOKUP($A22&$E$3,BasePA_GEN!$A$2:$K$835,7,0),"N.A.") -> 5,426 | F22: =+IFERROR(VLOOKUP($A22&$E$3,BasePA_GEN!$A$2:$K$835,8,0),"N.A.") -> 45,059 | G22: =+IFERROR(VLOOKUP($A22&$E$3,BasePA_GEN!$A$2:$K$835,9,0),"N.A.") -> 2,216 | H22: =+IFERROR(VLOOKUP($A22&$E$3,BasePA_GEN!$A$2:$K$835,10,0),"N.A.") -> 42,844 | I22: =+IFERROR(VLOOKUP($A22&$E$3,BasePA_GEN!$A$2:$M$835,11,0),"N.A.") -> 195 | J22: =+IFERROR(VLOOKUP($A22&$E$3,BasePA_GEN!$A$2:$M$835,12,0),"N.A.") -> 43,038 | K22: =+IFERROR(VLOOKUP($A22&$E$3,BasePA_GEN!$A$2:$M$835,13,0),"N.A.") -> 37,612
A23: MAPFRE | B23: =+IFERROR(VLOOKUP($A23&$E$3,BasePA_GEN!$A$2:$K$835,4,0),"N.A.") -> 199,742 | C23: =+IFERROR(VLOOKUP($A23&$E$3,BasePA_GEN!$A$2:$K$835,5,0),"N.A.") -> 19,058 | D23: =+IFERROR(VLOOKUP($A23&$E$3,BasePA_GEN!$A$2:$K$835,6,0),"N.A.") -> 40,575 | E23: =+IFERROR(VLOOKUP($A23&$E$3,BasePA_GEN!$A$2:$K$835,7,0),"N.A.") -> 259,374 | F23: =+IFERROR(VLOOKUP($A23&$E$3,BasePA_GEN!$A$2:$K$835,8,0),"N.A.") -> 532,190 | G23: =+IFERROR(VLOOKUP($A23&$E$3,BasePA_GEN!$A$2:$K$835,9,0),"N.A.") -> 133,199 | H23: =+IFERROR(VLOOKUP($A23&$E$3,BasePA_GEN!$A$2:$K$835,10,0),"N.A.") -> 398,990 | I23: =+IFERROR(VLOOKUP($A23&$E$3,BasePA_GEN!$A$2:$M$835,11,0),"N.A.") -> 38,906 | J23: =+IFERROR(VLOOKUP($A23&$E$3,BasePA_GEN!$A$2:$M$835,12,0),"N.A.") -> 437,896 | K23: =+IFERROR(VLOOKUP($A23&$E$3,BasePA_GEN!$A$2:$M$835,13,0),"N.A.") -> 178,522
A24: MUNDIAL | B24: =+IFERROR(VLOOKUP($A24&$E$3,BasePA_GEN!$A$2:$K$835,4,0),"N.A.") -> 162,877 | C24: =+IFERROR(VLOOKUP($A24&$E$3,BasePA_GEN!$A$2:$K$835,5,0),"N.A.") -> 13,300 | D24: =+IFERROR(VLOOKUP($A24&$E$3,BasePA_GEN!$A$2:$K$835,6,0),"N.A.") -> 4,302 | E24: =+IFERROR(VLOOKUP($A24&$E$3,BasePA_GEN!$A$2:$K$835,7,0),"N.A.") -> 180,478 | F24: =+IFERROR(VLOOKUP($A24&$E$3,BasePA_GEN!$A$2:$K$835,8,0),"N.A.") -> 240,192 | G24: =+IFERROR(VLOOKUP($A24&$E$3,BasePA_GEN!$A$2:$K$835,9,0),"N.A.") -> 21,567 | H24: =+IFERROR(VLOOKUP($A24&$E$3,BasePA_GEN!$A$2:$K$835,10,0),"N.A.") -> 218,625 | I24: =+IFERROR(VLOOKUP($A24&$E$3,BasePA_GEN!$A$2:$M$835,11,0),"N.A.") -> 468 | J24: =+IFERROR(VLOOKUP($A24&$E$3,BasePA_GEN!$A$2:$M$835,12,0),"N.A.") -> 219,093 | K24: =+IFERROR(VLOOKUP($A24&$E$3,BasePA_GEN!$A$2:$M$835,13,0),"N.A.") -> 38,615
A25: NACIONAL | B25: =+IFERROR(VLOOKUP($A25&$E$3,BasePA_GEN!$A$2:$K$835,4,0),"N.A.") -> 14,724 | C25: =+IFERROR(VLOOKUP($A25&$E$3,BasePA_GEN!$A$2:$K$835,5,0),"N.A.") -> 5,641 | D25: =+IFERROR(VLOOKUP($A25&$E$3,BasePA_GEN!$A$2:$K$835,6,0),"N.A.") -> 1,801 | E25: =+IFERROR(VLOOKUP($A25&$E$3,BasePA_GEN!$A$2:$K$835,7,0),"N.A.") -> 22,166 | F25: =+IFERROR(VLOOKUP($A25&$E$3,BasePA_GEN!$A$2:$K$835,8,0),"N.A.") -> 103,325 | G25: =+IFERROR(VLOOKUP($A25&$E$3,BasePA_GEN!$A$2:$K$835,9,0),"N.A.") -> 1,901 | H25: =+IFERROR(VLOOKUP($A25&$E$3,BasePA_GEN!$A$2:$K$835,10,0),"N.A.") -> 101,423 | I25: =+IFERROR(VLOOKUP($A25&$E$3,BasePA_GEN!$A$2:$M$835,11,0),"N.A.") -> 0 | J25: =+IFERROR(VLOOKUP($A25&$E$3,BasePA_GEN!$A$2:$M$835,12,0),"N.A.") -> 101,423 | K25: =+IFERROR(VLOOKUP($A25&$E$3,BasePA_GEN!$A$2:$M$835,13,0),"N.A.") -> 79,257
A26: PREVISORA | B26: =+IFERROR(VLOOKUP($A26&$E$3,BasePA_GEN!$A$2:$K$835,4,0),"N.A.") -> 412,888 | C26: =+IFERROR(VLOOKUP($A26&$E$3,BasePA_GEN!$A$2:$K$835,5,0),"N.A.") -> 40,462 | D26: =+IFERROR(VLOOKUP($A26&$E$3,BasePA_GEN!$A$2:$K$835,6,0),"N.A.") -> 75,182 | E26: =+IFERROR(VLOOKUP($A26&$E$3,BasePA_GEN!$A$2:$K$835,7,0),"N.A.") -> 528,532 | F26: =+IFERROR(VLOOKUP($A26&$E$3,BasePA_GEN!$A$2:$K$835,8,0),"N.A.") -> 882,603 | G26: =+IFERROR(VLOOKUP($A26&$E$3,BasePA_GEN!$A$2:$K$835,9,0),"N.A.") -> 170,832 | H26: =+IFERROR(VLOOKUP($A26&$E$3,BasePA_GEN!$A$2:$K$835,10,0),"N.A.") -> 711,770 | I26: =+IFERROR(VLOOKUP($A26&$E$3,BasePA_GEN!$A$2:$M$835,11,0),"N.A.") -> 0 | J26: =+IFERROR(VLOOKUP($A26&$E$3,BasePA_GEN!$A$2:$M$835,12,0),"N.A.") -> 711,770 | K26: =+IFERROR(VLOOKUP($A26&$E$3,BasePA_GEN!$A$2:$M$835,13,0),"N.A.") -> 183,238
A27: QUALITAS | B27: =+IFERROR(VLOOKUP($A27&$E$3,BasePA_GEN!$A$2:$K$835,4,0),"N.A.") -> 360 | C27: =+IFERROR(VLOOKUP($A27&$E$3,BasePA_GEN!$A$2:$K$835,5,0),"N.A.") -> 134 | D27: =+IFERROR(VLOOKUP($A27&$E$3,BasePA_GEN!$A$2:$K$835,6,0),"N.A.") -> 92 | E27: =+IFERROR(VLOOKUP($A27&$E$3,BasePA_GEN!$A$2:$K$835,7,0),"N.A.") -> 586 | F27: =+IFERROR(VLOOKUP($A27&$E$3,BasePA_GEN!$A$2:$K$835,8,0),"N.A.") -> 47,916 | G27: =+IFERROR(VLOOKUP($A27&$E$3,BasePA_GEN!$A$2:$K$835,9,0),"N.A.") -> 9,169 | H27: =+IFERROR(VLOOKUP($A27&$E$3,BasePA_GEN!$A$2:$K$835,10,0),"N.A.") -> 38,747 | I27: =+IFERROR(VLOOKUP($A27&$E$3,BasePA_GEN!$A$2:$M$835,11,0),"N.A.") -> 0 | J27: =+IFERROR(VLOOKUP($A27&$E$3,BasePA_GEN!$A$2:$M$835,12,0),"N.A.") -> 38,747 | K27: =+IFERROR(VLOOKUP($A27&$E$3,BasePA_GEN!$A$2:$M$835,13,0),"N.A.") -> 38,162
A28: SBS SEGUROS | B28: =+IFERROR(VLOOKUP($A28&$E$3,BasePA_GEN!$A$2:$K$835,4,0),"N.A.") -> 127,199 | C28: =+IFERROR(VLOOKUP($A28&$E$3,BasePA_GEN!$A$2:$K$835,5,0),"N.A.") -> 8,565 | D28: =+IFERROR(VLOOKUP($A28&$E$3,BasePA_GEN!$A$2:$K$835,6,0),"N.A.") -> 42,305 | E28: =+IFERROR(VLOOKUP($A28&$E$3,BasePA_GEN!$A$2:$K$835,7,0),"N.A.") -> 178,069 | F28: =+IFERROR(VLOOKUP($A28&$E$3,BasePA_GEN!$A$2:$K$835,8,0),"N.A.") -> 311,850 | G28: =+IFERROR(VLOOKUP($A28&$E$3,BasePA_GEN!$A$2:$K$835,9,0),"N.A.") -> 39,169 | H28: =+IFERROR(VLOOKUP($A28&$E$3,BasePA_GEN!$A$2:$K$835,10,0),"N.A.") -> 272,682 | I28: =+IFERROR(VLOOKUP($A28&$E$3,BasePA_GEN!$A$2:$M$835,11,0),"N.A.") -> 10,949 | J28: =+IFERROR(VLOOKUP($A28&$E$3,BasePA_GEN!$A$2:$M$835,12,0),"N.A.") -> 283,631 | K28: =+IFERROR(VLOOKUP($A28&$E$3,BasePA_GEN!$A$2:$M$835,13,0),"N.A.") -> 105,562
A29: SEGUREXPO | B29: =+IFERROR(VLOOKUP($A29&$E$3,BasePA_GEN!$A$2:$K$835,4,0),"N.A.") -> 6,912 | C29: =+IFERROR(VLOOKUP($A29&$E$3,BasePA_GEN!$A$2:$K$835,5,0),"N.A.") -> 2,428 | D29: =+IFERROR(VLOOKUP($A29&$E$3,BasePA_GEN!$A$2:$K$835,6,0),"N.A.") -> 1,173 | E29: =+IFERROR(VLOOKUP($A29&$E$3,BasePA_GEN!$A$2:$K$835,7,0),"N.A.") -> 10,514 | F29: =+IFERROR(VLOOKUP($A29&$E$3,BasePA_GEN!$A$2:$K$835,8,0),"N.A.") -> 33,387 | G29: =+IFERROR(VLOOKUP($A29&$E$3,BasePA_GEN!$A$2:$K$835,9,0),"N.A.") -> 1,365 | H29: =+IFERROR(VLOOKUP($A29&$E$3,BasePA_GEN!$A$2:$K$835,10,0),"N.A.") -> 32,022 | I29: =+IFERROR(VLOOKUP($A29&$E$3,BasePA_GEN!$A$2:$M$835,11,0),"N.A.") -> 0 | J29: =+IFERROR(VLOOKUP($A29&$E$3,BasePA_GEN!$A$2:$M$835,12,0),"N.A.") -> 32,022 | K29: =+IFERROR(VLOOKUP($A29&$E$3,BasePA_GEN!$A$2:$M$835,13,0),"N.A.") -> 21,508
A30: SOLIDARIA | B30: =+IFERROR(VLOOKUP($A30&$E$3,BasePA_GEN!$A$2:$K$835,4,0),"N.A.") -> 83,081 | C30: =+IFERROR(VLOOKUP($A30&$E$3,BasePA_GEN!$A$2:$K$835,5,0),"N.A.") -> 7,499 | D30: =+IFERROR(VLOOKUP($A30&$E$3,BasePA_GEN!$A$2:$K$835,6,0),"N.A.") -> 0 | E30: =+IFERROR(VLOOKUP($A30&$E$3,BasePA_GEN!$A$2:$K$835,7,0),"N.A.") -> 90,581 | F30: =+IFERROR(VLOOKUP($A30&$E$3,BasePA_GEN!$A$2:$K$835,8,0),"N.A.") -> 378,127 | G30: =+IFERROR(VLOOKUP($A30&$E$3,BasePA_GEN!$A$2:$K$835,9,0),"N.A.") -> 7,684 | H30: =+IFERROR(VLOOKUP($A30&$E$3,BasePA_GEN!$A$2:$K$835,10,0),"N.A.") -> 370,442 | I30: =+IFERROR(VLOOKUP($A30&$E$3,BasePA_GEN!$A$2:$M$835,11,0),"N.A.") -> 0 | J30: =+IFERROR(VLOOKUP($A30&$E$3,BasePA_GEN!$A$2:$M$835,12,0),"N.A.") -> 370,442 | K30: =+IFERROR(VLOOKUP($A30&$E$3,BasePA_GEN!$A$2:$M$835,13,0),"N.A.") -> 279,862
A31: SOLUNION | B31: =+IFERROR(VLOOKUP($A31&$E$3,BasePA_GEN!$A$2:$K$835,4,0),"N.A.") -> 10,138 | C31: =+IFERROR(VLOOKUP($A31&$E$3,BasePA_GEN!$A$2:$K$835,5,0),"N.A.") -> 1,036 | D31: =+IFERROR(VLOOKUP($A31&$E$3,BasePA_GEN!$A$2:$K$835,6,0),"N.A.") -> 1,683 | E31: =+IFERROR(VLOOKUP($A31&$E$3,BasePA_GEN!$A$2:$K$835,7,0),"N.A.") -> 12,858 | F31: =+IFERROR(VLOOKUP($A31&$E$3,BasePA_GEN!$A$2:$K$835,8,0),"N.A.") -> 52,568 | G31: =+IFERROR(VLOOKUP($A31&$E$3,BasePA_GEN!$A$2:$K$835,9,0),"N.A.") -> 560 | H31: =+IFERROR(VLOOKUP($A31&$E$3,BasePA_GEN!$A$2:$K$835,10,0),"N.A.") -> 52,008 | I31: =+IFERROR(VLOOKUP($A31&$E$3,BasePA_GEN!$A$2:$M$835,11,0),"N.A.") -> 267 | J31: =+IFERROR(VLOOKUP($A31&$E$3,BasePA_GEN!$A$2:$M$835,12,0),"N.A.") -> 52,276 | K31: =+IFERROR(VLOOKUP($A31&$E$3,BasePA_GEN!$A$2:$M$835,13,0),"N.A.") -> 39,417
A32: SURAMERICANA | B32: =+IFERROR(VLOOKUP($A32&$E$3,BasePA_GEN!$A$2:$K$835,4,0),"N.A.") -> 385,892 | C32: =+IFERROR(VLOOKUP($A32&$E$3,BasePA_GEN!$A$2:$K$835,5,0),"N.A.") -> 58,204 | D32: =+IFERROR(VLOOKUP($A32&$E$3,BasePA_GEN!$A$2:$K$835,6,0),"N.A.") -> 39,352 | E32: =+IFERROR(VLOOKUP($A32&$E$3,BasePA_GEN!$A$2:$K$835,7,0),"N.A.") -> 483,449 | F32: =+IFERROR(VLOOKUP($A32&$E$3,BasePA_GEN!$A$2:$K$835,8,0),"N.A.") -> 941,241 | G32: =+IFERROR(VLOOKUP($A32&$E$3,BasePA_GEN!$A$2:$K$835,9,0),"N.A.") -> 176,496 | H32: =+IFERROR(VLOOKUP($A32&$E$3,BasePA_GEN!$A$2:$K$835,10,0),"N.A.") -> 764,746 | I32: =+IFERROR(VLOOKUP($A32&$E$3,BasePA_GEN!$A$2:$M$835,11,0),"N.A.") -> 0 | J32: =+IFERROR(VLOOKUP($A32&$E$3,BasePA_GEN!$A$2:$M$835,12,0),"N.A.") -> 764,746 | K32: =+IFERROR(VLOOKUP($A32&$E$3,BasePA_GEN!$A$2:$M$835,13,0),"N.A.") -> 281,297
A33: ZURICH | B33: =+IFERROR(VLOOKUP($A33&$E$3,BasePA_GEN!$A$2:$K$835,4,0),"N.A.") -> 55,699 | C33: =+IFERROR(VLOOKUP($A33&$E$3,BasePA_GEN!$A$2:$K$835,5,0),"N.A.") -> 14,811 | D33: =+IFERROR(VLOOKUP($A33&$E$3,BasePA_GEN!$A$2:$K$835,6,0),"N.A.") -> 6,574 | E33: =+IFERROR(VLOOKUP($A33&$E$3,BasePA_GEN!$A$2:$K$835,7,0),"N.A.") -> 77,084 | F33: =+IFERROR(VLOOKUP($A33&$E$3,BasePA_GEN!$A$2:$K$835,8,0),"N.A.") -> 301,708 | G33: =+IFERROR(VLOOKUP($A33&$E$3,BasePA_GEN!$A$2:$K$835,9,0),"N.A.") -> 213,802 | H33: =+IFERROR(VLOOKUP($A33&$E$3,BasePA_GEN!$A$2:$K$835,10,0),"N.A.") -> 87,906 | I33: =+IFERROR(VLOOKUP($A33&$E$3,BasePA_GEN!$A$2:$M$835,11,0),"N.A.") -> 11,563 | J33: =+IFERROR(VLOOKUP($A33&$E$3,BasePA_GEN!$A$2:$M$835,12,0),"N.A.") -> 99,468 | K33: =+IFERROR(VLOOKUP($A33&$E$3,BasePA_GEN!$A$2:$M$835,13,0),"N.A.") -> 22,384

Sheet BasePA_VID (hidden)
D1: Riesgo de Suscripción | E1: Riesgo de Activo | F1: TOTAL PATRIMONIO ADECUADO | G1: Patrimonio Básico Ordinario antes de deducciones | H1: Deducciones del Patrimonio Básico Ordinario | I1: Patrimonio Básico Ordinario | J1: Patrimonio Básico Adicional (computable) | K1: Patrimonio Adicional (computable) | L1: PATRIMONIO TÉCNICO | M1: EXCESO (DEFECTO)
A2: =+B2&C2 -> ALFA VIDA45777 | B2: ALFA VIDA | C2: 2025-04-30 | D2: 2,079,055 | E2: 228,003 | F2: 2,307,058 | G2: 2,188,076.76 | H2: 24,203.57 | I2: 2,163,873 | J2: 295,000 | K2: 0 | L2: 2,458,873 | M2: 151,815
A3: =+B3&C3 -> ALFA VIDA45808 | B3: ALFA VIDA | C3: 2025-05-31 | D3: 2,098,884 | E3: 230,478 | F3: 2,329,362 | G3: 2,256,351.81 | H3: 25,461.09 | I3: 2,230,891 | J3: 295,000 | K3: 0 | L3: 2,525,891 | M3: 196,529
A4: ALFA VIDA45838 | B4: ALFA VIDA | C4: 2025-06-30 | D4: 2,122,972 | E4: 231,516 | F4: 2,354,488 | G4: 2,280,753.07 | H4: 25,896.43 | I4: 2,254,857 | J4: 295,000 | K4: 0 | L4: 2,549,857 | M4: 195,369
A5: ALLIANZ VIDA45777 | B5: ALLIANZ VIDA | C5: 2025-04-30 | D5: 184,429 | E5: 6,805 | F5: 191,234 | G5: 305,591.65 | H5: 13,791.86 | I5: 291,800 | J5: 0 | K5: 0 | L5: 291,800 | M5: 100,566
A6: ALLIANZ VIDA45808 | B6: ALLIANZ VIDA | C6: 2025-05-31 | D6: 184,188 | E6: 6,638 | F6: 190,826 | G6: 323,975.53 | H6: 14,404.13 | I6: 309,571 | J6: 0 | K6: 0 | L6: 309,571 | M6: 118,745
A7: ALLIANZ VIDA45838 | B7: ALLIANZ VIDA | C7: 2025-06-30 | D7: 185,582 | E7: 6,489 | F7: 192,071 | G7: 324,039.92 | H7: 14,316.46 | I7: 309,723 | J7: 0 | K7: 0 | L7: 309,723 | M7: 117,653
A8: ANDINA45777 | B8: ANDINA | C8: 2025-04-30 | D8: 32,880 | E8: 196 | F8: 33,076 | G8: 66,757.02 | H8: 963.30 | I8: 65,794 | J8: 0 | K8: 0 | L8: 65,794 | M8: 32,718
A9: ANDINA45808 | B9: ANDINA | C9: 2025-05-31 | D9: 36,708 | E9: 198 | F9: 36,905 | G9: 65,295.92 | H9: 1,044.56 | I9: 64,251 | J9: 0 | K9: 0 | L9: 64,251 | M9: 27,346
A10: ANDINA45838 | B10: ANDINA | C10: 2025-06-30 | D10: 41,164 | E10: 199 | F10: 41,363 | G10: 63,556.26 | H10: 1,025.60 | I10: 62,531 | J10: 0 | K10: 0 | L10: 62,531 | M10: 21,168
A11: ASULADO45777 | B11: ASULADO | C11: 2025-04-30 | D11: 931,522 | E11: 21,503 | F11: 953,024 | G11: 1,181,154.67 | H11: 0.00 | I11: 1,181,155 | J11: 0 | K11: 0 | L11: 1,181,155 | M11: 228,130
A12: ASULADO45808 | B12: ASULADO | C12: 2025-05-31 | D12: 948,971 | E12: 21,531 | F12: 970,502 | G12: 1,200,815.67 | H12: 0.00 | I12: 1,200,816 | J12: 0 | K12: 0 | L12: 1,200,816 | M12: 230,314
A13: ASULADO45838 | B13: ASULADO | C13: 2025-06-30 | D13: 961,361 | E13: 21,335 | F13: 982,697 | G13: 1,212,448.10 | H13: 0.00 | I13: 1,212,448 | J13: 0 | K13: 0 | L13: 1,212,448 | M13: 229,751
A14: AURORA VIDA45777 | B14: AURORA VIDA | C14: 2025-04-30 | D14: 3,564 | E14: 733 | F14: 4,297 | G14: 33,811.39 | H14: 6,367.53 | I14: 27,444 | J14: 0 | K14: 0 | L14: 27,444 | M14: 23,147
A15: AURORA VIDA45808 | B15: AURORA VIDA | C15: 2025-05-31 | D15: 3,642 | E15: 833 | F15: 4,475 | G15: 33,811.39 | H15: 5,050.09 | I15: 28,761 | J15: 0 | K15: 0 | L15: 28,761 | M15: 24,286
A16: AURORA VIDA45838 | B16: AURORA VIDA | C16: 2025-06-30 | D16: 3,805 | E16: 513 | F16: 4,318 | G16: 33,811.39 | H16: 5,592.03 | I16: 28,219 | J16: 0 | K16: 0 | L16: 28,219 | M16: 23,902
A17: AXA COLPATRIA VIDA45777 | B17: AXA COLPATRIA VIDA | C17: 2025-04-30 | D17: 282,733 | E17: 31,998 | F17: 314,732 | G17: 877,676.69 | H17: 109,007.12 | I17: 768,670 | J17: 0 | K17: 47,210 | L17: 815,879 | M17: 501,148
A18: AXA COLPATRIA VIDA45808 | B18: AXA COLPATRIA VIDA | C18: 2025-05-31 | D18: 285,917 | E18: 32,248 | F18: 318,165 | G18: 901,185.40 | H18: 112,637.05 | I18: 788,548 | J18: 0 | K18: 47,725 | L18: 836,273 | M18: 518,108
A19: AXA COLPATRIA VIDA45838 | B19: AXA COLPATRIA VIDA | C19: 2025-06-30 | D19: 289,355 | E19: 32,178 | F19: 321,533 | G19: 895,817.15 | H19: 112,039.73 | I19: 783,777 | J19: 0 | K19: 48,230 | L19: 832,007 | M19: 510,474
A20: BBVA SEGUROS VIDA45777 | B20: BBVA SEGUROS VIDA | C20: 2025-04-30 | D20: 149,432 | E20: 15,598 | F20: 165,030 | G20: 704,585.77 | H20: 11,129.84 | I20: 693,456 | J20: 0 | K20: 430 | L20: 693,886 | M20: 528,856
A21: BBVA SEGUROS VIDA45808 | B21: BBVA SEGUROS VIDA | C21: 2025-05-31 | D21: 152,386 | E21: 15,280 | F21: 167,667 | G21: 728,190.77 | H21: 13,839.17 | I21: 714,352 | J21: 0 | K21: 2,947 | L21: 717,299 | M21: 549,632
A22: BBVA SEGUROS VIDA45838 | B22: BBVA SEGUROS VIDA | C22: 2025-06-30 | D22: 151,999 | E22: 15,479 | F22: 167,477 | G22: 738,614.77 | H22: 12,378.42 | I22: 726,236 | J22: 0 | K22: 1,534 | L22: 727,771 | M22: 560,293
A23: BMI COLOMBIA45777 | B23: BMI COLOMBIA | C23: 2025-04-30 | D23: 9,766 | E23: 1,969 | F23: 11,735 | G23: 59,257.44 | H23: 36,315.06 | I23: 22,942 | J23: 0 | K23: 1,760 | L23: 24,703 | M23: 12,968
A24: BMI COLOMBIA45808 | B24: BMI COLOMBIA | C24: 2025-05-31 | D24: 9,141 | E24: 1,945 | F24: 11,086 | G24: 61,771.87 | H24: 36,123.04 | I24: 25,649 | J24: 0 | K24: 1,663 | L24: 27,312 | M24: 16,225
A25: BMI COLOMBIA45838 | B25: BMI COLOMBIA | C25: 2025-06-30 | D25: 9,189 | E25: 262 | F25: 9,451 | G25: 62,213.86 | H25: 36,467.66 | I25: 25,746 | J25: 0 | K25: 1,418 | L25: 27,164 | M25: 17,713
A26: BOLIVAR VIDA45777 | B26: BOLIVAR VIDA | C26: 2025-04-30 | D26: 758,993 | E26: 127,015 | F26: 886,009 | G26: 2,992,079.63 | H26: 1,671,943.26 | I26: 1,320,136 | J26: 0 | K26: 0 | L26: 1,320,136 | M26: 434,128
A27: BOLIVAR VIDA45808 | B27: BOLIVAR VIDA | C27: 2025-05-31 | D27: 768,100 | E27: 127,313 | F27: 895,413 | G27: 3,059,152.49 | H27: 1,674,514.79 | I27: 1,384,638 | J27: 0 | K27: 0 | L27: 1,384,638 | M27: 489,225
A28: BOLIVAR VIDA45838 | B28: BOLIVAR VIDA | C28: 2025-06-30 | D28: 775,846 | E28: 129,396 | F28: 905,242 | G28: 2,895,187.02 | H28: 1,709,722.33 | I28: 1,185,465 | J28: 0 | K28: 0 | L28: 1,185,465 | M28: 280,223
A29: COLMENA ARL45777 | B29: COLMENA ARL | C29: 2025-04-30 | D29: 154,227 | E29: 17,729 | F29: 171,956 | G29: 287,394.54 | H29: 23,400.91 | I29: 263,994 | J29: 0 | K29: 0 | L29: 263,994 | M29: 92,037
A30: COLMENA ARL45808 | B30: COLMENA ARL | C30: 2025-05-31 | D30: 154,556 | E30: 18,465 | F30: 173,021 | G30: 310,960.88 | H30: 23,395.09 | I30: 287,566 | J30: 0 | K30: 0 | L30: 287,566 | M30: 114,545
A31: COLMENA ARL45838 | B31: COLMENA ARL | C31: 2025-06-30 | D31: 155,143 | E31: 19,445 | F31: 174,588 | G31: 328,797.51 | H31: 23,389.27 | I31: 305,408 | J31: 0 | K31: 0 | L31: 305,408 | M31: 130,820
A32: COLMENA VIDA45777 | B32: COLMENA VIDA | C32: 2025-04-30 | D32: 26,620 | E32: 6,115 | F32: 32,735 | G32: 161,093.15 | H32: 32,822.55 | I32: 128,271 | J32: 0 | K32: 2,443 | L32: 130,714 | M32: 97,978
A33: COLMENA VIDA45808 | B33: COLMENA VIDA | C33: 2025-05-31 | D33: 26,225 | E33: 7,868 | F33: 34,093 | G33: 163,544.97 | H33: 32,948.72 | I33: 130,596 | J33: 0 | K33: 2,416 | L33: 133,012 | M33: 98,919
A34: COLMENA VIDA45838 | B34: COLMENA VIDA | C34: 2025-06-30 | D34: 26,679 | E34: 7,351 | F34: 34,030 | G34: 166,298.26 | H34: 32,553.35 | I34: 133,745 | J34: 0 | K34: 2,040 | L34: 135,785 | M34: 101,754
A35: COLSANITAS45777 | B35: COLSANITAS | C35: 2025-04-30 | D35: 17,492 | E35: 2,805 | F35: 20,298 | G35: 60,380.12 | H35: 34,446.76 | I35: 25,933 | J35: 0 | K35: 0 | L35: 25,933 | M35: 5,636
A36: COLSANITAS45808 | B36: COLSANITAS | C36: 2025-05-31 | D36: 17,943 | E36: 2,819 | F36: 20,763 | G36: 67,937.15 | H36: 34,889.44 | I36: 33,048 | J36: 0 | K36: 0 | L36: 33,048 | M36: 12,285
A37: =+B37&C37 -> COLSANITAS45838 | B37: COLSANITAS | C37: 2025-06-30 | D37: 18,632 | E37: 4,027 | F37: 22,659 | G37: 67,683.60 | H37: 35,642.05 | I37: 32,042 | J37: 0 | K37: 0 | L37: 32,042 | M37: 9,383
A38: EQUIDAD VIDA45777 | B38: EQUIDAD VIDA | C38: 2025-04-30 | D38: 46,239 | E38: 5,918 | F38: 52,156 | G38: 71,518.39 | H38: 6,805.10 | I38: 64,713 | J38: 0 | K38: 0 | L38: 64,713 | M38: 12,557
A39: EQUIDAD VIDA45808 | B39: EQUIDAD VIDA | C39: 2025-05-31 | D39: 46,458 | E39: 5,846 | F39: 52,305 | G39: 71,522.44 | H39: 3,569.92 | I39: 67,953 | J39: 0 | K39: 0 | L39: 67,953 | M39: 15,648
A40: EQUIDAD VIDA45838 | B40: EQUIDAD VIDA | C40: 2025-06-30 | D40: 46,573 | E40: 5,869 | F40: 52,442 | G40: 71,531.73 | H40: 2,292.67 | I40: 69,239 | J40: 0 | K40: 0 | L40: 69,239 | M40: 16,797
A41: ESTADO VIDA45777 | B41: ESTADO VIDA | C41: 2025-04-30 | D41: 27,533 | E41: 4,857 | F41: 32,390 | G41: 47,936.51 | H41: 5,083.09 | I41: 42,853 | J41: 0 | K41: 545 | L41: 43,398 | M41: 11,008
A42: ESTADO VIDA45808 | B42: ESTADO VIDA | C42: 2025-05-31 | D42: 27,788 | E42: 4,272 | F42: 32,061 | G42: 49,346.71 | H42: 4,760.53 | I42: 44,586 | J42: 0 | K42: 222 | L42: 44,808 | M42: 12,748
A43: ESTADO VIDA45838 | B43: ESTADO VIDA | C43: 2025-06-30 | D43: 27,908 | E43: 3,796 | F43: 31,704 | G43: 47,382.55 | H43: 6,242.05 | I43: 41,140 | J43: 0 | K43: 1,704 | L43: 42,844 | M43: 11,140
A44: GLOBAL45777 | B44: GLOBAL | C44: 2025-04-30 | D44: 234,559 | E44: 92,062 | F44: 326,621 | G44: 336,139.88 | H44: 13,914.14 | I44: 322,226 | J44: 0 | K44: 11,908 | L44: 334,133 | M44: 7,512
A45: GLOBAL45808 | B45: GLOBAL | C45: 2025-05-31 | D45: 236,142 | E45: 88,865 | F45: 325,006 | G45: 333,859.28 | H45: 13,884.91 | I45: 319,974 | J45: 0 | K45: 11,908 | L45: 331,882 | M45: 6,876
A46: GLOBAL45838 | B46: GLOBAL | C46: 2025-06-30 | D46: 236,817 | E46: 90,039 | F46: 326,855 | G46: 334,825.14 | H46: 13,936.15 | I46: 320,889 | J46: 0 | K46: 11,908 | L46: 332,797 | M46: 5,941
A47: MAPFRE VIDA45777 | B47: MAPFRE VIDA | C47: 2025-04-30 | D47: 240,094 | E47: 24,528 | F47: 264,622 | G47: 372,180.44 | H47: 93,012.29 | I47: 279,168 | J47: 0 | K47: 0 | L47: 279,168 | M47: 14,546
A48: MAPFRE VIDA45808 | B48: MAPFRE VIDA | C48: 2025-05-31 | D48: 240,906 | E48: 24,276 | F48: 265,183 | G48: 372,298.04 | H48: 92,232.24 | I48: 280,066 | J48: 0 | K48: 0 | L48: 280,066 | M48: 14,883
A49: MAPFRE VIDA45838 | B49: MAPFRE VIDA | C49: 2025-06-30 | D49: 241,232 | E49: 24,614 | F49: 265,846 | G49: 408,751.63 | H49: 107,464.65 | I49: 301,287 | J49: 0 | K49: 0 | L49: 301,287 | M49: 35,441
A50: METLIFE45777 | B50: METLIFE | C50: 2025-04-30 | D50: 132,388 | E50: 12,670 | F50: 145,058 | G50: 426,642.22 | H50: 14,230.88 | I50: 412,411 | J50: 0 | K50: 359 | L50: 412,770 | M50: 267,712
A51: METLIFE45808 | B51: METLIFE | C51: 2025-05-31 | D51: 132,686 | E51: 11,775 | F51: 144,461 | G51: 431,642.02 | H51: 16,869.91 | I51: 414,772 | J51: 0 | K51: 2,318 | L51: 417,090 | M51: 272,629
A52: METLIFE45838 | B52: METLIFE | C52: 2025-06-30 | D52: 131,766 | E52: 12,029 | F52: 143,795 | G52: 429,796.88 | H52: 19,846.60 | I52: 409,950 | J52: 0 | K52: 5,593 | L52: 415,543 | M52: 271,748
A53: PANAMERICAN VIDA45777 | B53: PANAMERICAN VIDA | C53: 2025-04-30 | D53: 46,124 | E53: 7,374 | F53: 53,499 | G53: 91,681.20 | H53: 19,961.03 | I53: 71,720 | J53: 0 | K53: 1,660 | L53: 73,380 | M53: 19,881
A54: PANAMERICAN VIDA45808 | B54: PANAMERICAN VIDA | C54: 2025-05-31 | D54: 48,023 | E54: 7,578 | F54: 55,601 | G54: 91,505.93 | H54: 20,685.69 | I54: 70,820 | J54: 0 | K54: 1,660 | L54: 72,480 | M54: 16,879
A55: PANAMERICAN VIDA45838 | B55: PANAMERICAN VIDA | C55: 2025-06-30 | D55: 50,168 | E55: 8,142 | F55: 58,310 | G55: 91,505.93 | H55: 21,501.38 | I55: 70,005 | J55: 0 | K55: 2,403 | L55: 72,408 | M55: 14,098
A56: POSITIVA45777 | B56: POSITIVA | C56: 2025-04-30 | D56: 530,788 | E56: 73,760 | F56: 604,548 | G56: 1,337,477.64 | H56: 442,728.38 | I56: 894,749 | J56: 0 | K56: 0 | L56: 894,749 | M56: 290,201
A57: POSITIVA45808 | B57: POSITIVA | C57: 2025-05-31 | D57: 535,857 | E57: 74,091 | F57: 609,947 | G57: 1,367,841.35 | H57: 442,666.72 | I57: 925,175 | J57: 0 | K57: 0 | L57: 925,175 | M57: 315,227
A58: POSITIVA45838 | B58: POSITIVA | C58: 2025-06-30 | D58: 536,319 | E58: 75,037 | F58: 611,355 | G58: 1,370,862.04 | H58: 442,607.06 | I58: 928,255 | J58: 0 | K58: 0 | L58: 928,255 | M58: 316,899
A59: SKANDIA45777 | B59: SKANDIA | C59: 2025-04-30 | D59: 67,519 | E59: 13,102 | F59: 80,620 | G59: 230,252.27 | H59: 114,089.34 | I59: 116,163 | J59: 0 | K59: 0 | L59: 116,163 | M59: 35,543
A60: SKANDIA45808 | B60: SKANDIA | C60: 2025-05-31 | D60: 68,852 | E60: 12,800 | F60: 81,652 | G60: 232,482.31 | H60: 113,932.55 | I60: 118,550 | J60: 0 | K60: 0 | L60: 118,550 | M60: 36,898
A61: SKANDIA45838 | B61: SKANDIA | C61: 2025-06-30 | D61: 69,822 | E61: 12,056 | F61: 81,878 | G61: 235,790.82 | H61: 117,558.41 | I61: 118,232 | J61: 0 | K61: 0 | L61: 118,232 | M61: 36,355
A62: SURAMERICANA VIDA45777 | B62: SURAMERICANA VIDA | C62: 2025-04-30 | D62: 1,545,432 | E62: 201,546 | F62: 1,746,977 | G62: 2,900,515.90 | H62: 298,065.73 | I62: 2,602,450 | J62: 0 | K62: 13,487 | L62: 2,615,937 | M62: 868,960
A63: SURAMERICANA VIDA45808 | B63: SURAMERICANA VIDA | C63: 2025-05-31 | D63: 1,557,465 | E63: 199,382 | F63: 1,756,847 | G63: 2,956,674.44 | H63: 297,821.44 | I63: 2,658,853 | J63: 0 | K63: 13,487 | L63: 2,672,340 | M63: 915,494
A64: SURAMERICANA VIDA45838 | B64: SURAMERICANA VIDA | C64: 2025-06-30 | D64: 1,568,464 | E64: 203,166 | F64: 1,771,629 | G64: 3,016,716.73 | H64: 284,957.83 | I64: 2,731,759 | J64: 0 | K64: 5,272 | L64: 2,737,031 | M64: 965,402

Sheet PA_VID
B1: COMPAÑÍAS DE SEGUROS DE VIDA
B2: PATRIMONIO ADECUADO Y PATRIMONIO TÉCNICO
F3: 2025-06-30
B4: CIFRAS EN MILLONES DE PESOS
A5: COMPAÑÍAS | B5: PATRIMONIO ADECUADO | E5: PATRIMONIO TÉCNICO
B6: Riesgo de suscripción | C6: Riesgo de activo | D6: Total patrimonio adecuado | E6: PBO antes de deducciones | F6: Deducciones de PBO | G6: Patrimonio Básico Ordinario | H6: Patrimonio Básico Adicional | I6: Patrimonio Adicional | J6: Patrimonio técnico | K6: Exceso (defecto)
A7: ALFA VIDA | B7: =+IFERROR(VLOOKUP($A7&$F$3,BasePA_VID!$A$1:$J$316,4,0),"N.A.") -> 2,122,972 | C7: =+IFERROR(VLOOKUP($A7&$F$3,BasePA_VID!$A$1:$J$316,5,0),"N.A.") -> 231,516 | D7: =+IFERROR(VLOOKUP($A7&$F$3,BasePA_VID!$A$1:$J$316,6,0),"N.A.") -> 2,354,488 | E7: =+IFERROR(VLOOKUP($A7&$F$3,BasePA_VID!$A$1:$J$316,7,0),"N.A.") -> 2,280,753 | F7: =+IFERROR(VLOOKUP($A7&$F$3,BasePA_VID!$A$1:$J$316,8,0),"N.A.") -> 25,896 | G7: =+IFERROR(VLOOKUP($A7&$F$3,BasePA_VID!$A$1:$J$316,9,0),"N.A.") -> 2,254,857 | H7: =+IFERROR(VLOOKUP($A7&$F$3,BasePA_VID!$A$1:$M$316,10,0),"N.A.") -> 295,000 | I7: =+IFERROR(VLOOKUP($A7&$F$3,BasePA_VID!$A$1:$M$316,11,0),"N.A.") -> 0 | J7: =+IFERROR(VLOOKUP($A7&$F$3,BasePA_VID!$A$1:$M$316,12,0),"N.A.") -> 2,549,857 | K7: =+IFERROR(VLOOKUP($A7&$F$3,BasePA_VID!$A$1:$M$316,13,0),"N.A.") -> 195,369
A8: ALLIANZ VIDA | B8: =+IFERROR(VLOOKUP($A8&$F$3,BasePA_VID!$A$1:$J$316,4,0),"N.A.") -> 185,582 | C8: =+IFERROR(VLOOKUP($A8&$F$3,BasePA_VID!$A$1:$J$316,5,0),"N.A.") -> 6,489 | D8: =+IFERROR(VLOOKUP($A8&$F$3,BasePA_VID!$A$1:$J$316,6,0),"N.A.") -> 192,071 | E8: =+IFERROR(VLOOKUP($A8&$F$3,BasePA_VID!$A$1:$J$316,7,0),"N.A.") -> 324,040 | F8: =+IFERROR(VLOOKUP($A8&$F$3,BasePA_VID!$A$1:$J$316,8,0),"N.A.") -> 14,316 | G8: =+IFERROR(VLOOKUP($A8&$F$3,BasePA_VID!$A$1:$J$316,9,0),"N.A.") -> 309,723 | H8: =+IFERROR(VLOOKUP($A8&$F$3,BasePA_VID!$A$1:$M$316,10,0),"N.A.") -> 0 | I8: =+IFERROR(VLOOKUP($A8&$F$3,BasePA_VID!$A$1:$M$316,11,0),"N.A.") -> 0 | J8: =+IFERROR(VLOOKUP($A8&$F$3,BasePA_VID!$A$1:$M$316,12,0),"N.A.") -> 309,723 | K8: =+IFERROR(VLOOKUP($A8&$F$3,BasePA_VID!$A$1:$M$316,13,0),"N.A.") -> 117,653
A9: ANDINA | B9: =+IFERROR(VLOOKUP($A9&$F$3,BasePA_VID!$A$1:$J$316,4,0),"N.A.") -> 41,164 | C9: =+IFERROR(VLOOKUP($A9&$F$3,BasePA_VID!$A$1:$J$316,5,0),"N.A.") -> 199 | D9: =+IFERROR(VLOOKUP($A9&$F$3,BasePA_VID!$A$1:$J$316,6,0),"N.A.") -> 41,363 | E9: =+IFERROR(VLOOKUP($A9&$F$3,BasePA_VID!$A$1:$J$316,7,0),"N.A.") -> 63,556 | F9: =+IFERROR(VLOOKUP($A9&$F$3,BasePA_VID!$A$1:$J$316,8,0),"N.A.") -> 1,026 | G9: =+IFERROR(VLOOKUP($A9&$F$3,BasePA_VID!$A$1:$J$316,9,0),"N.A.") -> 62,531 | H9: =+IFERROR(VLOOKUP($A9&$F$3,BasePA_VID!$A$1:$M$316,10,0),"N.A.") -> 0 | I9: =+IFERROR(VLOOKUP($A9&$F$3,BasePA_VID!$A$1:$M$316,11,0),"N.A.") -> 0 | J9: =+IFERROR(VLOOKUP($A9&$F$3,BasePA_VID!$A$1:$M$316,12,0),"N.A.") -> 62,531 | K9: =+IFERROR(VLOOKUP($A9&$F$3,BasePA_VID!$A$1:$M$316,13,0),"N.A.") -> 21,168
A10: ASULADO | B10: =+IFERROR(VLOOKUP($A10&$F$3,BasePA_VID!$A$1:$J$316,4,0),"N.A.") -> 961,361 | C10: =+IFERROR(VLOOKUP($A10&$F$3,BasePA_VID!$A$1:$J$316,5,0),"N.A.") -> 21,335 | D10: =+IFERROR(VLOOKUP($A10&$F$3,BasePA_VID!$A$1:$J$316,6,0),"N.A.") -> 982,697 | E10: =+IFERROR(VLOOKUP($A10&$F$3,BasePA_VID!$A$1:$J$316,7,0),"N.A.") -> 1,212,448 | F10: =+IFERROR(VLOOKUP($A10&$F$3,BasePA_VID!$A$1:$J$316,8,0),"N.A.") -> 0 | G10: =+IFERROR(VLOOKUP($A10&$F$3,BasePA_VID!$A$1:$J$316,9,0),"N.A.") -> 1,212,448 | H10: =+IFERROR(VLOOKUP($A10&$F$3,BasePA_VID!$A$1:$M$316,10,0),"N.A.") -> 0 | I10: =+IFERROR(VLOOKUP($A10&$F$3,BasePA_VID!$A$1:$M$316,11,0),"N.A.") -> 0 | J10: =+IFERROR(VLOOKUP($A10&$F$3,BasePA_VID!$A$1:$M$316,12,0),"N.A.") -> 1,212,448 | K10: =+IFERROR(VLOOKUP($A10&$F$3,BasePA_VID!$A$1:$M$316,13,0),"N.A.") -> 229,751
A11: AURORA VIDA | B11: =+IFERROR(VLOOKUP($A11&$F$3,BasePA_VID!$A$1:$J$316,4,0),"N.A.") -> 3,805 | C11: =+IFERROR(VLOOKUP($A11&$F$3,BasePA_VID!$A$1:$J$316,5,0),"N.A.") -> 513 | D11: =+IFERROR(VLOOKUP($A11&$F$3,BasePA_VID!$A$1:$J$316,6,0),"N.A.") -> 4,318 | E11: =+IFERROR(VLOOKUP($A11&$F$3,BasePA_VID!$A$1:$J$316,7,0),"N.A.") -> 33,811 | F11: =+IFERROR(VLOOKUP($A11&$F$3,BasePA_VID!$A$1:$J$316,8,0),"N.A.") -> 5,592 | G11: =+IFERROR(VLOOKUP($A11&$F$3,BasePA_VID!$A$1:$J$316,9,0),"N.A.") -> 28,219 | H11: =+IFERROR(VLOOKUP($A11&$F$3,BasePA_VID!$A$1:$M$316,10,0),"N.A.") -> 0 | I11: =+IFERROR(VLOOKUP($A11&$F$3,BasePA_VID!$A$1:$M$316,11,0),"N.A.") -> 0 | J11: =+IFERROR(VLOOKUP($A11&$F$3,BasePA_VID!$A$1:$M$316,12,0),"N.A.") -> 28,219 | K11: =+IFERROR(VLOOKUP($A11&$F$3,BasePA_VID!$A$1:$M$316,13,0),"N.A.") -> 23,902
A12: AXA COLPATRIA VIDA | B12: =+IFERROR(VLOOKUP($A12&$F$3,BasePA_VID!$A$1:$J$316,4,0),"N.A.") -> 289,355 | C12: =+IFERROR(VLOOKUP($A12&$F$3,BasePA_VID!$A$1:$J$316,5,0),"N.A.") -> 32,178 | D12: =+IFERROR(VLOOKUP($A12&$F$3,BasePA_VID!$A$1:$J$316,6,0),"N.A.") -> 321,533 | E12: =+IFERROR(VLOOKUP($A12&$F$3,BasePA_VID!$A$1:$J$316,7,0),"N.A.") -> 895,817 | F12: =+IFERROR(VLOOKUP($A12&$F$3,BasePA_VID!$A$1:$J$316,8,0),"N.A.") -> 112,040 | G12: =+IFERROR(VLOOKUP($A12&$F$3,BasePA_VID!$A$1:$J$316,9,0),"N.A.") -> 783,777 | H12: =+IFERROR(VLOOKUP($A12&$F$3,BasePA_VID!$A$1:$M$316,10,0),"N.A.") -> 0 | I12: =+IFERROR(VLOOKUP($A12&$F$3,BasePA_VID!$A$1:$M$316,11,0),"N.A.") -> 48,230 | J12: =+IFERROR(VLOOKUP($A12&$F$3,BasePA_VID!$A$1:$M$316,12,0),"N.A.") -> 832,007 | K12: =+IFERROR(VLOOKUP($A12&$F$3,BasePA_VID!$A$1:$M$316,13,0),"N.A.") -> 510,474
A13: BBVA SEGUROS VIDA | B13: =+IFERROR(VLOOKUP($A13&$F$3,BasePA_VID!$A$1:$J$316,4,0),"N.A.") -> 151,999 | C13: =+IFERROR(VLOOKUP($A13&$F$3,BasePA_VID!$A$1:$J$316,5,0),"N.A.") -> 15,479 | D13: =+IFERROR(VLOOKUP($A13&$F$3,BasePA_VID!$A$1:$J$316,6,0),"N.A.") -> 167,477 | E13: =+IFERROR(VLOOKUP($A13&$F$3,BasePA_VID!$A$1:$J$316,7,0),"N.A.") -> 738,615 | F13: =+IFERROR(VLOOKUP($A13&$F$3,BasePA_VID!$A$1:$J$316,8,0),"N.A.") -> 12,378 | G13: =+IFERROR(VLOOKUP($A13&$F$3,BasePA_VID!$A$1:$J$316,9,0),"N.A.") -> 726,236 | H13: =+IFERROR(VLOOKUP($A13&$F$3,BasePA_VID!$A$1:$M$316,10,0),"N.A.") -> 0 | I13: =+IFERROR(VLOOKUP($A13&$F$3,BasePA_VID!$A$1:$M$316,11,0),"N.A.") -> 1,534 | J13: =+IFERROR(VLOOKUP($A13&$F$3,BasePA_VID!$A$1:$M$316,12,0),"N.A.") -> 727,771 | K13: =+IFERROR(VLOOKUP($A13&$F$3,BasePA_VID!$A$1:$M$316,13,0),"N.A.") -> 560,293
A14: BMI COLOMBIA | B14: =+IFERROR(VLOOKUP($A14&$F$3,BasePA_VID!$A$1:$J$316,4,0),"N.A.") -> 9,189 | C14: =+IFERROR(VLOOKUP($A14&$F$3,BasePA_VID!$A$1:$J$316,5,0),"N.A.") -> 262 | D14: =+IFERROR(VLOOKUP($A14&$F$3,BasePA_VID!$A$1:$J$316,6,0),"N.A.") -> 9,451 | E14: =+IFERROR(VLOOKUP($A14&$F$3,BasePA_VID!$A$1:$J$316,7,0),"N.A.") -> 62,214 | F14: =+IFERROR(VLOOKUP($A14&$F$3,BasePA_VID!$A$1:$J$316,8,0),"N.A.") -> 36,468 | G14: =+IFERROR(VLOOKUP($A14&$F$3,BasePA_VID!$A$1:$J$316,9,0),"N.A.") -> 25,746 | H14: =+IFERROR(VLOOKUP($A14&$F$3,BasePA_VID!$A$1:$M$316,10,0),"N.A.") -> 0 | I14: =+IFERROR(VLOOKUP($A14&$F$3,BasePA_VID!$A$1:$M$316,11,0),"N.A.") -> 1,418 | J14: =+IFERROR(VLOOKUP($A14&$F$3,BasePA_VID!$A$1:$M$316,12,0),"N.A.") -> 27,164 | K14: =+IFERROR(VLOOKUP($A14&$F$3,BasePA_VID!$A$1:$M$316,13,0),"N.A.") -> 17,713
A15: BOLIVAR VIDA | B15: =+IFERROR(VLOOKUP($A15&$F$3,BasePA_VID!$A$1:$J$316,4,0),"N.A.") -> 775,846 | C15: =+IFERROR(VLOOKUP($A15&$F$3,BasePA_VID!$A$1:$J$316,5,0),"N.A.") -> 129,396 | D15: =+IFERROR(VLOOKUP($A15&$F$3,BasePA_VID!$A$1:$J$316,6,0),"N.A.") -> 905,242 | E15: =+IFERROR(VLOOKUP($A15&$F$3,BasePA_VID!$A$1:$J$316,7,0),"N.A.") -> 2,895,187 | F15: =+IFERROR(VLOOKUP($A15&$F$3,BasePA_VID!$A$1:$J$316,8,0),"N.A.") -> 1,709,722 | G15: =+IFERROR(VLOOKUP($A15&$F$3,BasePA_VID!$A$1:$J$316,9,0),"N.A.") -> 1,185,465 | H15: =+IFERROR(VLOOKUP($A15&$F$3,BasePA_VID!$A$1:$M$316,10,0),"N.A.") -> 0 | I15: =+IFERROR(VLOOKUP($A15&$F$3,BasePA_VID!$A$1:$M$316,11,0),"N.A.") -> 0 | J15: =+IFERROR(VLOOKUP($A15&$F$3,BasePA_VID!$A$1:$M$316,12,0),"N.A.") -> 1,185,465 | K15: =+IFERROR(VLOOKUP($A15&$F$3,BasePA_VID!$A$1:$M$316,13,0),"N.A.") -> 280,223
A16: COLMENA ARL | B16: =+IFERROR(VLOOKUP($A16&$F$3,BasePA_VID!$A$1:$J$316,4,0),"N.A.") -> 155,143 | C16: =+IFERROR(VLOOKUP($A16&$F$3,BasePA_VID!$A$1:$J$316,5,0),"N.A.") -> 19,445 | D16: =+IFERROR(VLOOKUP($A16&$F$3,BasePA_VID!$A$1:$J$316,6,0),"N.A.") -> 174,588 | E16: =+IFERROR(VLOOKUP($A16&$F$3,BasePA_VID!$A$1:$J$316,7,0),"N.A.") -> 328,798 | F16: =+IFERROR(VLOOKUP($A16&$F$3,BasePA_VID!$A$1:$J$316,8,0),"N.A.") -> 23,389 | G16: =+IFERROR(VLOOKUP($A16&$F$3,BasePA_VID!$A$1:$J$316,9,0),"N.A.") -> 305,408 | H16: =+IFERROR(VLOOKUP($A16&$F$3,BasePA_VID!$A$1:$M$316,10,0),"N.A.") -> 0 | I16: =+IFERROR(VLOOKUP($A16&$F$3,BasePA_VID!$A$1:$M$316,11,0),"N.A.") -> 0 | J16: =+IFERROR(VLOOKUP($A16&$F$3,BasePA_VID!$A$1:$M$316,12,0),"N.A.") -> 305,408 | K16: =+IFERROR(VLOOKUP($A16&$F$3,BasePA_VID!$A$1:$M$316,13,0),"N.A.") -> 130,820
A17: COLMENA VIDA | B17: =+IFERROR(VLOOKUP($A17&$F$3,BasePA_VID!$A$1:$J$316,4,0),"N.A.") -> 26,679 | C17: =+IFERROR(VLOOKUP($A17&$F$3,BasePA_VID!$A$1:$J$316,5,0),"N.A.") -> 7,351 | D17: =+IFERROR(VLOOKUP($A17&$F$3,BasePA_VID!$A$1:$J$316,6,0),"N.A.") -> 34,030 | E17: =+IFERROR(VLOOKUP($A17&$F$3,BasePA_VID!$A$1:$J$316,7,0),"N.A.") -> 166,298 | F17: =+IFERROR(VLOOKUP($A17&$F$3,BasePA_VID!$A$1:$J$316,8,0),"N.A.") -> 32,553 | G17: =+IFERROR(VLOOKUP($A17&$F$3,BasePA_VID!$A$1:$J$316,9,0),"N.A.") -> 133,745 | H17: =+IFERROR(VLOOKUP($A17&$F$3,BasePA_VID!$A$1:$M$316,10,0),"N.A.") -> 0 | I17: =+IFERROR(VLOOKUP($A17&$F$3,BasePA_VID!$A$1:$M$316,11,0),"N.A.") -> 2,040 | J17: =+IFERROR(VLOOKUP($A17&$F$3,BasePA_VID!$A$1:$M$316,12,0),"N.A.") -> 135,785 | K17: =+IFERROR(VLOOKUP($A17&$F$3,BasePA_VID!$A$1:$M$316,13,0),"N.A.") -> 101,754
A18: COLSANITAS | B18: =+IFERROR(VLOOKUP($A18&$F$3,BasePA_VID!$A$1:$J$316,4,0),"N.A.") -> 18,632 | C18: =+IFERROR(VLOOKUP($A18&$F$3,BasePA_VID!$A$1:$J$316,5,0),"N.A.") -> 4,027 | D18: =+IFERROR(VLOOKUP($A18&$F$3,BasePA_VID!$A$1:$J$316,6,0),"N.A.") -> 22,659 | E18: =+IFERROR(VLOOKUP($A18&$F$3,BasePA_VID!$A$1:$J$316,7,0),"N.A.") -> 67,684 | F18: =+IFERROR(VLOOKUP($A18&$F$3,BasePA_VID!$A$1:$J$316,8,0),"N.A.") -> 35,642 | G18: =+IFERROR(VLOOKUP($A18&$F$3,BasePA_VID!$A$1:$J$316,9,0),"N.A.") -> 32,042 | H18: =+IFERROR(VLOOKUP($A18&$F$3,BasePA_VID!$A$1:$M$316,10,0),"N.A.") -> 0 | I18: =+IFERROR(VLOOKUP($A18&$F$3,BasePA_VID!$A$1:$M$316,11,0),"N.A.") -> 0 | J18: =+IFERROR(VLOOKUP($A18&$F$3,BasePA_VID!$A$1:$M$316,12,0),"N.A.") -> 32,042 | K18: =+IFERROR(VLOOKUP($A18&$F$3,BasePA_VID!$A$1:$M$316,13,0),"N.A.") -> 9,383
A19: EQUIDAD VIDA | B19: =+IFERROR(VLOOKUP($A19&$F$3,BasePA_VID!$A$1:$J$316,4,0),"N.A.") -> 46,573 | C19: =+IFERROR(VLOOKUP($A19&$F$3,BasePA_VID!$A$1:$J$316,5,0),"N.A.") -> 5,869 | D19: =+IFERROR(VLOOKUP($A19&$F$3,BasePA_VID!$A$1:$J$316,6,0),"N.A.") -> 52,442 | E19: =+IFERROR(VLOOKUP($A19&$F$3,BasePA_VID!$A$1:$J$316,7,0),"N.A.") -> 71,532 | F19: =+IFERROR(VLOOKUP($A19&$F$3,BasePA_VID!$A$1:$J$316,8,0),"N.A.") -> 2,293 | G19: =+IFERROR(VLOOKUP($A19&$F$3,BasePA_VID!$A$1:$J$316,9,0),"N.A.") -> 69,239 | H19: =+IFERROR(VLOOKUP($A19&$F$3,BasePA_VID!$A$1:$M$316,10,0),"N.A.") -> 0 | I19: =+IFERROR(VLOOKUP($A19&$F$3,BasePA_VID!$A$1:$M$316,11,0),"N.A.") -> 0 | J19: =+IFERROR(VLOOKUP($A19&$F$3,BasePA_VID!$A$1:$M$316,12,0),"N.A.") -> 69,239 | K19: =+IFERROR(VLOOKUP($A19&$F$3,BasePA_VID!$A$1:$M$316,13,0),"N.A.") -> 16,797
A20: ESTADO VIDA | B20: =+IFERROR(VLOOKUP($A20&$F$3,BasePA_VID!$A$1:$J$316,4,0),"N.A.") -> 27,908 | C20: =+IFERROR(VLOOKUP($A20&$F$3,BasePA_VID!$A$1:$J$316,5,0),"N.A.") -> 3,796 | D20: =+IFERROR(VLOOKUP($A20&$F$3,BasePA_VID!$A$1:$J$316,6,0),"N.A.") -> 31,704 | E20: =+IFERROR(VLOOKUP($A20&$F$3,BasePA_VID!$A$1:$J$316,7,0),"N.A.") -> 47,383 | F20: =+IFERROR(VLOOKUP($A20&$F$3,BasePA_VID!$A$1:$J$316,8,0),"N.A.") -> 6,242 | G20: =+IFERROR(VLOOKUP($A20&$F$3,BasePA_VID!$A$1:$J$316,9,0),"N.A.") -> 41,140 | H20: =+IFERROR(VLOOKUP($A20&$F$3,BasePA_VID!$A$1:$M$316,10,0),"N.A.") -> 0 | I20: =+IFERROR(VLOOKUP($A20&$F$3,BasePA_VID!$A$1:$M$316,11,0),"N.A.") -> 1,704 | J20: =+IFERROR(VLOOKUP($A20&$F$3,BasePA_VID!$A$1:$M$316,12,0),"N.A.") -> 42,844 | K20: =+IFERROR(VLOOKUP($A20&$F$3,BasePA_VID!$A$1:$M$316,13,0),"N.A.") -> 11,140
A21: GLOBAL | B21: =+IFERROR(VLOOKUP($A21&$F$3,BasePA_VID!$A$1:$J$316,4,0),"N.A.") -> 236,817 | C21: =+IFERROR(VLOOKUP($A21&$F$3,BasePA_VID!$A$1:$J$316,5,0),"N.A.") -> 90,039 | D21: =+IFERROR(VLOOKUP($A21&$F$3,BasePA_VID!$A$1:$J$316,6,0),"N.A.") -> 326,855 | E21: =+IFERROR(VLOOKUP($A21&$F$3,BasePA_VID!$A$1:$J$316,7,0),"N.A.") -> 334,825 | F21: =+IFERROR(VLOOKUP($A21&$F$3,BasePA_VID!$A$1:$J$316,8,0),"N.A.") -> 13,936 | G21: =+IFERROR(VLOOKUP($A21&$F$3,BasePA_VID!$A$1:$J$316,9,0),"N.A.") -> 320,889 | H21: =+IFERROR(VLOOKUP($A21&$F$3,BasePA_VID!$A$1:$M$316,10,0),"N.A.") -> 0 | I21: =+IFERROR(VLOOKUP($A21&$F$3,BasePA_VID!$A$1:$M$316,11,0),"N.A.") -> 11,908 | J21: =+IFERROR(VLOOKUP($A21&$F$3,BasePA_VID!$A$1:$M$316,12,0),"N.A.") -> 332,797 | K21: =+IFERROR(VLOOKUP($A21&$F$3,BasePA_VID!$A$1:$M$316,13,0),"N.A.") -> 5,941
A22: MAPFRE VIDA | B22: =+IFERROR(VLOOKUP($A22&$F$3,BasePA_VID!$A$1:$J$316,4,0),"N.A.") -> 241,232 | C22: =+IFERROR(VLOOKUP($A22&$F$3,BasePA_VID!$A$1:$J$316,5,0),"N.A.") -> 24,614 | D22: =+IFERROR(VLOOKUP($A22&$F$3,BasePA_VID!$A$1:$J$316,6,0),"N.A.") -> 265,846 | E22: =+IFERROR(VLOOKUP($A22&$F$3,BasePA_VID!$A$1:$J$316,7,0),"N.A.") -> 408,752 | F22: =+IFERROR(VLOOKUP($A22&$F$3,BasePA_VID!$A$1:$J$316,8,0),"N.A.") -> 107,465 | G22: =+IFERROR(VLOOKUP($A22&$F$3,BasePA_VID!$A$1:$J$316,9,0),"N.A.") -> 301,287 | H22: =+IFERROR(VLOOKUP($A22&$F$3,BasePA_VID!$A$1:$M$316,10,0),"N.A.") -> 0 | I22: =+IFERROR(VLOOKUP($A22&$F$3,BasePA_VID!$A$1:$M$316,11,0),"N.A.") -> 0 | J22: =+IFERROR(VLOOKUP($A22&$F$3,BasePA_VID!$A$1:$M$316,12,0),"N.A.") -> 301,287 | K22: =+IFERROR(VLOOKUP($A22&$F$3,BasePA_VID!$A$1:$M$316,13,0),"N.A.") -> 35,441
A23: METLIFE | B23: =+IFERROR(VLOOKUP($A23&$F$3,BasePA_VID!$A$1:$J$316,4,0),"N.A.") -> 131,766 | C23: =+IFERROR(VLOOKUP($A23&$F$3,BasePA_VID!$A$1:$J$316,5,0),"N.A.") -> 12,029 | D23: =+IFERROR(VLOOKUP($A23&$F$3,BasePA_VID!$A$1:$J$316,6,0),"N.A.") -> 143,795 | E23: =+IFERROR(VLOOKUP($A23&$F$3,BasePA_VID!$A$1:$J$316,7,0),"N.A.") -> 429,797 | F23: =+IFERROR(VLOOKUP($A23&$F$3,BasePA_VID!$A$1:$J$316,8,0),"N.A.") -> 19,847 | G23: =+IFERROR(VLOOKUP($A23&$F$3,BasePA_VID!$A$1:$J$316,9,0),"N.A.") -> 409,950 | H23: =+IFERROR(VLOOKUP($A23&$F$3,BasePA_VID!$A$1:$M$316,10,0),"N.A.") -> 0 | I23: =+IFERROR(VLOOKUP($A23&$F$3,BasePA_VID!$A$1:$M$316,11,0),"N.A.") -> 5,593 | J23: =+IFERROR(VLOOKUP($A23&$F$3,BasePA_VID!$A$1:$M$316,12,0),"N.A.") -> 415,543 | K23: =+IFERROR(VLOOKUP($A23&$F$3,BasePA_VID!$A$1:$M$316,13,0),"N.A.") -> 271,748
A24: PANAMERICAN VIDA | B24: =+IFERROR(VLOOKUP($A24&$F$3,BasePA_VID!$A$1:$J$316,4,0),"N.A.") -> 50,168 | C24: =+IFERROR(VLOOKUP($A24&$F$3,BasePA_VID!$A$1:$J$316,5,0),"N.A.") -> 8,142 | D24: =+IFERROR(VLOOKUP($A24&$F$3,BasePA_VID!$A$1:$J$316,6,0),"N.A.") -> 58,310 | E24: =+IFERROR(VLOOKUP($A24&$F$3,BasePA_VID!$A$1:$J$316,7,0),"N.A.") -> 91,506 | F24: =+IFERROR(VLOOKUP($A24&$F$3,BasePA_VID!$A$1:$J$316,8,0),"N.A.") -> 21,501 | G24: =+IFERROR(VLOOKUP($A24&$F$3,BasePA_VID!$A$1:$J$316,9,0),"N.A.") -> 70,005 | H24: =+IFERROR(VLOOKUP($A24&$F$3,BasePA_VID!$A$1:$M$316,10,0),"N.A.") -> 0 | I24: =+IFERROR(VLOOKUP($A24&$F$3,BasePA_VID!$A$1:$M$316,11,0),"N.A.") -> 2,403 | J24: =+IFERROR(VLOOKUP($A24&$F$3,BasePA_VID!$A$1:$M$316,12,0),"N.A.") -> 72,408 | K24: =+IFERROR(VLOOKUP($A24&$F$3,BasePA_VID!$A$1:$M$316,13,0),"N.A.") -> 14,098
A25: POSITIVA | B25: =+IFERROR(VLOOKUP($A25&$F$3,BasePA_VID!$A$1:$J$316,4,0),"N.A.") -> 536,319 | C25: =+IFERROR(VLOOKUP($A25&$F$3,BasePA_VID!$A$1:$J$316,5,0),"N.A.") -> 75,037 | D25: =+IFERROR(VLOOKUP($A25&$F$3,BasePA_VID!$A$1:$J$316,6,0),"N.A.") -> 611,355 | E25: =+IFERROR(VLOOKUP($A25&$F$3,BasePA_VID!$A$1:$J$316,7,0),"N.A.") -> 1,370,862 | F25: =+IFERROR(VLOOKUP($A25&$F$3,BasePA_VID!$A$1:$J$316,8,0),"N.A.") -> 442,607 | G25: =+IFERROR(VLOOKUP($A25&$F$3,BasePA_VID!$A$1:$J$316,9,0),"N.A.") -> 928,255 | H25: =+IFERROR(VLOOKUP($A25&$F$3,BasePA_VID!$A$1:$M$316,10,0),"N.A.") -> 0 | I25: =+IFERROR(VLOOKUP($A25&$F$3,BasePA_VID!$A$1:$M$316,11,0),"N.A.") -> 0 | J25: =+IFERROR(VLOOKUP($A25&$F$3,BasePA_VID!$A$1:$M$316,12,0),"N.A.") -> 928,255 | K25: =+IFERROR(VLOOKUP($A25&$F$3,BasePA_VID!$A$1:$M$316,13,0),"N.A.") -> 316,899
A26: SKANDIA | B26: =+IFERROR(VLOOKUP($A26&$F$3,BasePA_VID!$A$1:$J$316,4,0),"N.A.") -> 69,822 | C26: =+IFERROR(VLOOKUP($A26&$F$3,BasePA_VID!$A$1:$J$316,5,0),"N.A.") -> 12,056 | D26: =+IFERROR(VLOOKUP($A26&$F$3,BasePA_VID!$A$1:$J$316,6,0),"N.A.") -> 81,878 | E26: =+IFERROR(VLOOKUP($A26&$F$3,BasePA_VID!$A$1:$J$316,7,0),"N.A.") -> 235,791 | F26: =+IFERROR(VLOOKUP($A26&$F$3,BasePA_VID!$A$1:$J$316,8,0),"N.A.") -> 117,558 | G26: =+IFERROR(VLOOKUP($A26&$F$3,BasePA_VID!$A$1:$J$316,9,0),"N.A.") -> 118,232 | H26: =+IFERROR(VLOOKUP($A26&$F$3,BasePA_VID!$A$1:$M$316,10,0),"N.A.") -> 0 | I26: =+IFERROR(VLOOKUP($A26&$F$3,BasePA_VID!$A$1:$M$316,11,0),"N.A.") -> 0 | J26: =+IFERROR(VLOOKUP($A26&$F$3,BasePA_VID!$A$1:$M$316,12,0),"N.A.") -> 118,232 | K26: =+IFERROR(VLOOKUP($A26&$F$3,BasePA_VID!$A$1:$M$316,13,0),"N.A.") -> 36,355
A27: SURAMERICANA VIDA | B27: =+IFERROR(VLOOKUP($A27&$F$3,BasePA_VID!$A$1:$J$316,4,0),"N.A.") -> 1,568,464 | C27: =+IFERROR(VLOOKUP($A27&$F$3,BasePA_VID!$A$1:$J$316,5,0),"N.A.") -> 203,166 | D27: =+IFERROR(VLOOKUP($A27&$F$3,BasePA_VID!$A$1:$J$316,6,0),"N.A.") -> 1,771,629 | E27: =+IFERROR(VLOOKUP($A27&$F$3,BasePA_VID!$A$1:$J$316,7,0),"N.A.") -> 3,016,717 | F27: =+IFERROR(VLOOKUP($A27&$F$3,BasePA_VID!$A$1:$J$316,8,0),"N.A.") -> 284,958 | G27: =+IFERROR(VLOOKUP($A27&$F$3,BasePA_VID!$A$1:$J$316,9,0),"N.A.") -> 2,731,759 | H27: =+IFERROR(VLOOKUP($A27&$F$3,BasePA_VID!$A$1:$M$316,10,0),"N.A.") -> 0 | I27: =+IFERROR(VLOOKUP($A27&$F$3,BasePA_VID!$A$1:$M$316,11,0),"N.A.") -> 5,272 | J27: =+IFERROR(VLOOKUP($A27&$F$3,BasePA_VID!$A$1:$M$316,12,0),"N.A.") -> 2,737,031 | K27: =+IFERROR(VLOOKUP($A27&$F$3,BasePA_VID!$A$1:$M$316,13,0),"N.A.") -> 965,402

Sheet BaseRS_GEN (hidden)
D1: DEMÁS RAMOS
D2: Riesgo en función de primas | E2: Riesgo en función de siniestros
A3: =+B3&C3 -> ALFA45777 | B3: ALFA | C3: 2025-04-30 | D3: 34,211.74 | E3: 7,936.69
A4: =+B4&C4 -> ALFA45808 | B4: ALFA | C4: 2025-05-31 | D4: 34,443.08 | E4: 7,765.34
A5: ALFA45838 | B5: ALFA | C5: 2025-06-30 | D5: 32,583.23 | E5: 7,871.82
A6: ALLIANZ45777 | B6: ALLIANZ | C6: 2025-04-30 | D6: 184,408.33 | E6: 113,465.63
A7: ALLIANZ45808 | B7: ALLIANZ | C7: 2025-05-31 | D7: 182,548.72 | E7: 113,649.56
A8: ALLIANZ45838 | B8: ALLIANZ | C8: 2025-06-30 | D8: 183,751.36 | E8: 112,867.19
A9: AXA COLPATRIA45777 | B9: AXA COLPATRIA | C9: 2025-04-30 | D9: 331,116.53 | E9: 193,719.12
A10: AXA COLPATRIA45808 | B10: AXA COLPATRIA | C10: 2025-05-31 | D10: 320,794.90 | E10: 195,134.75
A11: AXA COLPATRIA45838 | B11: AXA COLPATRIA | C11: 2025-06-30 | D11: 320,785.30 | E11: 197,163.75
A12: BBVA SEGUROS45777 | B12: BBVA SEGUROS | C12: 2025-04-30 | D12: 29,016.18 | E12: 13,336.52
A13: BBVA SEGUROS45808 | B13: BBVA SEGUROS | C13: 2025-05-31 | D13: 29,167.04 | E13: 13,800.96
A14: BBVA SEGUROS45838 | B14: BBVA SEGUROS | C14: 2025-06-30 | D14: 28,507.16 | E14: 14,318.41
A15: BERKLEY45777 | B15: BERKLEY | C15: 2025-04-30 | D15: 13,977.70 | E15: 2,300.55
A16: BERKLEY45808 | B16: BERKLEY | C16: 2025-05-31 | D16: 14,169.43 | E16: 2,382.70
A17: BERKLEY45838 | B17: BERKLEY | C17: 2025-06-30 | D17: 14,350.83 | E17: 2,402.15
A18: BOLIVAR45777 | B18: BOLIVAR | C18: 2025-04-30 | D18: 229,622.88 | E18: 177,125.54
A19: BOLIVAR45808 | B19: BOLIVAR | C19: 2025-05-31 | D19: 231,260.05 | E19: 178,224.96
A20: BOLIVAR45838 | B20: BOLIVAR | C20: 2025-06-30 | D20: 229,080.93 | E20: 178,547.61
A21: CARDIF45777 | B21: CARDIF | C21: 2025-04-30 | D21: 225,443.89 | E21: 79,619.53
A22: CARDIF45808 | B22: CARDIF | C22: 2025-05-31 | D22: 225,657.75 | E22: 79,965.84
A23: CARDIF45838 | B23: CARDIF | C23: 2025-06-30 | D23: 224,953.76 | E23: 79,365.52
A24: CHUBB45777 | B24: CHUBB | C24: 2025-04-30 | D24: 81,130.26 | E24: 32,455.15
A25: CHUBB45808 | B25: CHUBB | C25: 2025-05-31 | D25: 78,882.58 | E25: 31,173.64
A26: CHUBB45838 | B26: CHUBB | C26: 2025-06-30 | D26: 76,915.31 | E26: 30,079.69
A27: COFACE45777 | B27: COFACE | C27: 2025-04-30 | D27: 2,050.74 | E27: 2,541.37
A28: COFACE45808 | B28: COFACE | C28: 2025-05-31 | D28: 2,009.36 | E28: 2,540.25
A29: COFACE45838 | B29: COFACE | C29: 2025-06-30 | D29: 2,013.73 | E29: 2,539.90
A30: COLMENA45777 | B30: COLMENA | C30: 2025-04-30 | D30: 7,803.39 | E30: 846.73
A31: COLMENA45808 | B31: COLMENA | C31: 2025-05-31 | D31: 8,062.59 | E31: 957.38
A32: COLMENA45838 | B32: COLMENA | C32: 2025-06-30 | D32: 8,142.10 | E32: 996.86
A33: CONFIANZA45777 | B33: CONFIANZA | C33: 2025-04-30 | D33: 20,304.28 | E33: 10,417.66
A34: CONFIANZA45808 | B34: CONFIANZA | C34: 2025-05-31 | D34: 20,352.59 | E34: 10,575.39
A35: CONFIANZA45838 | B35: CONFIANZA | C35: 2025-06-30 | D35: 20,626.72 | E35: 10,646.79
A36: EQUIDAD45777 | B36: EQUIDAD | C36: 2025-04-30 | D36: 52,995.29 | E36: 55,609.13
A37: EQUIDAD45808 | B37: EQUIDAD | C37: 2025-05-31 | D37: 52,273.44 | E37: 54,805.89
A38: EQUIDAD45838 | B38: EQUIDAD | C38: 2025-06-30 | D38: 50,639.62 | E38: 53,995.48
A39: ESTADO45777 | B39: ESTADO | C39: 2025-04-30 | D39: 179,680.76 | E39: 162,615.28
A40: ESTADO45808 | B40: ESTADO | C40: 2025-05-31 | D40: 178,594.96 | E40: 157,192.97
A41: ESTADO45838 | B41: ESTADO | C41: 2025-06-30 | D41: 179,327.70 | E41: 160,435.60
A42: EVEREST45777 | B42: EVEREST | C42: 2025-04-30 | D42: 844.30 | E42: 4.25
A43: EVEREST45808 | B43: EVEREST | C43: 2025-05-31 | D43: 1,198.13 | E43: 7.76
A44: EVEREST45838 | B44: EVEREST | C44: 2025-06-30 | D44: 1,481.03 | E44: 27.35
A45: JMALUCELLI TRAVELERS45777 | B45: JMALUCELLI TRAVELERS | C45: 2025-04-30 | D45: 3,611.76 | E45: 672.53
A46: JMALUCELLI TRAVELERS45808 | B46: JMALUCELLI TRAVELERS | C46: 2025-05-31 | D46: 3,455.54 | E46: 674.91
A47: JMALUCELLI TRAVELERS45838 | B47: JMALUCELLI TRAVELERS | C47: 2025-06-30 | D47: 3,636.10 | E47: 664.27
A48: HDI SEGUROS45777 | B48: HDI SEGUROS | C48: 2025-04-30 | D48: 204,502.21 | E48: 158,313.85
A49: HDI SEGUROS45808 | B49: HDI SEGUROS | C49: 2025-05-31 | D49: 204,070.82 | E49: 157,746.74
A50: HDI SEGUROS45838 | B50: HDI SEGUROS | C50: 2025-06-30 | D50: 206,355.34 | E50: 157,223.26
A51: MAPFRE45777 | B51: MAPFRE | C51: 2025-04-30 | D51: 166,314.51 | E51: 121,396.38
A52: MAPFRE45808 | B52: MAPFRE | C52: 2025-05-31 | D52: 203,855.13 | E52: 147,600.87
A53: MAPFRE45838 | B53: MAPFRE | C53: 2025-06-30 | D53: 199,741.65 | E53: 146,039.89
A54: MUNDIAL45777 | B54: MUNDIAL | C54: 2025-04-30 | D54: 160,067.68 | E54: 97,814.82
A55: MUNDIAL45808 | B55: MUNDIAL | C55: 2025-05-31 | D55: 160,647.09 | E55: 98,392.12
A56: MUNDIAL45838 | B56: MUNDIAL | C56: 2025-06-30 | D56: 162,876.74 | E56: 99,253.68
A57: NACIONAL45777 | B57: NACIONAL | C57: 2025-04-30 | D57: 14,430.46 | E57: 5,535.34
A58: NACIONAL45808 | B58: NACIONAL | C58: 2025-05-31 | D58: 14,409.22 | E58: 5,631.87
A59: NACIONAL45838 | B59: NACIONAL | C59: 2025-06-30 | D59: 14,724.27 | E59: 6,048.74
A60: PREVISORA45777 | B60: PREVISORA | C60: 2025-04-30 | D60: 420,298.22 | E60: 217,762.07
A61: PREVISORA45808 | B61: PREVISORA | C61: 2025-05-31 | D61: 424,070.19 | E61: 226,635.85
A62: PREVISORA45838 | B62: PREVISORA | C62: 2025-06-30 | D62: 412,888.35 | E62: 224,321.54
A63: QUALITAS45777 | B63: QUALITAS | C63: 2025-04-30 | D63: 128.86 | E63: 2.03
A64: QUALITAS45808 | B64: QUALITAS | C64: 2025-05-31 | D64: 234.48 | E64: 3.38
A65: QUALITAS45838 | B65: QUALITAS | C65: 2025-06-30 | D65: 359.81 | E65: 15.22
A66: SBS SEGUROS45777 | B66: SBS SEGUROS | C66: 2025-04-30 | D66: 123,086.29 | E66: 55,471.13
A67: SBS SEGUROS45808 | B67: SBS SEGUROS | C67: 2025-05-31 | D67: 125,719.39 | E67: 55,502.93
A68: SBS SEGUROS45838 | B68: SBS SEGUROS | C68: 2025-06-30 | D68: 127,198.76 | E68: 55,125.23
A69: SEGUREXPO45777 | B69: SEGUREXPO | C69: 2025-04-30 | D69: 6,132.28 | E69: 6,728.47
A70: SEGUREXPO45808 | B70: SEGUREXPO | C70: 2025-05-31 | D70: 6,144.71 | E70: 6,870.40
A71: =+B71&C71 -> SEGUREXPO45838 | B71: SEGUREXPO | C71: 2025-06-30 | D71: 6,225.17 | E71: 6,912.50
A72: SOLIDARIA45777 | B72: SOLIDARIA | C72: 2025-04-30 | D72: 84,538.82 | E72: 42,834.07
A73: SOLIDARIA45808 | B73: SOLIDARIA | C73: 2025-05-31 | D73: 83,492.98 | E73: 42,555.86
A74: SOLIDARIA45838 | B74: SOLIDARIA | C74: 2025-06-30 | D74: 83,081.37 | E74: 42,467.71
A75: SOLUNION45777 | B75: SOLUNION | C75: 2025-04-30 | D75: 9,606.98 | E75: 9,725.48
A76: SOLUNION45808 | B76: SOLUNION | C76: 2025-05-31 | D76: 9,647.05 | E76: 9,876.94
A77: SOLUNION45838 | B77: SOLUNION | C77: 2025-06-30 | D77: 9,843.71 | E77: 10,138.48
A78: SURAMERICANA45777 | B78: SURAMERICANA | C78: 2025-04-30 | D78: 400,759.03 | E78: 301,560.69
A79: SURAMERICANA45808 | B79: SURAMERICANA | C79: 2025-05-31 | D79: 397,440.44 | E79: 301,855.72
A80: SURAMERICANA45838 | B80: SURAMERICANA | C80: 2025-06-30 | D80: 385,892.35 | E80: 295,441.15
A81: ZURICH45777 | B81: ZURICH | C81: 2025-04-30 | D81: 55,531.89 | E81: 24,565.90
A82: ZURICH45808 | B82: ZURICH | C82: 2025-05-31 | D82: 54,574.27 | E82: 24,403.89
A83: ZURICH45838 | B83: ZURICH | C83: 2025-06-30 | D83: 55,698.71 | E83: 24,746.00

Sheet RS_GEN
B1: COMPAÑÍAS DE SEGUROS GENERALES
B2: RIESGO DE SUSCRIPCIÓN
C3: 2025-06-30
B4: CIFRAS EN MILLONES DE PESOS
A5: COMPAÑÍAS | B5: RIESGO DE SUSCRIPCIÓN
B6: Riesgo en función de primas | D6: Riesgo en función de siniestros
A7: ALFA | B7: =+IFERROR(VLOOKUP($A7&$C$3,BaseRS_GEN!$A$3:$G$863,4,0),"N.A.") -> 32,583 | D7: =+IFERROR(VLOOKUP($A7&$C$3,BaseRS_GEN!$A$3:$G$863,5,0),"N.A.") -> 7,872
A8: ALLIANZ | B8: =+IFERROR(VLOOKUP($A8&$C$3,BaseRS_GEN!$A$3:$G$863,4,0),"N.A.") -> 183,751 | D8: =+IFERROR(VLOOKUP($A8&$C$3,BaseRS_GEN!$A$3:$G$863,5,0),"N.A.") -> 112,867
A9: AXA COLPATRIA | B9: =+IFERROR(VLOOKUP($A9&$C$3,BaseRS_GEN!$A$3:$G$863,4,0),"N.A.") -> 320,785 | D9: =+IFERROR(VLOOKUP($A9&$C$3,BaseRS_GEN!$A$3:$G$863,5,0),"N.A.") -> 197,164
A10: BBVA SEGUROS | B10: =+IFERROR(VLOOKUP($A10&$C$3,BaseRS_GEN!$A$3:$G$863,4,0),"N.A.") -> 28,507 | D10: =+IFERROR(VLOOKUP($A10&$C$3,BaseRS_GEN!$A$3:$G$863,5,0),"N.A.") -> 14,318
A11: BERKLEY | B11: =+IFERROR(VLOOKUP($A11&$C$3,BaseRS_GEN!$A$3:$G$863,4,0),"N.A.") -> 14,351 | D11: =+IFERROR(VLOOKUP($A11&$C$3,BaseRS_GEN!$A$3:$G$863,5,0),"N.A.") -> 2,402
A12: BOLIVAR | B12: =+IFERROR(VLOOKUP($A12&$C$3,BaseRS_GEN!$A$3:$G$863,4,0),"N.A.") -> 229,081 | D12: =+IFERROR(VLOOKUP($A12&$C$3,BaseRS_GEN!$A$3:$G$863,5,0),"N.A.") -> 178,548
A13: CARDIF | B13: =+IFERROR(VLOOKUP($A13&$C$3,BaseRS_GEN!$A$3:$G$863,4,0),"N.A.") -> 224,954 | D13: =+IFERROR(VLOOKUP($A13&$C$3,BaseRS_GEN!$A$3:$G$863,5,0),"N.A.") -> 79,366
A14: CHUBB | B14: =+IFERROR(VLOOKUP($A14&$C$3,BaseRS_GEN!$A$3:$G$863,4,0),"N.A.") -> 76,915 | D14: =+IFERROR(VLOOKUP($A14&$C$3,BaseRS_GEN!$A$3:$G$863,5,0),"N.A.") -> 30,080
A15: COFACE | B15: =+IFERROR(VLOOKUP($A15&$C$3,BaseRS_GEN!$A$3:$G$863,4,0),"N.A.") -> 2,014 | D15: =+IFERROR(VLOOKUP($A15&$C$3,BaseRS_GEN!$A$3:$G$863,5,0),"N.A.") -> 2,540
A16: COLMENA | B16: =+IFERROR(VLOOKUP($A16&$C$3,BaseRS_GEN!$A$3:$G$863,4,0),"N.A.") -> 8,142 | D16: =+IFERROR(VLOOKUP($A16&$C$3,BaseRS_GEN!$A$3:$G$863,5,0),"N.A.") -> 997
A17: CONFIANZA | B17: =+IFERROR(VLOOKUP($A17&$C$3,BaseRS_GEN!$A$3:$G$863,4,0),"N.A.") -> 20,627 | D17: =+IFERROR(VLOOKUP($A17&$C$3,BaseRS_GEN!$A$3:$G$863,5,0),"N.A.") -> 10,647
A18: EQUIDAD | B18: =+IFERROR(VLOOKUP($A18&$C$3,BaseRS_GEN!$A$3:$G$863,4,0),"N.A.") -> 50,640 | D18: =+IFERROR(VLOOKUP($A18&$C$3,BaseRS_GEN!$A$3:$G$863,5,0),"N.A.") -> 53,995
A19: ESTADO | B19: =+IFERROR(VLOOKUP($A19&$C$3,BaseRS_GEN!$A$3:$G$863,4,0),"N.A.") -> 179,328 | D19: =+IFERROR(VLOOKUP($A19&$C$3,BaseRS_GEN!$A$3:$G$863,5,0),"N.A.") -> 160,436
A20: EVEREST | B20: =+IFERROR(VLOOKUP($A20&$C$3,BaseRS_GEN!$A$3:$G$863,4,0),"N.A.") -> 1,481 | D20: =+IFERROR(VLOOKUP($A20&$C$3,BaseRS_GEN!$A$3:$G$863,5,0),"N.A.") -> 27
A21: HDI SEGUROS | B21: =+IFERROR(VLOOKUP($A21&$C$3,BaseRS_GEN!$A$3:$G$863,4,0),"N.A.") -> 206,355 | D21: =+IFERROR(VLOOKUP($A21&$C$3,BaseRS_GEN!$A$3:$G$863,5,0),"N.A.") -> 157,223
A22: JMALUCELLI TRAVELERS | B22: =+IFERROR(VLOOKUP($A22&$C$3,BaseRS_GEN!$A$3:$G$863,4,0),"N.A.") -> 3,636 | D22: =+IFERROR(VLOOKUP($A22&$C$3,BaseRS_GEN!$A$3:$G$863,5,0),"N.A.") -> 664
A23: MAPFRE | B23: =+IFERROR(VLOOKUP($A23&$C$3,BaseRS_GEN!$A$3:$G$863,4,0),"N.A.") -> 199,742 | D23: =+IFERROR(VLOOKUP($A23&$C$3,BaseRS_GEN!$A$3:$G$863,5,0),"N.A.") -> 146,040
A24: MUNDIAL | B24: =+IFERROR(VLOOKUP($A24&$C$3,BaseRS_GEN!$A$3:$G$863,4,0),"N.A.") -> 162,877 | D24: =+IFERROR(VLOOKUP($A24&$C$3,BaseRS_GEN!$A$3:$G$863,5,0),"N.A.") -> 99,254
A25: NACIONAL | B25: =+IFERROR(VLOOKUP($A25&$C$3,BaseRS_GEN!$A$3:$G$863,4,0),"N.A.") -> 14,724 | D25: =+IFERROR(VLOOKUP($A25&$C$3,BaseRS_GEN!$A$3:$G$863,5,0),"N.A.") -> 6,049
A26: PREVISORA | B26: =+IFERROR(VLOOKUP($A26&$C$3,BaseRS_GEN!$A$3:$G$863,4,0),"N.A.") -> 412,888 | D26: =+IFERROR(VLOOKUP($A26&$C$3,BaseRS_GEN!$A$3:$G$863,5,0),"N.A.") -> 224,322
A27: QUALITAS | B27: =+IFERROR(VLOOKUP($A27&$C$3,BaseRS_GEN!$A$3:$G$863,4,0),"N.A.") -> 360 | D27: =+IFERROR(VLOOKUP($A27&$C$3,BaseRS_GEN!$A$3:$G$863,5,0),"N.A.") -> 15
A28: SBS SEGUROS | B28: =+IFERROR(VLOOKUP($A28&$C$3,BaseRS_GEN!$A$3:$G$863,4,0),"N.A.") -> 127,199 | D28: =+IFERROR(VLOOKUP($A28&$C$3,BaseRS_GEN!$A$3:$G$863,5,0),"N.A.") -> 55,125
A29: SEGUREXPO | B29: =+IFERROR(VLOOKUP($A29&$C$3,BaseRS_GEN!$A$3:$G$863,4,0),"N.A.") -> 6,225 | D29: =+IFERROR(VLOOKUP($A29&$C$3,BaseRS_GEN!$A$3:$G$863,5,0),"N.A.") -> 6,913
A30: SOLIDARIA | B30: =+IFERROR(VLOOKUP($A30&$C$3,BaseRS_GEN!$A$3:$G$863,4,0),"N.A.") -> 83,081 | D30: =+IFERROR(VLOOKUP($A30&$C$3,BaseRS_GEN!$A$3:$G$863,5,0),"N.A.") -> 42,468
A31: SOLUNION | B31: =+IFERROR(VLOOKUP($A31&$C$3,BaseRS_GEN!$A$3:$G$863,4,0),"N.A.") -> 9,844 | D31: =+IFERROR(VLOOKUP($A31&$C$3,BaseRS_GEN!$A$3:$G$863,5,0),"N.A.") -> 10,138
A32: SURAMERICANA | B32: =+IFERROR(VLOOKUP($A32&$C$3,BaseRS_GEN!$A$3:$G$863,4,0),"N.A.") -> 385,892 | D32: =+IFERROR(VLOOKUP($A32&$C$3,BaseRS_GEN!$A$3:$G$863,5,0),"N.A.") -> 295,441
A33: ZURICH | B33: =+IFERROR(VLOOKUP($A33&$C$3,BaseRS_GEN!$A$3:$G$863,4,0),"N.A.") -> 55,699 | D33: =+IFERROR(VLOOKUP($A33&$C$3,BaseRS_GEN!$A$3:$G$863,5,0),"N.A.") -> 24,746

Sheet BaseRS_VID (hidden)
D1: RAMOS CON RES. MAT. | E1: RIESGOS PROFESIONALES | H1: DEMÁS RAMOS
D2: Riesgo en función de reserva matemáticas (VIDA) | E2: Riesgo en función de primas | F2: Riesgo en función de siniestros | G2: Riesgo en función de reserva matemáticas (VIDA) | H2: Riesgo en función de primas | I2: Riesgo en función de siniestros
A3: =+B3&C3 -> ALFA VIDA45777 | B3: ALFA VIDA | C3: 2025-04-30 | D3: 1,535,626.90 | E3: 3,290.37 | F3: 2,265.79 | G3: 4,143.18 | H3: 88,063.11 | I3: 46,449.78
A4: =+B4&C4 -> ALFA VIDA45808 | B4: ALFA VIDA | C4: 2025-05-31 | D4: 1,551,213.51 | E4: 3,313.22 | F4: 2,558.18 | G4: 4,163.30 | H4: 88,834.25 | I4: 46,507.02
A5: ALFA VIDA45838 | B5: ALFA VIDA | C5: 2025-06-30 | D5: 1,568,238.06 | E5: 3,289.07 | F5: 2,609.22 | G5: 4,138.08 | H5: 90,671.25 | I5: 46,861.94
A6: ALLIANZ VIDA45777 | B6: ALLIANZ VIDA | C6: 2025-04-30 | D6: 62,644.43 | E6: 0.00 | F6: 1,765.97 | G6: 6,966.90 | H6: 111,606.01 | I6: 102,234.34
A7: ALLIANZ VIDA45808 | B7: ALLIANZ VIDA | C7: 2025-05-31 | D7: 62,173.33 | E7: 0.00 | F7: 1,739.83 | G7: 6,985.14 | H7: 111,785.36 | I7: 102,620.60
A8: ALLIANZ VIDA45838 | B8: ALLIANZ VIDA | C8: 2025-06-30 | D8: 62,046.11 | E8: 0.00 | F8: 1,724.51 | G8: 6,978.79 | H8: 113,318.27 | I8: 103,586.29
A9: ANDINA45777 | B9: ANDINA | C9: 2025-04-30 | D9: 32,879.83 | E9: 0.00 | F9: 0.00 | G9: 0.00 | H9: 0.00 | I9: 0.00
A10: ANDINA45808 | B10: ANDINA | C10: 2025-05-31 | D10: 36,707.62 | E10: 0.00 | F10: 0.00 | G10: 0.00 | H10: 0.00 | I10: 0.00
A11: ANDINA45838 | B11: ANDINA | C11: 2025-06-30 | D11: 41,164.44 | E11: 0.00 | F11: 0.00 | G11: 0.00 | H11: 0.00 | I11: 0.00
A12: ASULADO45777 | B12: ASULADO | C12: 2025-04-30 | D12: 632,517.82 | E12: 0.00 | F12: 0.00 | G12: 0.00 | H12: 0.00 | I12: 0.00
A13: ASULADO45808 | B13: ASULADO | C13: 2025-05-31 | D13: 647,321.67 | E13: 0.00 | F13: 0.00 | G13: 0.00 | H13: 0.00 | I13: 0.00
A14: ASULADO45838 | B14: ASULADO | C14: 2025-06-30 | D14: 657,423.58 | E14: 0.00 | F14: 0.00 | G14: 0.00 | H14: 0.00 | I14: 0.00
A15: AURORA VIDA45777 | B15: AURORA VIDA | C15: 2025-04-30 | D15: 14.18 | E15: 278.93 | F15: 0.00 | G15: 676.58 | H15: 2,594.27 | I15: 807.93
A16: AURORA VIDA45808 | B16: AURORA VIDA | C16: 2025-05-31 | D16: 14.43 | E16: 300.77 | F16: 0.00 | G16: 627.75 | H16: 2,699.27 | I16: 819.23
A17: AURORA VIDA45838 | B17: AURORA VIDA | C17: 2025-06-30 | D17: 14.49 | E17: 323.16 | F17: 0.00 | G17: 622.85 | H17: 2,844.65 | I17: 848.95
A18: AXA COLPATRIA VIDA45777 | B18: AXA COLPATRIA VIDA | C18: 2025-04-30 | D18: 23,421.58 | E18: 130,126.63 | F18: 97,061.86 | G18: 78,357.80 | H18: 48,445.99 | I18: 18,629.23
A19: AXA COLPATRIA VIDA45808 | B19: AXA COLPATRIA VIDA | C19: 2025-05-31 | D19: 23,468.60 | E19: 131,654.63 | F19: 99,994.20 | G19: 79,027.16 | H19: 49,643.94 | I19: 19,451.27
A20: AXA COLPATRIA VIDA45838 | B20: AXA COLPATRIA VIDA | C20: 2025-06-30 | D20: 23,435.60 | E20: 132,642.47 | F20: 102,255.22 | G20: 79,767.82 | H20: 51,439.27 | I20: 20,339.57
A21: BBVA SEGUROS VIDA45777 | B21: BBVA SEGUROS VIDA | C21: 2025-04-30 | D21: 78,905.33 | E21: 0.00 | F21: 917.11 | G21: 3,405.84 | H21: 59,876.73 | I21: 24,758.00
A22: BBVA SEGUROS VIDA45808 | B22: BBVA SEGUROS VIDA | C22: 2025-05-31 | D22: 79,395.22 | E22: 0.00 | F22: 922.92 | G22: 3,424.81 | H22: 62,587.62 | I22: 25,843.24
A23: BBVA SEGUROS VIDA45838 | B23: BBVA SEGUROS VIDA | C23: 2025-06-30 | D23: 79,774.15 | E23: 0.00 | F23: 934.48 | G23: 3,426.50 | H23: 61,912.27 | I23: 25,740.42
A24: BMI COLOMBIA45777 | B24: BMI COLOMBIA | C24: 2025-04-30 | D24: 5,834.84 | E24: 0.00 | F24: 0.00 | G24: 0.00 | H24: 3,930.87 | I24: 1,817.27
A25: BMI COLOMBIA45808 | B25: BMI COLOMBIA | C25: 2025-05-31 | D25: 5,112.86 | E25: 0.00 | F25: 0.00 | G25: 0.00 | H25: 4,028.15 | I25: 1,772.10
A26: BMI COLOMBIA45838 | B26: BMI COLOMBIA | C26: 2025-06-30 | D26: 5,135.41 | E26: 0.00 | F26: 0.00 | G26: 0.00 | H26: 4,053.92 | I26: 1,854.89
A27: BOLIVAR VIDA45777 | B27: BOLIVAR VIDA | C27: 2025-04-30 | D27: 393,013.13 | E27: 94,252.67 | F27: 53,536.39 | G27: 46,743.08 | H27: 161,823.13 | I27: 91,360.39
A28: BOLIVAR VIDA45808 | B28: BOLIVAR VIDA | C28: 2025-05-31 | D28: 398,921.89 | E28: 95,549.67 | F28: 55,540.89 | G28: 47,074.32 | H28: 162,839.00 | I28: 91,378.09
A29: BOLIVAR VIDA45838 | B29: BOLIVAR VIDA | C29: 2025-06-30 | D29: 402,590.12 | E29: 97,171.55 | F29: 54,874.49 | G29: 47,404.09 | H29: 164,616.54 | I29: 91,125.86
A30: COLMENA ARL45777 | B30: COLMENA ARL | C30: 2025-04-30 | D30: 0.00 | E30: 100,629.25 | F30: 43,756.34 | G30: 53,598.16 | H30: 0.00 | I30: 0.00
A31: COLMENA ARL45808 | B31: COLMENA ARL | C31: 2025-05-31 | D31: 0.00 | E31: 100,507.31 | F31: 43,024.70 | G31: 54,049.14 | H31: 0.00 | I31: 0.00
A32: COLMENA ARL45838 | B32: COLMENA ARL | C32: 2025-06-30 | D32: 0.00 | E32: 100,753.31 | F32: 43,405.63 | G32: 54,389.63 | H32: 0.00 | I32: 0.00
A33: COLMENA VIDA45777 | B33: COLMENA VIDA | C33: 2025-04-30 | D33: 1,223.11 | E33: 0.00 | F33: 0.00 | G33: 0.00 | H33: 25,397.10 | I33: 9,383.24
A34: COLMENA VIDA45808 | B34: COLMENA VIDA | C34: 2025-05-31 | D34: 1,233.38 | E34: 0.00 | F34: 0.00 | G34: 0.00 | H34: 24,992.02 | I34: 9,274.54
A35: COLMENA VIDA45838 | B35: COLMENA VIDA | C35: 2025-06-30 | D35: 1,239.05 | E35: 0.00 | F35: 0.00 | G35: 0.00 | H35: 25,439.76 | I35: 9,260.94
A36: COLSANITAS45777 | B36: COLSANITAS | C36: 2025-04-30 | D36: 0.00 | E36: 6,096.52 | F36: 2,198.23 | G36: 48.50 | H36: 11,347.03 | I36: 2,670.51
A37: COLSANITAS45808 | B37: COLSANITAS | C37: 2025-05-31 | D37: 0.00 | E37: 6,287.78 | F37: 2,280.23 | G37: 48.61 | H37: 11,606.91 | I37: 2,876.61
A38: COLSANITAS45838 | B38: COLSANITAS | C38: 2025-06-30 | D38: 0.00 | E38: 6,485.58 | F38: 2,293.20 | G38: 48.74 | H38: 12,097.44 | I38: 3,122.23
A39: EQUIDAD VIDA45777 | B39: EQUIDAD VIDA | C39: 2025-04-30 | D39: 0.00 | E39: 10,424.46 | F39: 11,880.87 | G39: 18,106.43 | H39: 16,251.25 | I39: 9,765.93
A40: EQUIDAD VIDA45808 | B40: EQUIDAD VIDA | C40: 2025-05-31 | D40: 0.00 | E40: 10,476.06 | F40: 11,959.88 | G40: 18,145.78 | H40: 16,352.53 | I40: 9,786.21
A41: EQUIDAD VIDA45838 | B41: EQUIDAD VIDA | C41: 2025-06-30 | D41: 0.00 | E41: 10,506.37 | F41: 11,847.60 | G41: 18,182.33 | H41: 16,543.22 | I41: 9,992.18
A42: ESTADO VIDA45777 | B42: ESTADO VIDA | C42: 2025-04-30 | D42: 1,462.69 | E42: 0.00 | F42: 238.21 | G42: 1,525.23 | H42: 24,306.84 | I42: 14,014.06
A43: ESTADO VIDA45808 | B43: ESTADO VIDA | C43: 2025-05-31 | D43: 1,470.34 | E43: 0.00 | F43: 241.41 | G43: 1,523.26 | H43: 24,553.06 | I43: 14,047.45
A44: ESTADO VIDA45838 | B44: ESTADO VIDA | C44: 2025-06-30 | D44: 1,480.80 | E44: 0.00 | F44: 249.64 | G44: 1,528.34 | H44: 24,649.67 | I44: 14,157.47
A45: GLOBAL45777 | B45: GLOBAL | C45: 2025-04-30 | D45: 227,030.29 | E45: 0.00 | F45: 75.68 | G45: 375.77 | H45: 1,458.32 | I45: 429.69
A46: GLOBAL45808 | B46: GLOBAL | C46: 2025-05-31 | D46: 228,572.76 | E46: 0.00 | F46: 75.20 | G46: 378.54 | H46: 1,428.37 | I46: 445.34
A47: GLOBAL45838 | B47: GLOBAL | C47: 2025-06-30 | D47: 229,020.95 | E47: 0.00 | F47: 74.58 | G47: 379.57 | H47: 1,573.14 | I47: 456.29
A48: MAPFRE VIDA45777 | B48: MAPFRE VIDA | C48: 2025-04-30 | D48: 210,333.07 | E48: 17.83 | F48: 751.73 | G48: 5,773.88 | H48: 19,238.05 | I48: 10,295.94
A49: MAPFRE VIDA45808 | B49: MAPFRE VIDA | C49: 2025-05-31 | D49: 210,939.58 | E49: 15.29 | F49: 696.37 | G49: 5,791.77 | H49: 19,132.70 | I49: 10,277.58
A50: MAPFRE VIDA45838 | B50: MAPFRE VIDA | C50: 2025-06-30 | D50: 211,660.49 | E50: 13.07 | F50: 647.00 | G50: 5,795.95 | H50: 18,952.83 | I50: 10,239.50
A51: METLIFE45777 | B51: METLIFE | C51: 2025-04-30 | D51: 82,299.69 | E51: 0.00 | F51: 0.00 | G51: 0.00 | H51: 49,997.37 | I51: 16,994.33
A52: METLIFE45808 | B52: METLIFE | C52: 2025-05-31 | D52: 83,324.66 | E52: 0.00 | F52: 0.00 | G52: 0.00 | H52: 49,274.22 | I52: 17,474.55
A53: METLIFE45838 | B53: METLIFE | C53: 2025-06-30 | D53: 84,144.22 | E53: 0.00 | F53: 0.00 | G53: 0.00 | H53: 47,544.88 | I53: 17,223.25
A54: PANAMERICAN VIDA45777 | B54: PANAMERICAN VIDA | C54: 2025-04-30 | D54: 1,545.43 | E54: 0.00 | F54: 0.00 | G54: 0.00 | H54: 44,578.86 | I54: 15,459.03
A55: PANAMERICAN VIDA45808 | B55: PANAMERICAN VIDA | C55: 2025-05-31 | D55: 1,571.77 | E55: 0.00 | F55: 0.00 | G55: 0.00 | H55: 46,451.26 | I55: 15,642.94
A56: PANAMERICAN VIDA45838 | B56: PANAMERICAN VIDA | C56: 2025-06-30 | D56: 1,585.17 | E56: 0.00 | F56: 0.00 | G56: 0.00 | H56: 48,582.58 | I56: 15,899.43
A57: POSITIVA45777 | B57: POSITIVA | C57: 2025-04-30 | D57: 99,193.77 | E57: 182,080.09 | F57: 147,154.02 | G57: 146,509.86 | H57: 41,626.06 | I57: 34,346.06
A58: POSITIVA45808 | B58: POSITIVA | C58: 2025-05-31 | D58: 99,267.74 | E58: 182,603.66 | F58: 149,724.95 | G58: 147,460.80 | H58: 42,049.18 | I58: 34,562.99
A59: POSITIVA45838 | B59: POSITIVA | C59: 2025-06-30 | D59: 98,292.19 | E59: 182,396.17 | F59: 152,567.60 | G59: 148,260.92 | H59: 42,378.91 | I59: 35,079.54
A60: SKANDIA45777 | B60: SKANDIA | C60: 2025-04-30 | D60: 67,518.69 | E60: 0.00 | F60: 0.00 | G60: 0.00 | H60: 0.00 | I60: 0.00
A61: SKANDIA45808 | B61: SKANDIA | C61: 2025-05-31 | D61: 68,852.09 | E61: 0.00 | F61: 0.00 | G61: 0.00 | H61: 0.00 | I61: 0.00
A62: SKANDIA45838 | B62: SKANDIA | C62: 2025-06-30 | D62: 69,821.95 | E62: 0.00 | F62: 0.00 | G62: 0.00 | H62: 0.00 | I62: 0.00
A63: SURAMERICANA VIDA45777 | B63: SURAMERICANA VIDA | C63: 2025-04-30 | D63: 234,436.52 | E63: 297,095.57 | F63: 201,257.84 | G63: 184,967.21 | H63: 776,817.74 | I63: 562,791.19
A64: SURAMERICANA VIDA45808 | B64: SURAMERICANA VIDA | C64: 2025-05-31 | D64: 235,402.44 | E64: 298,299.26 | F64: 203,053.54 | G64: 186,346.38 | H64: 784,920.91 | I64: 571,576.93
A65: SURAMERICANA VIDA45838 | B65: SURAMERICANA VIDA | C65: 2025-06-30 | D65: 235,154.88 | E65: 300,227.48 | F65: 204,826.48 | G65: 187,378.28 | H65: 793,458.94 | I65: 574,937.90

Sheet RS_VID
B1: COMPAÑÍAS DE SEGUROS DE VIDA
D2: RIESGO DE SUSCRIPCIÓN
D3: 2025-06-30
D4: CIFRAS EN MILLONES DE PESOS
A5: COMPAÑÍAS | B5: RAMOS CON RESERVA MATEMÁTICA | C5: RIESGOS PROFESIONALES | F5: DEMÁS RAMOS
B6: Riesgo en función de Reserva Matemática | C6: Riesgo en función de primas | D6: Riesgo en función de siniestros | E6: Riesgo en función de Reserva Matemática | F6: Riesgo en función de primas | G6: Riesgo en función de siniestros
A7: ALFA VIDA | B7: =+IFERROR(VLOOKUP($A7&$D$3,BaseRS_VID!$A$3:$I$913,4,0),"N.A.") -> 1,568,238 | C7: =+IFERROR(VLOOKUP($A7&$D$3,BaseRS_VID!$A$3:$I$913,5,0),"N.A.") -> 3,289 | D7: =+IFERROR(VLOOKUP($A7&$D$3,BaseRS_VID!$A$3:$I$913,6,0),"N.A.") -> 2,609 | E7: =+IFERROR(VLOOKUP($A7&$D$3,BaseRS_VID!$A$3:$I$913,7,0),"N.A.") -> 4,138 | F7: =+IFERROR(VLOOKUP($A7&$D$3,BaseRS_VID!$A$3:$I$913,8,0),"N.A.") -> 90,671 | G7: =+IFERROR(VLOOKUP($A7&$D$3,BaseRS_VID!$A$3:$I$913,9,0),"N.A.") -> 46,862
A8: ALLIANZ VIDA | B8: =+IFERROR(VLOOKUP($A8&$D$3,BaseRS_VID!$A$3:$I$913,4,0),"N.A.") -> 62,046 | C8: =+IFERROR(VLOOKUP($A8&$D$3,BaseRS_VID!$A$3:$I$913,5,0),"N.A.") -> 0 | D8: =+IFERROR(VLOOKUP($A8&$D$3,BaseRS_VID!$A$3:$I$913,6,0),"N.A.") -> 1,725 | E8: =+IFERROR(VLOOKUP($A8&$D$3,BaseRS_VID!$A$3:$I$913,7,0),"N.A.") -> 6,979 | F8: =+IFERROR(VLOOKUP($A8&$D$3,BaseRS_VID!$A$3:$I$913,8,0),"N.A.") -> 113,318 | G8: =+IFERROR(VLOOKUP($A8&$D$3,BaseRS_VID!$A$3:$I$913,9,0),"N.A.") -> 103,586
A9: ASULADO | B9: =+IFERROR(VLOOKUP($A9&$D$3,BaseRS_VID!$A$3:$I$913,4,0),"N.A.") -> 657,424 | C9: =+IFERROR(VLOOKUP($A9&$D$3,BaseRS_VID!$A$3:$I$913,5,0),"N.A.") -> 0 | D9: =+IFERROR(VLOOKUP($A9&$D$3,BaseRS_VID!$A$3:$I$913,6,0),"N.A.") -> 0 | E9: =+IFERROR(VLOOKUP($A9&$D$3,BaseRS_VID!$A$3:$I$913,7,0),"N.A.") -> 0 | F9: =+IFERROR(VLOOKUP($A9&$D$3,BaseRS_VID!$A$3:$I$913,8,0),"N.A.") -> 0 | G9: =+IFERROR(VLOOKUP($A9&$D$3,BaseRS_VID!$A$3:$I$913,9,0),"N.A.") -> 0
A10: ANDINA | B10: =+IFERROR(VLOOKUP($A10&$D$3,BaseRS_VID!$A$3:$I$913,4,0),"N.A.") -> 41,164 | C10: =+IFERROR(VLOOKUP($A10&$D$3,BaseRS_VID!$A$3:$I$913,5,0),"N.A.") -> 0 | D10: =+IFERROR(VLOOKUP($A10&$D$3,BaseRS_VID!$A$3:$I$913,6,0),"N.A.") -> 0 | E10: =+IFERROR(VLOOKUP($A10&$D$3,BaseRS_VID!$A$3:$I$913,7,0),"N.A.") -> 0 | F10: =+IFERROR(VLOOKUP($A10&$D$3,BaseRS_VID!$A$3:$I$913,8,0),"N.A.") -> 0 | G10: =+IFERROR(VLOOKUP($A10&$D$3,BaseRS_VID!$A$3:$I$913,9,0),"N.A.") -> 0
A11: AURORA VIDA | B11: =+IFERROR(VLOOKUP($A11&$D$3,BaseRS_VID!$A$3:$I$913,4,0),"N.A.") -> 14 | C11: =+IFERROR(VLOOKUP($A11&$D$3,BaseRS_VID!$A$3:$I$913,5,0),"N.A.") -> 323 | D11: =+IFERROR(VLOOKUP($A11&$D$3,BaseRS_VID!$A$3:$I$913,6,0),"N.A.") -> 0 | E11: =+IFERROR(VLOOKUP($A11&$D$3,BaseRS_VID!$A$3:$I$913,7,0),"N.A.") -> 623 | F11: =+IFERROR(VLOOKUP($A11&$D$3,BaseRS_VID!$A$3:$I$913,8,0),"N.A.") -> 2,845 | G11: =+IFERROR(VLOOKUP($A11&$D$3,BaseRS_VID!$A$3:$I$913,9,0),"N.A.") -> 849
A12: AXA COLPATRIA VIDA | B12: =+IFERROR(VLOOKUP($A12&$D$3,BaseRS_VID!$A$3:$I$913,4,0),"N.A.") -> 23,436 | C12: =+IFERROR(VLOOKUP($A12&$D$3,BaseRS_VID!$A$3:$I$913,5,0),"N.A.") -> 132,642 | D12: =+IFERROR(VLOOKUP($A12&$D$3,BaseRS_VID!$A$3:$I$913,6,0),"N.A.") -> 102,255 | E12: =+IFERROR(VLOOKUP($A12&$D$3,BaseRS_VID!$A$3:$I$913,7,0),"N.A.") -> 79,768 | F12: =+IFERROR(VLOOKUP($A12&$D$3,BaseRS_VID!$A$3:$I$913,8,0),"N.A.") -> 51,439 | G12: =+IFERROR(VLOOKUP($A12&$D$3,BaseRS_VID!$A$3:$I$913,9,0),"N.A.") -> 20,340
A13: BBVA SEGUROS VIDA | B13: =+IFERROR(VLOOKUP($A13&$D$3,BaseRS_VID!$A$3:$I$913,4,0),"N.A.") -> 79,774 | C13: =+IFERROR(VLOOKUP($A13&$D$3,BaseRS_VID!$A$3:$I$913,5,0),"N.A.") -> 0 | D13: =+IFERROR(VLOOKUP($A13&$D$3,BaseRS_VID!$A$3:$I$913,6,0),"N.A.") -> 934 | E13: =+IFERROR(VLOOKUP($A13&$D$3,BaseRS_VID!$A$3:$I$913,7,0),"N.A.") -> 3,427 | F13: =+IFERROR(VLOOKUP($A13&$D$3,BaseRS_VID!$A$3:$I$913,8,0),"N.A.") -> 61,912 | G13: =+IFERROR(VLOOKUP($A13&$D$3,BaseRS_VID!$A$3:$I$913,9,0),"N.A.") -> 25,740
A14: BMI COLOMBIA | B14: =+IFERROR(VLOOKUP($A14&$D$3,BaseRS_VID!$A$3:$I$913,4,0),"N.A.") -> 5,135 | C14: =+IFERROR(VLOOKUP($A14&$D$3,BaseRS_VID!$A$3:$I$913,5,0),"N.A.") -> 0 | D14: =+IFERROR(VLOOKUP($A14&$D$3,BaseRS_VID!$A$3:$I$913,6,0),"N.A.") -> 0 | E14: =+IFERROR(VLOOKUP($A14&$D$3,BaseRS_VID!$A$3:$I$913,7,0),"N.A.") -> 0 | F14: =+IFERROR(VLOOKUP($A14&$D$3,BaseRS_VID!$A$3:$I$913,8,0),"N.A.") -> 4,054 | G14: =+IFERROR(VLOOKUP($A14&$D$3,BaseRS_VID!$A$3:$I$913,9,0),"N.A.") -> 1,855
A15: BOLIVAR VIDA | B15: =+IFERROR(VLOOKUP($A15&$D$3,BaseRS_VID!$A$3:$I$913,4,0),"N.A.") -> 402,590 | C15: =+IFERROR(VLOOKUP($A15&$D$3,BaseRS_VID!$A$3:$I$913,5,0),"N.A.") -> 97,172 | D15: =+IFERROR(VLOOKUP($A15&$D$3,BaseRS_VID!$A$3:$I$913,6,0),"N.A.") -> 54,874 | E15: =+IFERROR(VLOOKUP($A15&$D$3,BaseRS_VID!$A$3:$I$913,7,0),"N.A.") -> 47,404 | F15: =+IFERROR(VLOOKUP($A15&$D$3,BaseRS_VID!$A$3:$I$913,8,0),"N.A.") -> 164,617 | G15: =+IFERROR(VLOOKUP($A15&$D$3,BaseRS_VID!$A$3:$I$913,9,0),"N.A.") -> 91,126
A16: COLMENA ARL | B16: =+IFERROR(VLOOKUP($A16&$D$3,BaseRS_VID!$A$3:$I$913,4,0),"N.A.") -> 0 | C16: =+IFERROR(VLOOKUP($A16&$D$3,BaseRS_VID!$A$3:$I$913,5,0),"N.A.") -> 100,753 | D16: =+IFERROR(VLOOKUP($A16&$D$3,BaseRS_VID!$A$3:$I$913,6,0),"N.A.") -> 43,406 | E16: =+IFERROR(VLOOKUP($A16&$D$3,BaseRS_VID!$A$3:$I$913,7,0),"N.A.") -> 54,390 | F16: =+IFERROR(VLOOKUP($A16&$D$3,BaseRS_VID!$A$3:$I$913,8,0),"N.A.") -> 0 | G16: =+IFERROR(VLOOKUP($A16&$D$3,BaseRS_VID!$A$3:$I$913,9,0),"N.A.") -> 0
A17: COLMENA VIDA | B17: =+IFERROR(VLOOKUP($A17&$D$3,BaseRS_VID!$A$3:$I$913,4,0),"N.A.") -> 1,239 | C17: =+IFERROR(VLOOKUP($A17&$D$3,BaseRS_VID!$A$3:$I$913,5,0),"N.A.") -> 0 | D17: =+IFERROR(VLOOKUP($A17&$D$3,BaseRS_VID!$A$3:$I$913,6,0),"N.A.") -> 0 | E17: =+IFERROR(VLOOKUP($A17&$D$3,BaseRS_VID!$A$3:$I$913,7,0),"N.A.") -> 0 | F17: =+IFERROR(VLOOKUP($A17&$D$3,BaseRS_VID!$A$3:$I$913,8,0),"N.A.") -> 25,440 | G17: =+IFERROR(VLOOKUP($A17&$D$3,BaseRS_VID!$A$3:$I$913,9,0),"N.A.") -> 9,261
A18: COLSANITAS | B18: =+IFERROR(VLOOKUP($A18&$D$3,BaseRS_VID!$A$3:$I$913,4,0),"N.A.") -> 0 | C18: =+IFERROR(VLOOKUP($A18&$D$3,BaseRS_VID!$A$3:$I$913,5,0),"N.A.") -> 6,486 | D18: =+IFERROR(VLOOKUP($A18&$D$3,BaseRS_VID!$A$3:$I$913,6,0),"N.A.") -> 2,293 | E18: =+IFERROR(VLOOKUP($A18&$D$3,BaseRS_VID!$A$3:$I$913,7,0),"N.A.") -> 49 | F18: =+IFERROR(VLOOKUP($A18&$D$3,BaseRS_VID!$A$3:$I$913,8,0),"N.A.") -> 12,097 | G18: =+IFERROR(VLOOKUP($A18&$D$3,BaseRS_VID!$A$3:$I$913,9,0),"N.A.") -> 3,122
A19: EQUIDAD VIDA | B19: =+IFERROR(VLOOKUP($A19&$D$3,BaseRS_VID!$A$3:$I$913,4,0),"N.A.") -> 0 | C19: =+IFERROR(VLOOKUP($A19&$D$3,BaseRS_VID!$A$3:$I$913,5,0),"N.A.") -> 10,506 | D19: =+IFERROR(VLOOKUP($A19&$D$3,BaseRS_VID!$A$3:$I$913,6,0),"N.A.") -> 11,848 | E19: =+IFERROR(VLOOKUP($A19&$D$3,BaseRS_VID!$A$3:$I$913,7,0),"N.A.") -> 18,182 | F19: =+IFERROR(VLOOKUP($A19&$D$3,BaseRS_VID!$A$3:$I$913,8,0),"N.A.") -> 16,543 | G19: =+IFERROR(VLOOKUP($A19&$D$3,BaseRS_VID!$A$3:$I$913,9,0),"N.A.") -> 9,992
A20: ESTADO VIDA | B20: =+IFERROR(VLOOKUP($A20&$D$3,BaseRS_VID!$A$3:$I$913,4,0),"N.A.") -> 1,481 | C20: =+IFERROR(VLOOKUP($A20&$D$3,BaseRS_VID!$A$3:$I$913,5,0),"N.A.") -> 0 | D20: =+IFERROR(VLOOKUP($A20&$D$3,BaseRS_VID!$A$3:$I$913,6,0),"N.A.") -> 250 | E20: =+IFERROR(VLOOKUP($A20&$D$3,BaseRS_VID!$A$3:$I$913,7,0),"N.A.") -> 1,528 | F20: =+IFERROR(VLOOKUP($A20&$D$3,BaseRS_VID!$A$3:$I$913,8,0),"N.A.") -> 24,650 | G20: =+IFERROR(VLOOKUP($A20&$D$3,BaseRS_VID!$A$3:$I$913,9,0),"N.A.") -> 14,157
A21: GLOBAL | B21: =+IFERROR(VLOOKUP($A21&$D$3,BaseRS_VID!$A$3:$I$913,4,0),"N.A.") -> 229,021 | C21: =+IFERROR(VLOOKUP($A21&$D$3,BaseRS_VID!$A$3:$I$913,5,0),"N.A.") -> 0 | D21: =+IFERROR(VLOOKUP($A21&$D$3,BaseRS_VID!$A$3:$I$913,6,0),"N.A.") -> 75 | E21: =+IFERROR(VLOOKUP($A21&$D$3,BaseRS_VID!$A$3:$I$913,7,0),"N.A.") -> 380 | F21: =+IFERROR(VLOOKUP($A21&$D$3,BaseRS_VID!$A$3:$I$913,8,0),"N.A.") -> 1,573 | G21: =+IFERROR(VLOOKUP($A21&$D$3,BaseRS_VID!$A$3:$I$913,9,0),"N.A.") -> 456
A22: MAPFRE VIDA | B22: =+IFERROR(VLOOKUP($A22&$D$3,BaseRS_VID!$A$3:$I$913,4,0),"N.A.") -> 211,660 | C22: =+IFERROR(VLOOKUP($A22&$D$3,BaseRS_VID!$A$3:$I$913,5,0),"N.A.") -> 13 | D22: =+IFERROR(VLOOKUP($A22&$D$3,BaseRS_VID!$A$3:$I$913,6,0),"N.A.") -> 647 | E22: =+IFERROR(VLOOKUP($A22&$D$3,BaseRS_VID!$A$3:$I$913,7,0),"N.A.") -> 5,796 | F22: =+IFERROR(VLOOKUP($A22&$D$3,BaseRS_VID!$A$3:$I$913,8,0),"N.A.") -> 18,953 | G22: =+IFERROR(VLOOKUP($A22&$D$3,BaseRS_VID!$A$3:$I$913,9,0),"N.A.") -> 10,240
A23: METLIFE | B23: =+IFERROR(VLOOKUP($A23&$D$3,BaseRS_VID!$A$3:$I$913,4,0),"N.A.") -> 84,144 | C23: =+IFERROR(VLOOKUP($A23&$D$3,BaseRS_VID!$A$3:$I$913,5,0),"N.A.") -> 0 | D23: =+IFERROR(VLOOKUP($A23&$D$3,BaseRS_VID!$A$3:$I$913,6,0),"N.A.") -> 0 | E23: =+IFERROR(VLOOKUP($A23&$D$3,BaseRS_VID!$A$3:$I$913,7,0),"N.A.") -> 0 | F23: =+IFERROR(VLOOKUP($A23&$D$3,BaseRS_VID!$A$3:$I$913,8,0),"N.A.") -> 47,545 | G23: =+IFERROR(VLOOKUP($A23&$D$3,BaseRS_VID!$A$3:$I$913,9,0),"N.A.") -> 17,223
A24: PANAMERICAN VIDA | B24: =+IFERROR(VLOOKUP($A24&$D$3,BaseRS_VID!$A$3:$I$913,4,0),"N.A.") -> 1,585 | C24: =+IFERROR(VLOOKUP($A24&$D$3,BaseRS_VID!$A$3:$I$913,5,0),"N.A.") -> 0 | D24: =+IFERROR(VLOOKUP($A24&$D$3,BaseRS_VID!$A$3:$I$913,6,0),"N.A.") -> 0 | E24: =+IFERROR(VLOOKUP($A24&$D$3,BaseRS_VID!$A$3:$I$913,7,0),"N.A.") -> 0 | F24: =+IFERROR(VLOOKUP($A24&$D$3,BaseRS_VID!$A$3:$I$913,8,0),"N.A.") -> 48,583 | G24: =+IFERROR(VLOOKUP($A24&$D$3,BaseRS_VID!$A$3:$I$913,9,0),"N.A.") -> 15,899
A25: POSITIVA | B25: =+IFERROR(VLOOKUP($A25&$D$3,BaseRS_VID!$A$3:$I$913,4,0),"N.A.") -> 98,292 | C25: =+IFERROR(VLOOKUP($A25&$D$3,BaseRS_VID!$A$3:$I$913,5,0),"N.A.") -> 182,396 | D25: =+IFERROR(VLOOKUP($A25&$D$3,BaseRS_VID!$A$3:$I$913,6,0),"N.A.") -> 152,568 | E25: =+IFERROR(VLOOKUP($A25&$D$3,BaseRS_VID!$A$3:$I$913,7,0),"N.A.") -> 148,261 | F25: =+IFERROR(VLOOKUP($A25&$D$3,BaseRS_VID!$A$3:$I$913,8,0),"N.A.") -> 42,379 | G25: =+IFERROR(VLOOKUP($A25&$D$3,BaseRS_VID!$A$3:$I$913,9,0),"N.A.") -> 35,080
A26: SKANDIA | B26: =+IFERROR(VLOOKUP($A26&$D$3,BaseRS_VID!$A$3:$I$913,4,0),"N.A.") -> 69,822 | C26: =+IFERROR(VLOOKUP($A26&$D$3,BaseRS_VID!$A$3:$I$913,5,0),"N.A.") -> 0 | D26: =+IFERROR(VLOOKUP($A26&$D$3,BaseRS_VID!$A$3:$I$913,6,0),"N.A.") -> 0 | E26: =+IFERROR(VLOOKUP($A26&$D$3,BaseRS_VID!$A$3:$I$913,7,0),"N.A.") -> 0 | F26: =+IFERROR(VLOOKUP($A26&$D$3,BaseRS_VID!$A$3:$I$913,8,0),"N.A.") -> 0 | G26: =+IFERROR(VLOOKUP($A26&$D$3,BaseRS_VID!$A$3:$I$913,9,0),"N.A.") -> 0
A27: SURAMERICANA VIDA | B27: =+IFERROR(VLOOKUP($A27&$D$3,BaseRS_VID!$A$3:$I$913,4,0),"N.A.") -> 235,155 | C27: =+IFERROR(VLOOKUP($A27&$D$3,BaseRS_VID!$A$3:$I$913,5,0),"N.A.") -> 300,227 | D27: =+IFERROR(VLOOKUP($A27&$D$3,BaseRS_VID!$A$3:$I$913,6,0),"N.A.") -> 204,826 | E27: =+IFERROR(VLOOKUP($A27&$D$3,BaseRS_VID!$A$3:$I$913,7,0),"N.A.") -> 187,378 | F27: =+IFERROR(VLOOKUP($A27&$D$3,BaseRS_VID!$A$3:$I$913,8,0),"N.A.") -> 793,459 | G27: =+IFERROR(VLOOKUP($A27&$D$3,BaseRS_VID!$A$3:$I$913,9,0),"N.A.") -> 574,938

Sheet BaseRA_GEN (hidden)
D1: CATEGORIA I | E1: CATEGORIA II | G1: CATEGORIA III | I1: TOTAL RIESGO DE ACTIVO
D2: VALOR REPORTADO EN BALANCE O FORMATO | E2: VALOR REPORTADO EN BALANCE O FORMATO | F2: VR PONDERADO | G2: VALOR REPORTADO EN BALANCE O FORMATO | H2: VR PONDERADO | I2: VR PONDERADO
A3: =+B3&C3 -> ALFA45777 | B3: ALFA | C3: 2025-04-30 | D3: 105,801.08 | E3: 55,974.98 | F3: 839.62 | G3: 155,815.13 | H3: 4,604.11 | I3: =+F3+H3 -> 5,443.73
A4: =+B4&C4 -> ALFA45808 | B4: ALFA | C4: 2025-05-31 | D4: 113,962.11 | E4: 66,307.52 | F4: 994.61 | G4: 161,738.96 | H4: 4,848.84 | I4: =+F4+H4 -> 5,843.45
A5: ALFA45838 | B5: ALFA | C5: 2025-06-30 | D5: 113,576.03 | E5: 67,504.37 | F5: 1,012.57 | G5: 215,946.43 | H5: 4,964.80 | I5: 5,977.37
A6: ALLIANZ45777 | B6: ALLIANZ | C6: 2025-04-30 | D6: 1,788,371.93 | E6: 205,178.51 | F6: 3,077.68 | G6: 619,234.31 | H6: 4,348.13 | I6: 7,425.81
A7: ALLIANZ45808 | B7: ALLIANZ | C7: 2025-05-31 | D7: 1,806,742.11 | E7: 201,657.30 | F7: 3,024.86 | G7: 611,701.97 | H7: 4,241.88 | I7: 7,266.74
A8: ALLIANZ45838 | B8: ALLIANZ | C8: 2025-06-30 | D8: 1,781,667.86 | E8: 198,735.48 | F8: 2,981.03 | G8: 608,031.06 | H8: 4,517.15 | I8: 7,498.18
A9: AXA COLPATRIA45777 | B9: AXA COLPATRIA | C9: 2025-04-30 | D9: 2,972,958.12 | E9: 553,714.54 | F9: 8,298.34 | G9: 1,349,801.72 | H9: 13,209.17 | I9: 21,507.51
A10: AXA COLPATRIA45808 | B10: AXA COLPATRIA | C10: 2025-05-31 | D10: 2,800,520.39 | E10: 624,792.54 | F10: 9,362.49 | G10: 1,392,406.56 | H10: 13,230.05 | I10: 22,592.54
A11: AXA COLPATRIA45838 | B11: AXA COLPATRIA | C11: 2025-06-30 | D11: 2,762,537.95 | E11: 616,753.20 | F11: 9,244.50 | G11: 1,395,734.50 | H11: 12,410.49 | I11: 21,654.99
A12: BBVA SEGUROS45777 | B12: BBVA SEGUROS | C12: 2025-04-30 | D12: 432,486.59 | E12: 82,957.33 | F12: 1,244.36 | G12: 197,866.56 | H12: 5,673.85 | I12: 6,918.21
A13: BBVA SEGUROS45808 | B13: BBVA SEGUROS | C13: 2025-05-31 | D13: 423,060.76 | E13: 86,940.30 | F13: 1,304.10 | G13: 209,100.05 | H13: 6,048.51 | I13: 7,352.61
A14: BBVA SEGUROS45838 | B14: BBVA SEGUROS | C14: 2025-06-30 | D14: 431,502.01 | E14: 85,614.92 | F14: 1,284.22 | G14: 229,645.21 | H14: 6,196.91 | I14: 7,481.13
A15: BERKLEY45777 | B15: BERKLEY | C15: 2025-04-30 | D15: 206,837.41 | E15: 1,418.72 | F15: 21.28 | G15: 250,283.26 | H15: 387.92 | I15: 409.20
A16: BERKLEY45808 | B16: BERKLEY | C16: 2025-05-31 | D16: 204,626.22 | E16: 1,201.52 | F16: 18.02 | G16: 256,766.74 | H16: 981.61 | I16: 999.63
A17: BERKLEY45838 | B17: BERKLEY | C17: 2025-06-30 | D17: 202,441.21 | E17: 1,141.04 | F17: 17.12 | G17: 260,351.70 | H17: 1,035.52 | I17: 1,052.64
A18: BOLIVAR45777 | B18: BOLIVAR | C18: 2025-04-30 | D18: 1,359,301.72 | E18: 250,808.77 | F18: 3,762.13 | G18: 1,767,444.22 | H18: 13,294.17 | I18: 17,056.30
A19: BOLIVAR45808 | B19: BOLIVAR | C19: 2025-05-31 | D19: 1,461,803.05 | E19: 252,454.10 | F19: 3,786.81 | G19: 1,907,446.14 | H19: 21,292.83 | I19: 25,079.64
A20: BOLIVAR45838 | B20: BOLIVAR | C20: 2025-06-30 | D20: 1,425,433.05 | E20: 250,232.75 | F20: 3,753.49 | G20: 1,883,233.54 | H20: 18,505.05 | I20: 22,258.54
A21: CARDIF45777 | B21: CARDIF | C21: 2025-04-30 | D21: 577,758.81 | E21: 155,994.92 | F21: 2,339.92 | G21: 166,692.77 | H21: 6,984.23 | I21: 9,324.15
A22: CARDIF45808 | B22: CARDIF | C22: 2025-05-31 | D22: 551,320.99 | E22: 145,333.84 | F22: 2,180.01 | G22: 161,157.83 | H22: 7,171.48 | I22: 9,351.49
A23: CARDIF45838 | B23: CARDIF | C23: 2025-06-30 | D23: 569,038.70 | E23: 143,880.39 | F23: 2,158.21 | G23: 161,493.51 | H23: 7,178.34 | I23: 9,336.55
A24: CHUBB45777 | B24: CHUBB | C24: 2025-04-30 | D24: 636,003.30 | E24: 629,175.52 | F24: 9,437.63 | G24: 442,659.51 | H24: 4,171.31 | I24: 13,608.94
A25: CHUBB45808 | B25: CHUBB | C25: 2025-05-31 | D25: 656,933.34 | E25: 620,356.77 | F25: 9,305.35 | G25: 487,696.48 | H25: 7,616.28 | I25: 16,921.63
A26: CHUBB45838 | B26: CHUBB | C26: 2025-06-30 | D26: 656,387.05 | E26: 615,161.73 | F26: 9,227.43 | G26: 473,975.00 | H26: 6,473.04 | I26: 15,700.47
A27: COFACE45777 | B27: COFACE | C27: 2025-04-30 | D27: 23,663.18 | E27: 2,301.81 | F27: 34.53 | G27: 33,667.36 | H27: 557.27 | I27: 591.80
A28: COFACE45808 | B28: COFACE | C28: 2025-05-31 | D28: 24,505.02 | E28: 1,639.29 | F28: 24.59 | G28: 31,426.58 | H28: 371.83 | I28: 396.42
A29: COFACE45838 | B29: COFACE | C29: 2025-06-30 | D29: 23,596.61 | E29: 1,687.79 | F29: 25.32 | G29: 19,622.79 | H29: 347.27 | I29: 372.59
A30: COLMENA45777 | B30: COLMENA | C30: 2025-04-30 | D30: 36,175.34 | E30: 5,085.39 | F30: 76.28 | G30: 92,275.87 | H30: 3,485.57 | I30: 3,561.85
A31: COLMENA45808 | B31: COLMENA | C31: 2025-05-31 | D31: 35,711.57 | E31: 5,267.35 | F31: 79.01 | G31: 86,282.31 | H31: 2,690.92 | I31: 2,769.93
A32: COLMENA45838 | B32: COLMENA | C32: 2025-06-30 | D32: 36,421.00 | E32: 5,410.26 | F32: 81.15 | G32: 87,828.41 | H32: 2,619.19 | I32: 2,700.34
A33: CONFIANZA45777 | B33: CONFIANZA | C33: 2025-04-30 | D33: 297,007.49 | E33: 129,253.62 | F33: 1,938.80 | G33: 640,335.72 | H33: 7,804.66 | I33: 9,743.46
A34: CONFIANZA45808 | B34: CONFIANZA | C34: 2025-05-31 | D34: 288,548.25 | E34: 130,469.73 | F34: 1,957.05 | G34: 658,683.88 | H34: 8,297.56 | I34: 10,254.61
A35: CONFIANZA45838 | B35: CONFIANZA | C35: 2025-06-30 | D35: 235,996.52 | E35: 132,536.77 | F35: 1,988.05 | G35: 676,085.95 | H35: 9,067.52 | I35: 11,055.57
A36: EQUIDAD45777 | B36: EQUIDAD | C36: 2025-04-30 | D36: 225,606.94 | E36: 117,818.07 | F36: 1,767.27 | G36: 667,119.14 | H36: 6,150.25 | I36: 7,917.52
A37: EQUIDAD45808 | B37: EQUIDAD | C37: 2025-05-31 | D37: 219,419.38 | E37: 118,863.02 | F37: 1,782.95 | G37: 667,679.43 | H37: 5,347.80 | I37: 7,130.75
A38: EQUIDAD45838 | B38: EQUIDAD | C38: 2025-06-30 | D38: 219,156.84 | E38: 118,071.92 | F38: 1,771.08 | G38: 670,631.37 | H38: 5,463.04 | I38: 7,234.12
A39: ESTADO45777 | B39: ESTADO | C39: 2025-04-30 | D39: 1,391,033.41 | E39: 355,611.07 | F39: 5,334.17 | G39: 1,196,579.58 | H39: 34,431.14 | I39: 39,765.31
A40: ESTADO45808 | B40: ESTADO | C40: 2025-05-31 | D40: 1,408,701.46 | E40: 346,909.02 | F40: 5,203.64 | G40: 1,187,637.31 | H40: 34,837.13 | I40: 40,040.77
A41: ESTADO45838 | B41: ESTADO | C41: 2025-06-30 | D41: 1,389,241.71 | E41: 324,912.02 | F41: 4,873.68 | G41: 1,226,911.59 | H41: 34,295.36 | I41: 39,169.04
A42: EVEREST45777 | B42: EVEREST | C42: 2025-04-30 | D42: 8,228.75 | E42: 422.58 | F42: 6.34 | G42: 5,603.71 | H42: 242.51 | I42: 248.85
A43: EVEREST45808 | B43: EVEREST | C43: 2025-05-31 | D43: 8,248.22 | E43: 415.22 | F43: 6.23 | G43: 7,665.49 | H43: 337.72 | I43: 343.95
A44: EVEREST45838 | B44: EVEREST | C44: 2025-06-30 | D44: 10,840.34 | E44: 1,254.37 | F44: 18.82 | G44: 13,497.75 | H44: 649.42 | I44: 668.24
A45: JMALUCELLI TRAVELERS45777 | B45: JMALUCELLI TRAVELERS | C45: 2025-04-30 | D45: 72,758.93 | E45: 4,086.68 | F45: 61.30 | G45: 74,112.99 | H45: 281.30 | I45: 342.60
A46: JMALUCELLI TRAVELERS45808 | B46: JMALUCELLI TRAVELERS | C46: 2025-05-31 | D46: 73,945.24 | E46: 4,071.80 | F46: 61.08 | G46: 75,416.42 | H46: 383.66 | I46: 444.74
A47: JMALUCELLI TRAVELERS45838 | B47: JMALUCELLI TRAVELERS | C47: 2025-06-30 | D47: 67,623.64 | E47: 4,052.30 | F47: 60.78 | G47: 85,684.15 | H47: 1,219.22 | I47: 1,280.00
A48: HDI SEGUROS45777 | B48: HDI SEGUROS | C48: 2025-04-30 | D48: 2,097,885.29 | E48: 368,861.17 | F48: 5,532.92 | G48: 540,207.84 | H48: 8,354.88 | I48: 13,887.80
A49: HDI SEGUROS45808 | B49: HDI SEGUROS | C49: 2025-05-31 | D49: 2,131,751.37 | E49: 358,789.09 | F49: 5,381.84 | G49: 528,855.85 | H49: 7,008.98 | I49: 12,390.82
A50: HDI SEGUROS45838 | B50: HDI SEGUROS | C50: 2025-06-30 | D50: 2,108,834.02 | E50: 366,528.61 | F50: 5,497.93 | G50: 552,413.82 | H50: 8,832.08 | I50: 14,330.01
A51: MAPFRE45777 | B51: MAPFRE | C51: 2025-04-30 | D51: 1,552,070.44 | E51: 299,631.62 | F51: 4,346.09 | G51: 1,509,797.22 | H51: 16,426.91 | I51: 20,773.00
A52: MAPFRE45808 | B52: MAPFRE | C52: 2025-05-31 | D52: 1,514,952.90 | E52: 312,444.70 | F52: 4,538.29 | G52: 1,423,472.78 | H52: 17,163.96 | I52: 21,702.25
A53: MAPFRE45838 | B53: MAPFRE | C53: 2025-06-30 | D53: 1,524,109.22 | E53: 307,990.71 | F53: 4,471.48 | G53: 1,371,473.15 | H53: 14,586.44 | I53: 19,057.92
A54: MUNDIAL45777 | B54: MUNDIAL | C54: 2025-04-30 | D54: 803,153.29 | E54: 180,545.91 | F54: 2,708.19 | G54: 1,554,245.91 | H54: 9,813.02 | I54: 12,521.21
A55: MUNDIAL45808 | B55: MUNDIAL | C55: 2025-05-31 | D55: 744,022.23 | E55: 231,677.92 | F55: 3,475.17 | G55: 1,544,942.08 | H55: 9,514.20 | I55: 12,989.37
A56: MUNDIAL45838 | B56: MUNDIAL | C56: 2025-06-30 | D56: 736,754.95 | E56: 250,434.50 | F56: 3,756.52 | G56: 1,551,387.47 | H56: 9,543.17 | I56: 13,299.69
A57: NACIONAL45777 | B57: NACIONAL | C57: 2025-04-30 | D57: 101,152.68 | E57: 6,099.71 | F57: 91.50 | G57: 707,806.88 | H57: 4,761.61 | I57: 4,853.11
A58: NACIONAL45808 | B58: NACIONAL | C58: 2025-05-31 | D58: 111,506.93 | E58: 3,028.19 | F58: 45.42 | G58: 710,513.60 | H58: 4,846.93 | I58: 4,892.35
A59: NACIONAL45838 | B59: NACIONAL | C59: 2025-06-30 | D59: 122,060.23 | E59: 2.11 | F59: 0.03 | G59: 717,831.91 | H59: 5,640.92 | I59: 5,640.95
A60: PREVISORA45777 | B60: PREVISORA | C60: 2025-04-30 | D60: 1,241,951.11 | E60: 1,064,865.29 | F60: 15,972.98 | G60: 2,133,772.78 | H60: 24,924.79 | I60: 40,897.77
A61: PREVISORA45808 | B61: PREVISORA | C61: 2025-05-31 | D61: 1,185,864.39 | E61: 1,029,529.38 | F61: 15,442.94 | G61: 2,188,324.76 | H61: 24,537.31 | I61: 39,980.25
A62: PREVISORA45838 | B62: PREVISORA | C62: 2025-06-30 | D62: 1,170,871.56 | E62: 1,027,306.73 | F62: 15,409.60 | G62: 2,151,226.39 | H62: 25,052.14 | I62: 40,461.74
A63: QUALITAS45777 | B63: QUALITAS | C63: 2025-04-30 | D63: 0.00 | E63: 0.00 | F63: 0.00 | G63: 2,707.61 | H63: 88.96 | I63: 88.96
A64: QUALITAS45808 | B64: QUALITAS | C64: 2025-05-31 | D64: 0.00 | E64: 0.00 | F64: 0.00 | G64: 2,707.61 | H64: 88.96 | I64: 88.96
A65: QUALITAS45838 | B65: QUALITAS | C65: 2025-06-30 | D65: 0.00 | E65: 0.00 | F65: 0.00 | G65: 3,255.34 | H65: 134.30 | I65: 134.30
A66: SBS SEGUROS45777 | B66: SBS SEGUROS | C66: 2025-04-30 | D66: 1,253,561.23 | E66: 76,164.73 | F66: 1,142.47 | G66: 564,561.57 | H66: 8,033.06 | I66: 9,175.53
A67: SBS SEGUROS45808 | B67: SBS SEGUROS | C67: 2025-05-31 | D67: 1,274,726.61 | E67: 72,595.23 | F67: 1,088.93 | G67: 584,088.36 | H67: 9,559.83 | I67: 10,648.76
A68: =+B68&C68 -> SBS SEGUROS45838 | B68: SBS SEGUROS | C68: 2025-06-30 | D68: 1,355,673.31 | E68: 76,891.01 | F68: 1,153.37 | G68: 536,792.64 | H68: 7,412.04 | I68: =+F68+H68 -> 8,565.41
A69: SEGUREXPO45777 | B69: SEGUREXPO | C69: 2025-04-30 | D69: 10,131.14 | E69: 92,875.87 | F69: 1,393.14 | G69: 145,665.82 | H69: 965.66 | I69: 2,358.80
A70: SEGUREXPO45808 | B70: SEGUREXPO | C70: 2025-05-31 | D70: 10,816.48 | E70: 93,016.95 | F70: 1,395.25 | G70: 143,631.42 | H70: 922.86 | I70: 2,318.11
A71: SEGUREXPO45838 | B71: SEGUREXPO | C71: 2025-06-30 | D71: 17,140.54 | E71: 93,141.09 | F71: 1,397.12 | G71: 140,000.75 | H71: 1,031.38 | I71: 2,428.50
A72: SOLIDARIA45777 | B72: SOLIDARIA | C72: 2025-04-30 | D72: 595,604.07 | E72: 237,204.71 | F72: 3,558.07 | G72: 404,095.35 | H72: 4,105.37 | I72: 7,663.44
A73: SOLIDARIA45808 | B73: SOLIDARIA | C73: 2025-05-31 | D73: 638,012.49 | E73: 237,746.33 | F73: 3,566.19 | G73: 406,656.27 | H73: 3,915.14 | I73: 7,481.33
A74: SOLIDARIA45838 | B74: SOLIDARIA | C74: 2025-06-30 | D74: 650,504.49 | E74: 238,882.27 | F74: 3,583.23 | G74: 407,794.75 | H74: 3,916.05 | I74: 7,499.28
A75: SOLUNION45777 | B75: SOLUNION | C75: 2025-04-30 | D75: 138,496.34 | E75: 7,961.65 | F75: 119.42 | G75: 139,195.68 | H75: 1,098.41 | I75: 1,217.83
A76: SOLUNION45808 | B76: SOLUNION | C76: 2025-05-31 | D76: 151,530.83 | E76: 9,013.05 | F76: 135.20 | G76: 145,498.10 | H76: 1,240.32 | I76: 1,375.52
A77: =+B77&C77 -> SOLUNION45838 | B77: SOLUNION | C77: 2025-06-30 | D77: 148,778.84 | E77: 9,000.26 | F77: 135.00 | G77: 129,536.11 | H77: 901.35 | I77: 1,036.35
A78: =+B78&C78 -> SURAMERICANA45777 | B78: SURAMERICANA | C78: 2025-04-30 | D78: 3,329,747.24 | E78: 353,586.51 | F78: 5,303.45 | G78: 2,388,159.25 | H78: 51,211.78 | I78: 56,515.23
A79: SURAMERICANA45808 | B79: SURAMERICANA | C79: 2025-05-31 | D79: 3,281,721.62 | E79: 338,068.39 | F79: 5,070.86 | G79: 2,339,142.78 | H79: 46,449.44 | I79: 51,520.30
A80: SURAMERICANA45838 | B80: SURAMERICANA | C80: 2025-06-30 | D80: 3,259,959.66 | E80: 294,545.26 | F80: 4,417.94 | G80: 2,370,218.99 | H80: 53,848.21 | I80: 58,266.15
A81: ZURICH45777 | B81: ZURICH | C81: 2025-04-30 | D81: 461,522.93 | E81: 143,476.66 | F81: 2,147.69 | G81: 474,681.25 | H81: 12,421.41 | I81: 14,569.10
A82: ZURICH45808 | B82: ZURICH | C82: 2025-05-31 | D82: 459,293.75 | E82: 137,448.54 | F82: 2,057.27 | G82: 464,050.56 | H82: 11,480.68 | I82: 13,537.95
A83: ZURICH45838 | B83: ZURICH | C83: 2025-06-30 | D83: 469,246.05 | E83: 122,861.33 | F83: 1,838.46 | G83: 490,027.74 | H83: 12,972.41 | I83: 14,810.87

Sheet RA_GEN
B1: COMPAÑÍAS DE SEGUROS GENERALES
D2: RIESGO DE ACTIVOS
D3: 2025-06-30
D4: CIFRAS EN MILLONES DE PESOS
A5: COMPAÑÍAS | B5: CATEGORÍA I | C5: CATEGORÍA II | E5: CATEGORÍA III | G5: TOTAL RIESGO DE ACTIVO
B6: Valor reportado en balance o formato | C6: Valor reportado en balance o formato | D6: Valor ponderado | E6: Valor reportado en balance o formato | F6: Valor ponderado | G6: Valor Ponderado
A7: ALFA | B7: =+IFERROR(VLOOKUP($A7&$D$3,BaseRA_GEN!$A$3:$I$857,4,0),"N.A.") -> 113,576 | C7: =+IFERROR(VLOOKUP($A7&$D$3,BaseRA_GEN!$A$3:$I$857,5,0),"N.A.") -> 67,504 | D7: =+IFERROR(VLOOKUP($A7&$D$3,BaseRA_GEN!$A$3:$I$857,6,0),"N.A.") -> 1,013 | E7: =+IFERROR(VLOOKUP($A7&$D$3,BaseRA_GEN!$A$3:$I$857,7,0),"N.A.") -> 215,946 | F7: =+IFERROR(VLOOKUP($A7&$D$3,BaseRA_GEN!$A$3:$I$857,8,0),"N.A.") -> 4,965 | G7: =+IFERROR(VLOOKUP($A7&$D$3,BaseRA_GEN!$A$3:$I$857,9,0),"N.A.") -> 5,977
A8: ALLIANZ | B8: =+IFERROR(VLOOKUP($A8&$D$3,BaseRA_GEN!$A$3:$I$857,4,0),"N.A.") -> 1,781,668 | C8: =+IFERROR(VLOOKUP($A8&$D$3,BaseRA_GEN!$A$3:$I$857,5,0),"N.A.") -> 198,735 | D8: =+IFERROR(VLOOKUP($A8&$D$3,BaseRA_GEN!$A$3:$I$857,6,0),"N.A.") -> 2,981 | E8: =+IFERROR(VLOOKUP($A8&$D$3,BaseRA_GEN!$A$3:$I$857,7,0),"N.A.") -> 608,031 | F8: =+IFERROR(VLOOKUP($A8&$D$3,BaseRA_GEN!$A$3:$I$857,8,0),"N.A.") -> 4,517 | G8: =+IFERROR(VLOOKUP($A8&$D$3,BaseRA_GEN!$A$3:$I$857,9,0),"N.A.") -> 7,498
A9: AXA COLPATRIA | B9: =+IFERROR(VLOOKUP($A9&$D$3,BaseRA_GEN!$A$3:$I$857,4,0),"N.A.") -> 2,762,538 | C9: =+IFERROR(VLOOKUP($A9&$D$3,BaseRA_GEN!$A$3:$I$857,5,0),"N.A.") -> 616,753 | D9: =+IFERROR(VLOOKUP($A9&$D$3,BaseRA_GEN!$A$3:$I$857,6,0),"N.A.") -> 9,245 | E9: =+IFERROR(VLOOKUP($A9&$D$3,BaseRA_GEN!$A$3:$I$857,7,0),"N.A.") -> 1,395,735 | F9: =+IFERROR(VLOOKUP($A9&$D$3,BaseRA_GEN!$A$3:$I$857,8,0),"N.A.") -> 12,410 | G9: =+IFERROR(VLOOKUP($A9&$D$3,BaseRA_GEN!$A$3:$I$857,9,0),"N.A.") -> 21,655
A10: BBVA SEGUROS | B10: =+IFERROR(VLOOKUP($A10&$D$3,BaseRA_GEN!$A$3:$I$857,4,0),"N.A.") -> 431,502 | C10: =+IFERROR(VLOOKUP($A10&$D$3,BaseRA_GEN!$A$3:$I$857,5,0),"N.A.") -> 85,615 | D10: =+IFERROR(VLOOKUP($A10&$D$3,BaseRA_GEN!$A$3:$I$857,6,0),"N.A.") -> 1,284 | E10: =+IFERROR(VLOOKUP($A10&$D$3,BaseRA_GEN!$A$3:$I$857,7,0),"N.A.") -> 229,645 | F10: =+IFERROR(VLOOKUP($A10&$D$3,BaseRA_GEN!$A$3:$I$857,8,0),"N.A.") -> 6,197 | G10: =+IFERROR(VLOOKUP($A10&$D$3,BaseRA_GEN!$A$3:$I$857,9,0),"N.A.") -> 7,481
A11: BERKLEY | B11: =+IFERROR(VLOOKUP($A11&$D$3,BaseRA_GEN!$A$3:$I$857,4,0),"N.A.") -> 202,441 | C11: =+IFERROR(VLOOKUP($A11&$D$3,BaseRA_GEN!$A$3:$I$857,5,0),"N.A.") -> 1,141 | D11: =+IFERROR(VLOOKUP($A11&$D$3,BaseRA_GEN!$A$3:$I$857,6,0),"N.A.") -> 17 | E11: =+IFERROR(VLOOKUP($A11&$D$3,BaseRA_GEN!$A$3:$I$857,7,0),"N.A.") -> 260,352 | F11: =+IFERROR(VLOOKUP($A11&$D$3,BaseRA_GEN!$A$3:$I$857,8,0),"N.A.") -> 1,036 | G11: =+IFERROR(VLOOKUP($A11&$D$3,BaseRA_GEN!$A$3:$I$857,9,0),"N.A.") -> 1,053
A12: BOLIVAR | B12: =+IFERROR(VLOOKUP($A12&$D$3,BaseRA_GEN!$A$3:$I$857,4,0),"N.A.") -> 1,425,433 | C12: =+IFERROR(VLOOKUP($A12&$D$3,BaseRA_GEN!$A$3:$I$857,5,0),"N.A.") -> 250,233 | D12: =+IFERROR(VLOOKUP($A12&$D$3,BaseRA_GEN!$A$3:$I$857,6,0),"N.A.") -> 3,753 | E12: =+IFERROR(VLOOKUP($A12&$D$3,BaseRA_GEN!$A$3:$I$857,7,0),"N.A.") -> 1,883,234 | F12: =+IFERROR(VLOOKUP($A12&$D$3,BaseRA_GEN!$A$3:$I$857,8,0),"N.A.") -> 18,505 | G12: =+IFERROR(VLOOKUP($A12&$D$3,BaseRA_GEN!$A$3:$I$857,9,0),"N.A.") -> 22,259
A13: CARDIF | B13: =+IFERROR(VLOOKUP($A13&$D$3,BaseRA_GEN!$A$3:$I$857,4,0),"N.A.") -> 569,039 | C13: =+IFERROR(VLOOKUP($A13&$D$3,BaseRA_GEN!$A$3:$I$857,5,0),"N.A.") -> 143,880 | D13: =+IFERROR(VLOOKUP($A13&$D$3,BaseRA_GEN!$A$3:$I$857,6,0),"N.A.") -> 2,158 | E13: =+IFERROR(VLOOKUP($A13&$D$3,BaseRA_GEN!$A$3:$I$857,7,0),"N.A.") -> 161,494 | F13: =+IFERROR(VLOOKUP($A13&$D$3,BaseRA_GEN!$A$3:$I$857,8,0),"N.A.") -> 7,178 | G13: =+IFERROR(VLOOKUP($A13&$D$3,BaseRA_GEN!$A$3:$I$857,9,0),"N.A.") -> 9,337
A14: CHUBB | B14: =+IFERROR(VLOOKUP($A14&$D$3,BaseRA_GEN!$A$3:$I$857,4,0),"N.A.") -> 656,387 | C14: =+IFERROR(VLOOKUP($A14&$D$3,BaseRA_GEN!$A$3:$I$857,5,0),"N.A.") -> 615,162 | D14: =+IFERROR(VLOOKUP($A14&$D$3,BaseRA_GEN!$A$3:$I$857,6,0),"N.A.") -> 9,227 | E14: =+IFERROR(VLOOKUP($A14&$D$3,BaseRA_GEN!$A$3:$I$857,7,0),"N.A.") -> 473,975 | F14: =+IFERROR(VLOOKUP($A14&$D$3,BaseRA_GEN!$A$3:$I$857,8,0),"N.A.") -> 6,473 | G14: =+IFERROR(VLOOKUP($A14&$D$3,BaseRA_GEN!$A$3:$I$857,9,0),"N.A.") -> 15,700
A15: COFACE | B15: =+IFERROR(VLOOKUP($A15&$D$3,BaseRA_GEN!$A$3:$I$857,4,0),"N.A.") -> 23,597 | C15: =+IFERROR(VLOOKUP($A15&$D$3,BaseRA_GEN!$A$3:$I$857,5,0),"N.A.") -> 1,688 | D15: =+IFERROR(VLOOKUP($A15&$D$3,BaseRA_GEN!$A$3:$I$857,6,0),"N.A.") -> 25 | E15: =+IFERROR(VLOOKUP($A15&$D$3,BaseRA_GEN!$A$3:$I$857,7,0),"N.A.") -> 19,623 | F15: =+IFERROR(VLOOKUP($A15&$D$3,BaseRA_GEN!$A$3:$I$857,8,0),"N.A.") -> 347 | G15: =+IFERROR(VLOOKUP($A15&$D$3,BaseRA_GEN!$A$3:$I$857,9,0),"N.A.") -> 373
A16: COLMENA | B16: =+IFERROR(VLOOKUP($A16&$D$3,BaseRA_GEN!$A$3:$I$857,4,0),"N.A.") -> 36,421 | C16: =+IFERROR(VLOOKUP($A16&$D$3,BaseRA_GEN!$A$3:$I$857,5,0),"N.A.") -> 5,410 | D16: =+IFERROR(VLOOKUP($A16&$D$3,BaseRA_GEN!$A$3:$I$857,6,0),"N.A.") -> 81 | E16: =+IFERROR(VLOOKUP($A16&$D$3,BaseRA_GEN!$A$3:$I$857,7,0),"N.A.") -> 87,828 | F16: =+IFERROR(VLOOKUP($A16&$D$3,BaseRA_GEN!$A$3:$I$857,8,0),"N.A.") -> 2,619 | G16: =+IFERROR(VLOOKUP($A16&$D$3,BaseRA_GEN!$A$3:$I$857,9,0),"N.A.") -> 2,700
A17: CONFIANZA | B17: =+IFERROR(VLOOKUP($A17&$D$3,BaseRA_GEN!$A$3:$I$857,4,0),"N.A.") -> 235,997 | C17: =+IFERROR(VLOOKUP($A17&$D$3,BaseRA_GEN!$A$3:$I$857,5,0),"N.A.") -> 132,537 | D17: =+IFERROR(VLOOKUP($A17&$D$3,BaseRA_GEN!$A$3:$I$857,6,0),"N.A.") -> 1,988 | E17: =+IFERROR(VLOOKUP($A17&$D$3,BaseRA_GEN!$A$3:$I$857,7,0),"N.A.") -> 676,086 | F17: =+IFERROR(VLOOKUP($A17&$D$3,BaseRA_GEN!$A$3:$I$857,8,0),"N.A.") -> 9,068 | G17: =+IFERROR(VLOOKUP($A17&$D$3,BaseRA_GEN!$A$3:$I$857,9,0),"N.A.") -> 11,056
A18: EQUIDAD | B18: =+IFERROR(VLOOKUP($A18&$D$3,BaseRA_GEN!$A$3:$I$857,4,0),"N.A.") -> 219,157 | C18: =+IFERROR(VLOOKUP($A18&$D$3,BaseRA_GEN!$A$3:$I$857,5,0),"N.A.") -> 118,072 | D18: =+IFERROR(VLOOKUP($A18&$D$3,BaseRA_GEN!$A$3:$I$857,6,0),"N.A.") -> 1,771 | E18: =+IFERROR(VLOOKUP($A18&$D$3,BaseRA_GEN!$A$3:$I$857,7,0),"N.A.") -> 670,631 | F18: =+IFERROR(VLOOKUP($A18&$D$3,BaseRA_GEN!$A$3:$I$857,8,0),"N.A.") -> 5,463 | G18: =+IFERROR(VLOOKUP($A18&$D$3,BaseRA_GEN!$A$3:$I$857,9,0),"N.A.") -> 7,234
A19: ESTADO | B19: =+IFERROR(VLOOKUP($A19&$D$3,BaseRA_GEN!$A$3:$I$857,4,0),"N.A.") -> 1,389,242 | C19: =+IFERROR(VLOOKUP($A19&$D$3,BaseRA_GEN!$A$3:$I$857,5,0),"N.A.") -> 324,912 | D19: =+IFERROR(VLOOKUP($A19&$D$3,BaseRA_GEN!$A$3:$I$857,6,0),"N.A.") -> 4,874 | E19: =+IFERROR(VLOOKUP($A19&$D$3,BaseRA_GEN!$A$3:$I$857,7,0),"N.A.") -> 1,226,912 | F19: =+IFERROR(VLOOKUP($A19&$D$3,BaseRA_GEN!$A$3:$I$857,8,0),"N.A.") -> 34,295 | G19: =+IFERROR(VLOOKUP($A19&$D$3,BaseRA_GEN!$A$3:$I$857,9,0),"N.A.") -> 39,169
A20: EVEREST | B20: =+IFERROR(VLOOKUP($A20&$D$3,BaseRA_GEN!$A$3:$I$857,4,0),"N.A.") -> 10,840 | C20: =+IFERROR(VLOOKUP($A20&$D$3,BaseRA_GEN!$A$3:$I$857,5,0),"N.A.") -> 1,254 | D20: =+IFERROR(VLOOKUP($A20&$D$3,BaseRA_GEN!$A$3:$I$857,6,0),"N.A.") -> 19 | E20: =+IFERROR(VLOOKUP($A20&$D$3,BaseRA_GEN!$A$3:$I$857,7,0),"N.A.") -> 13,498 | F20: =+IFERROR(VLOOKUP($A20&$D$3,BaseRA_GEN!$A$3:$I$857,8,0),"N.A.") -> 649 | G20: =+IFERROR(VLOOKUP($A20&$D$3,BaseRA_GEN!$A$3:$I$857,9,0),"N.A.") -> 668
A21: HDI SEGUROS | B21: =+IFERROR(VLOOKUP($A21&$D$3,BaseRA_GEN!$A$3:$I$857,4,0),"N.A.") -> 2,108,834 | C21: =+IFERROR(VLOOKUP($A21&$D$3,BaseRA_GEN!$A$3:$I$857,5,0),"N.A.") -> 366,529 | D21: =+IFERROR(VLOOKUP($A21&$D$3,BaseRA_GEN!$A$3:$I$857,6,0),"N.A.") -> 5,498 | E21: =+IFERROR(VLOOKUP($A21&$D$3,BaseRA_GEN!$A$3:$I$857,7,0),"N.A.") -> 552,414 | F21: =+IFERROR(VLOOKUP($A21&$D$3,BaseRA_GEN!$A$3:$I$857,8,0),"N.A.") -> 8,832 | G21: =+IFERROR(VLOOKUP($A21&$D$3,BaseRA_GEN!$A$3:$I$857,9,0),"N.A.") -> 14,330
A22: JMALUCELLI TRAVELERS | B22: =+IFERROR(VLOOKUP($A22&$D$3,BaseRA_GEN!$A$3:$I$857,4,0),"N.A.") -> 67,624 | C22: =+IFERROR(VLOOKUP($A22&$D$3,BaseRA_GEN!$A$3:$I$857,5,0),"N.A.") -> 4,052 | D22: =+IFERROR(VLOOKUP($A22&$D$3,BaseRA_GEN!$A$3:$I$857,6,0),"N.A.") -> 61 | E22: =+IFERROR(VLOOKUP($A22&$D$3,BaseRA_GEN!$A$3:$I$857,7,0),"N.A.") -> 85,684 | F22: =+IFERROR(VLOOKUP($A22&$D$3,BaseRA_GEN!$A$3:$I$857,8,0),"N.A.") -> 1,219 | G22: =+IFERROR(VLOOKUP($A22&$D$3,BaseRA_GEN!$A$3:$I$857,9,0),"N.A.") -> 1,280
A23: MAPFRE | B23: =+IFERROR(VLOOKUP($A23&$D$3,BaseRA_GEN!$A$3:$I$857,4,0),"N.A.") -> 1,524,109 | C23: =+IFERROR(VLOOKUP($A23&$D$3,BaseRA_GEN!$A$3:$I$857,5,0),"N.A.") -> 307,991 | D23: =+IFERROR(VLOOKUP($A23&$D$3,BaseRA_GEN!$A$3:$I$857,6,0),"N.A.") -> 4,471 | E23: =+IFERROR(VLOOKUP($A23&$D$3,BaseRA_GEN!$A$3:$I$857,7,0),"N.A.") -> 1,371,473 | F23: =+IFERROR(VLOOKUP($A23&$D$3,BaseRA_GEN!$A$3:$I$857,8,0),"N.A.") -> 14,586 | G23: =+IFERROR(VLOOKUP($A23&$D$3,BaseRA_GEN!$A$3:$I$857,9,0),"N.A.") -> 19,058
A24: MUNDIAL | B24: =+IFERROR(VLOOKUP($A24&$D$3,BaseRA_GEN!$A$3:$I$857,4,0),"N.A.") -> 736,755 | C24: =+IFERROR(VLOOKUP($A24&$D$3,BaseRA_GEN!$A$3:$I$857,5,0),"N.A.") -> 250,435 | D24: =+IFERROR(VLOOKUP($A24&$D$3,BaseRA_GEN!$A$3:$I$857,6,0),"N.A.") -> 3,757 | E24: =+IFERROR(VLOOKUP($A24&$D$3,BaseRA_GEN!$A$3:$I$857,7,0),"N.A.") -> 1,551,387 | F24: =+IFERROR(VLOOKUP($A24&$D$3,BaseRA_GEN!$A$3:$I$857,8,0),"N.A.") -> 9,543 | G24: =+IFERROR(VLOOKUP($A24&$D$3,BaseRA_GEN!$A$3:$I$857,9,0),"N.A.") -> 13,300
A25: NACIONAL | B25: =+IFERROR(VLOOKUP($A25&$D$3,BaseRA_GEN!$A$3:$I$857,4,0),"N.A.") -> 122,060 | C25: =+IFERROR(VLOOKUP($A25&$D$3,BaseRA_GEN!$A$3:$I$857,5,0),"N.A.") -> 2 | D25: =+IFERROR(VLOOKUP($A25&$D$3,BaseRA_GEN!$A$3:$I$857,6,0),"N.A.") -> 0 | E25: =+IFERROR(VLOOKUP($A25&$D$3,BaseRA_GEN!$A$3:$I$857,7,0),"N.A.") -> 717,832 | F25: =+IFERROR(VLOOKUP($A25&$D$3,BaseRA_GEN!$A$3:$I$857,8,0),"N.A.") -> 5,641 | G25: =+IFERROR(VLOOKUP($A25&$D$3,BaseRA_GEN!$A$3:$I$857,9,0),"N.A.") -> 5,641
A26: PREVISORA | B26: =+IFERROR(VLOOKUP($A26&$D$3,BaseRA_GEN!$A$3:$I$857,4,0),"N.A.") -> 1,170,872 | C26: =+IFERROR(VLOOKUP($A26&$D$3,BaseRA_GEN!$A$3:$I$857,5,0),"N.A.") -> 1,027,307 | D26: =+IFERROR(VLOOKUP($A26&$D$3,BaseRA_GEN!$A$3:$I$857,6,0),"N.A.") -> 15,410 | E26: =+IFERROR(VLOOKUP($A26&$D$3,BaseRA_GEN!$A$3:$I$857,7,0),"N.A.") -> 2,151,226 | F26: =+IFERROR(VLOOKUP($A26&$D$3,BaseRA_GEN!$A$3:$I$857,8,0),"N.A.") -> 25,052 | G26: =+IFERROR(VLOOKUP($A26&$D$3,BaseRA_GEN!$A$3:$I$857,9,0),"N.A.") -> 40,462
A27: QUALITAS | B27: =+IFERROR(VLOOKUP($A27&$D$3,BaseRA_GEN!$A$3:$I$857,4,0),"N.A.") -> 0 | C27: =+IFERROR(VLOOKUP($A27&$D$3,BaseRA_GEN!$A$3:$I$857,5,0),"N.A.") -> 0 | D27: =+IFERROR(VLOOKUP($A27&$D$3,BaseRA_GEN!$A$3:$I$857,6,0),"N.A.") -> 0 | E27: =+IFERROR(VLOOKUP($A27&$D$3,BaseRA_GEN!$A$3:$I$857,7,0),"N.A.") -> 3,255 | F27: =+IFERROR(VLOOKUP($A27&$D$3,BaseRA_GEN!$A$3:$I$857,8,0),"N.A.") -> 134 | G27: =+IFERROR(VLOOKUP($A27&$D$3,BaseRA_GEN!$A$3:$I$857,9,0),"N.A.") -> 134
A28: SBS SEGUROS | B28: =+IFERROR(VLOOKUP($A28&$D$3,BaseRA_GEN!$A$3:$I$857,4,0),"N.A.") -> 1,355,673 | C28: =+IFERROR(VLOOKUP($A28&$D$3,BaseRA_GEN!$A$3:$I$857,5,0),"N.A.") -> 76,891 | D28: =+IFERROR(VLOOKUP($A28&$D$3,BaseRA_GEN!$A$3:$I$857,6,0),"N.A.") -> 1,153 | E28: =+IFERROR(VLOOKUP($A28&$D$3,BaseRA_GEN!$A$3:$I$857,7,0),"N.A.") -> 536,793 | F28: =+IFERROR(VLOOKUP($A28&$D$3,BaseRA_GEN!$A$3:$I$857,8,0),"N.A.") -> 7,412 | G28: =+IFERROR(VLOOKUP($A28&$D$3,BaseRA_GEN!$A$3:$I$857,9,0),"N.A.") -> 8,565
A29: SEGUREXPO | B29: =+IFERROR(VLOOKUP($A29&$D$3,BaseRA_GEN!$A$3:$I$857,4,0),"N.A.") -> 17,141 | C29: =+IFERROR(VLOOKUP($A29&$D$3,BaseRA_GEN!$A$3:$I$857,5,0),"N.A.") -> 93,141 | D29: =+IFERROR(VLOOKUP($A29&$D$3,BaseRA_GEN!$A$3:$I$857,6,0),"N.A.") -> 1,397 | E29: =+IFERROR(VLOOKUP($A29&$D$3,BaseRA_GEN!$A$3:$I$857,7,0),"N.A.") -> 140,001 | F29: =+IFERROR(VLOOKUP($A29&$D$3,BaseRA_GEN!$A$3:$I$857,8,0),"N.A.") -> 1,031 | G29: =+IFERROR(VLOOKUP($A29&$D$3,BaseRA_GEN!$A$3:$I$857,9,0),"N.A.") -> 2,429
A30: SOLIDARIA | B30: =+IFERROR(VLOOKUP($A30&$D$3,BaseRA_GEN!$A$3:$I$857,4,0),"N.A.") -> 650,504 | C30: =+IFERROR(VLOOKUP($A30&$D$3,BaseRA_GEN!$A$3:$I$857,5,0),"N.A.") -> 238,882 | D30: =+IFERROR(VLOOKUP($A30&$D$3,BaseRA_GEN!$A$3:$I$857,6,0),"N.A.") -> 3,583 | E30: =+IFERROR(VLOOKUP($A30&$D$3,BaseRA_GEN!$A$3:$I$857,7,0),"N.A.") -> 407,795 | F30: =+IFERROR(VLOOKUP($A30&$D$3,BaseRA_GEN!$A$3:$I$857,8,0),"N.A.") -> 3,916 | G30: =+IFERROR(VLOOKUP($A30&$D$3,BaseRA_GEN!$A$3:$I$857,9,0),"N.A.") -> 7,499
A31: SOLUNION | B31: =+IFERROR(VLOOKUP($A31&$D$3,BaseRA_GEN!$A$3:$I$857,4,0),"N.A.") -> 148,779 | C31: =+IFERROR(VLOOKUP($A31&$D$3,BaseRA_GEN!$A$3:$I$857,5,0),"N.A.") -> 9,000 | D31: =+IFERROR(VLOOKUP($A31&$D$3,BaseRA_GEN!$A$3:$I$857,6,0),"N.A.") -> 135 | E31: =+IFERROR(VLOOKUP($A31&$D$3,BaseRA_GEN!$A$3:$I$857,7,0),"N.A.") -> 129,536 | F31: =+IFERROR(VLOOKUP($A31&$D$3,BaseRA_GEN!$A$3:$I$857,8,0),"N.A.") -> 901 | G31: =+IFERROR(VLOOKUP($A31&$D$3,BaseRA_GEN!$A$3:$I$857,9,0),"N.A.") -> 1,036
A32: SURAMERICANA | B32: =+IFERROR(VLOOKUP($A32&$D$3,BaseRA_GEN!$A$3:$I$857,4,0),"N.A.") -> 3,259,960 | C32: =+IFERROR(VLOOKUP($A32&$D$3,BaseRA_GEN!$A$3:$I$857,5,0),"N.A.") -> 294,545 | D32: =+IFERROR(VLOOKUP($A32&$D$3,BaseRA_GEN!$A$3:$I$857,6,0),"N.A.") -> 4,418 | E32: =+IFERROR(VLOOKUP($A32&$D$3,BaseRA_GEN!$A$3:$I$857,7,0),"N.A.") -> 2,370,219 | F32: =+IFERROR(VLOOKUP($A32&$D$3,BaseRA_GEN!$A$3:$I$857,8,0),"N.A.") -> 53,848 | G32: =+IFERROR(VLOOKUP($A32&$D$3,BaseRA_GEN!$A$3:$I$857,9,0),"N.A.") -> 58,266
A33: ZURICH | B33: =+IFERROR(VLOOKUP($A33&$D$3,BaseRA_GEN!$A$3:$I$857,4,0),"N.A.") -> 469,246 | C33: =+IFERROR(VLOOKUP($A33&$D$3,BaseRA_GEN!$A$3:$I$857,5,0),"N.A.") -> 122,861 | D33: =+IFERROR(VLOOKUP($A33&$D$3,BaseRA_GEN!$A$3:$I$857,6,0),"N.A.") -> 1,838 | E33: =+IFERROR(VLOOKUP($A33&$D$3,BaseRA_GEN!$A$3:$I$857,7,0),"N.A.") -> 490,028 | F33: =+IFERROR(VLOOKUP($A33&$D$3,BaseRA_GEN!$A$3:$I$857,8,0),"N.A.") -> 12,972 | G33: =+IFERROR(VLOOKUP($A33&$D$3,BaseRA_GEN!$A$3:$I$857,9,0),"N.A.") -> 14,811

Sheet BaseRA_VID (hidden)
D1: CATEGORIA I | E1: CATEGORIA II | G1: CATEGORIA III | I1: TOTAL RIESGO DE ACTIVO
D2: VALOR REPORTADO EN BALANCE O FORMATO | E2: VALOR REPORTADO EN BALANCE O FORMATO | F2: VR PONDERADO | G2: VALOR REPORTADO EN BALANCE O FORMATO | H2: VR PONDERADO | I2: VR PONDERADO
A3: =+B3&C3 -> ALFA VIDA45777 | B3: ALFA VIDA | C3: 2025-04-30 | D3: 34,738,905.60 | E3: 4,365,981.41 | F3: 65,489.72 | G3: 7,839,666.75 | H3: 162,513.50 | I3: =+H3+F3 -> 228,003.22
A4: =+B4&C4 -> ALFA VIDA45808 | B4: ALFA VIDA | C4: 2025-05-31 | D4: 35,431,783.48 | E4: 4,339,692.54 | F4: 65,095.39 | G4: 7,864,868.75 | H4: 165,382.20 | I4: =+H4+F4 -> 230,477.59
A5: ALFA VIDA45838 | B5: ALFA VIDA | C5: 2025-06-30 | D5: 36,083,203.44 | E5: 4,281,880.19 | F5: 64,228.20 | G5: 8,222,626.54 | H5: 167,287.48 | I5: 231,515.68
A6: ALLIANZ VIDA45777 | B6: ALLIANZ VIDA | C6: 2025-04-30 | D6: 2,968,413.36 | E6: 55,638.57 | F6: 834.58 | G6: 225,666.89 | H6: 5,970.23 | I6: 6,804.81
A7: ALLIANZ VIDA45808 | B7: ALLIANZ VIDA | C7: 2025-05-31 | D7: 2,963,801.67 | E7: 71,045.97 | F7: 1,065.69 | G7: 224,690.41 | H7: 5,572.38 | I7: 6,638.07
A8: ALLIANZ VIDA45838 | B8: ALLIANZ VIDA | C8: 2025-06-30 | D8: 2,952,949.43 | E8: 66,375.38 | F8: 995.63 | G8: 211,302.50 | H8: 5,493.22 | I8: 6,488.85
A9: ANDINA45777 | B9: ANDINA | C9: 2025-04-30 | D9: 1,202,281.72 | E9: 23.83 | F9: 0.36 | G9: 4,352.19 | H9: 195.85 | I9: 196.21
A10: ANDINA45808 | B10: ANDINA | C10: 2025-05-31 | D10: 1,325,412.64 | E10: 23.43 | F10: 0.35 | G10: 4,384.84 | H10: 197.32 | I10: 197.67
A11: ANDINA45838 | B11: ANDINA | C11: 2025-06-30 | D11: 1,466,038.84 | E11: 22.88 | F11: 0.34 | G11: 4,406.77 | H11: 198.30 | I11: 198.64
A12: ASULADO45777 | B12: ASULADO | C12: 2025-04-30 | D12: 24,862,359.70 | E12: 112,379.55 | F12: 1,685.69 | G12: 574,349.88 | H12: 19,817.16 | I12: 21,502.85
A13: ASULADO45808 | B13: ASULADO | C13: 2025-05-31 | D13: 25,573,826.49 | E13: 112,458.36 | F13: 1,686.88 | G13: 566,975.34 | H13: 19,844.59 | I13: 21,531.47
A14: ASULADO45838 | B14: ASULADO | C14: 2025-06-30 | D14: 26,313,288.22 | E14: 109,069.39 | F14: 1,636.04 | G14: 565,144.87 | H14: 19,699.31 | I14: 21,335.35
A15: AURORA VIDA45777 | B15: AURORA VIDA | C15: 2025-04-30 | D15: 25,638.91 | E15: 2,011.46 | F15: 30.17 | G15: 13,634.55 | H15: 702.90 | I15: 733.07
A16: AURORA VIDA45808 | B16: AURORA VIDA | C16: 2025-05-31 | D16: 26,864.43 | E16: 2,007.54 | F16: 30.11 | G16: 16,083.07 | H16: 803.11 | I16: 833.22
A17: AURORA VIDA45838 | B17: AURORA VIDA | C17: 2025-06-30 | D17: 31,860.41 | E17: 2,779.65 | F17: 41.69 | G17: 11,347.42 | H17: 471.01 | I17: 512.70
A18: AXA COLPATRIA VIDA45777 | B18: AXA COLPATRIA VIDA | C18: 2025-04-30 | D18: 4,567,455.48 | E18: 197,036.46 | F18: 2,955.55 | G18: 1,349,690.11 | H18: 29,042.71 | I18: 31,998.26
A19: AXA COLPATRIA VIDA45808 | B19: AXA COLPATRIA VIDA | C19: 2025-05-31 | D19: 4,628,281.63 | E19: 207,219.50 | F19: 3,108.29 | G19: 1,348,542.09 | H19: 29,139.69 | I19: 32,247.98
A20: AXA COLPATRIA VIDA45838 | B20: AXA COLPATRIA VIDA | C20: 2025-06-30 | D20: 4,626,270.45 | E20: 205,222.05 | F20: 3,078.33 | G20: 1,347,358.98 | H20: 29,099.69 | I20: 32,178.02
A21: BBVA SEGUROS VIDA45777 | B21: BBVA SEGUROS VIDA | C21: 2025-04-30 | D21: 3,014,399.14 | E21: 159,848.76 | F21: 2,397.73 | G21: 650,817.03 | H21: 13,199.84 | I21: 15,597.57
A22: BBVA SEGUROS VIDA45808 | B22: BBVA SEGUROS VIDA | C22: 2025-05-31 | D22: 3,033,288.65 | E22: 160,288.44 | F22: 2,404.33 | G22: 647,922.43 | H22: 12,875.93 | I22: 15,280.26
A23: BBVA SEGUROS VIDA45838 | B23: BBVA SEGUROS VIDA | C23: 2025-06-30 | D23: 3,021,541.35 | E23: 160,302.94 | F23: 2,404.54 | G23: 648,049.03 | H23: 13,074.06 | I23: 15,478.60
A24: BMI COLOMBIA45777 | B24: BMI COLOMBIA | C24: 2025-04-30 | D24: 70,474.83 | E24: 0.00 | F24: 0.00 | G24: 126,077.55 | H24: 1,968.86 | I24: 1,968.86
A25: BMI COLOMBIA45808 | B25: BMI COLOMBIA | C25: 2025-05-31 | D25: 70,406.40 | E25: 0.00 | F25: 0.00 | G25: 115,109.22 | H25: 1,945.44 | I25: 1,945.44
A26: BMI COLOMBIA45838 | B26: BMI COLOMBIA | C26: 2025-06-30 | D26: 69,329.80 | E26: 0.00 | F26: 0.00 | G26: 98,192.32 | H26: 261.93 | I26: 261.93
A27: BOLIVAR VIDA45777 | B27: BOLIVAR VIDA | C27: 2025-04-30 | D27: 9,868,326.06 | E27: 1,159,945.42 | F27: 17,481.30 | G27: 6,453,102.38 | H27: 109,534.07 | I27: 127,015.37
A28: BOLIVAR VIDA45808 | B28: BOLIVAR VIDA | C28: 2025-05-31 | D28: 10,504,340.64 | E28: 1,257,241.40 | F28: 18,954.91 | G28: 6,526,691.86 | H28: 108,357.82 | I28: 127,312.73
A29: BOLIVAR VIDA45838 | B29: BOLIVAR VIDA | C29: 2025-06-30 | D29: 10,779,344.74 | E29: 1,255,711.78 | F29: 18,933.76 | G29: 6,514,445.53 | H29: 110,461.82 | I29: 129,395.58
A30: COLMENA ARL45777 | B30: COLMENA ARL | C30: 2025-04-30 | D30: 2,104,895.79 | E30: 190,718.07 | F30: 2,860.77 | G30: 693,975.22 | H30: 14,868.21 | I30: 17,728.98
A31: COLMENA ARL45808 | B31: COLMENA ARL | C31: 2025-05-31 | D31: 2,132,516.98 | E31: 200,961.00 | F31: 3,014.42 | G31: 702,241.16 | H31: 15,450.24 | I31: 18,464.66
A32: COLMENA ARL45838 | B32: COLMENA ARL | C32: 2025-06-30 | D32: 2,116,597.91 | E32: 225,972.35 | F32: 3,389.59 | G32: 726,612.91 | H32: 16,055.69 | I32: 19,445.28
A33: COLMENA VIDA45777 | B33: COLMENA VIDA | C33: 2025-04-30 | D33: 91,210.22 | E33: 27,852.52 | F33: 417.79 | G33: 182,934.20 | H33: 5,697.39 | I33: 6,115.18
A34: COLMENA VIDA45808 | B34: COLMENA VIDA | C34: 2025-05-31 | D34: 92,615.32 | E34: 27,856.56 | F34: 417.85 | G34: 210,474.33 | H34: 7,449.89 | I34: 7,867.74
A35: COLMENA VIDA45838 | B35: COLMENA VIDA | C35: 2025-06-30 | D35: 94,839.71 | E35: 27,930.93 | F35: 418.96 | G35: 203,540.91 | H35: 6,932.49 | I35: 7,351.45
A36: COLSANITAS45777 | B36: COLSANITAS | C36: 2025-04-30 | D36: 55,395.82 | E36: 21,420.84 | F36: 321.31 | G36: 47,822.38 | H36: 2,484.14 | I36: 2,805.45
A37: COLSANITAS45808 | B37: COLSANITAS | C37: 2025-05-31 | D37: 65,048.44 | E37: 23,221.63 | F37: 348.32 | G37: 45,249.66 | H37: 2,471.11 | I37: 2,819.43
A38: COLSANITAS45838 | B38: COLSANITAS | C38: 2025-06-30 | D38: 65,167.72 | E38: 26,795.19 | F38: 401.93 | G38: 68,252.06 | H38: 3,625.05 | I38: 4,026.98
A39: EQUIDAD VIDA45777 | B39: EQUIDAD VIDA | C39: 2025-04-30 | D39: 570,348.74 | E39: 41,285.76 | F39: 619.29 | G39: 260,858.96 | H39: 5,298.51 | I39: 5,917.80
A40: EQUIDAD VIDA45808 | B40: EQUIDAD VIDA | C40: 2025-05-31 | D40: 568,740.63 | E40: 43,424.67 | F40: 651.37 | G40: 261,078.01 | H40: 5,195.01 | I40: 5,846.38
A41: EQUIDAD VIDA45838 | B41: EQUIDAD VIDA | C41: 2025-06-30 | D41: 572,971.07 | E41: 43,484.85 | F41: 652.27 | G41: 264,395.98 | H41: 5,216.96 | I41: =+H41+F41 -> 5,869.23
A42: ESTADO VIDA45777 | B42: ESTADO VIDA | C42: 2025-04-30 | D42: 27,699.09 | E42: 42,428.87 | F42: 636.43 | G42: 120,880.56 | H42: 4,220.99 | I42: 4,857.42
A43: ESTADO VIDA45808 | B43: ESTADO VIDA | C43: 2025-05-31 | D43: 40,028.00 | E43: 46,604.44 | F43: 699.07 | G43: 112,181.32 | H43: 3,573.43 | I43: 4,272.50
A44: ESTADO VIDA45838 | B44: ESTADO VIDA | C44: 2025-06-30 | D44: 38,239.04 | E44: 49,307.66 | F44: 739.61 | G44: 100,864.57 | H44: 3,055.90 | I44: 3,795.51
A45: GLOBAL45777 | B45: GLOBAL | C45: 2025-04-30 | D45: 3,079,358.89 | E45: 310,746.70 | F45: 7,691.25 | G45: 2,998,319.46 | H45: 84,371.03 | I45: 92,062.28
A46: GLOBAL45808 | B46: GLOBAL | C46: 2025-05-31 | D46: 3,158,856.07 | E46: 313,781.32 | F46: 6,480.19 | G46: 2,981,199.68 | H46: 82,384.41 | I46: 88,864.60
A47: GLOBAL45838 | B47: GLOBAL | C47: 2025-06-30 | D47: 3,225,626.81 | E47: 302,713.90 | F47: 6,116.83 | G47: 3,002,700.63 | H47: 83,922.02 | I47: 90,038.85
A48: MAPFRE VIDA45777 | B48: MAPFRE VIDA | C48: 2025-04-30 | D48: 5,508,682.88 | E48: 144,137.13 | F48: 2,142.05 | G48: 1,415,052.90 | H48: 22,386.14 | I48: 24,528.19
A49: MAPFRE VIDA45808 | B49: MAPFRE VIDA | C49: 2025-05-31 | D49: 5,459,085.44 | E49: 162,834.89 | F49: 2,422.51 | G49: 1,405,546.05 | H49: 21,853.83 | I49: 24,276.34
A50: MAPFRE VIDA45838 | B50: MAPFRE VIDA | C50: 2025-06-30 | D50: 5,488,442.30 | E50: 162,479.11 | F50: 2,417.18 | G50: 1,412,880.43 | H50: 22,196.64 | I50: 24,613.82
A51: METLIFE45777 | B51: METLIFE | C51: 2025-04-30 | D51: 2,283,465.75 | E51: 7,382.16 | F51: 110.73 | G51: 372,804.74 | H51: 12,559.29 | I51: 12,670.02
A52: METLIFE45808 | B52: METLIFE | C52: 2025-05-31 | D52: 2,319,691.96 | E52: 7,421.44 | F52: 111.32 | G52: 364,560.91 | H52: 11,663.46 | I52: 11,774.78
A53: METLIFE45838 | B53: METLIFE | C53: 2025-06-30 | D53: 2,376,290.46 | E53: 7,419.11 | F53: 111.29 | G53: 365,252.35 | H53: 11,917.98 | I53: 12,029.27
A54: PANAMERICAN VIDA45777 | B54: PANAMERICAN VIDA | C54: 2025-04-30 | D54: 58,833.40 | E54: 37,833.67 | F54: 567.51 | G54: 174,404.01 | H54: 6,806.82 | I54: 7,374.33
A55: PANAMERICAN VIDA45808 | B55: PANAMERICAN VIDA | C55: 2025-05-31 | D55: 65,889.67 | E55: 41,018.61 | F55: 615.28 | G55: 175,409.03 | H55: 6,962.36 | I55: 7,577.64
A56: PANAMERICAN VIDA45838 | B56: PANAMERICAN VIDA | C56: 2025-06-30 | D56: 73,758.59 | E56: 32,236.75 | F56: 483.55 | G56: 185,286.55 | H56: 7,658.46 | I56: 8,142.01
A57: POSITIVA45777 | B57: POSITIVA | C57: 2025-04-30 | D57: 8,575,293.05 | E57: 1,024,707.56 | F57: 15,370.61 | G57: 2,616,809.41 | H57: 58,389.49 | I57: 73,760.10
A58: POSITIVA45808 | B58: POSITIVA | C58: 2025-05-31 | D58: 8,723,912.54 | E58: 1,039,472.26 | F58: 15,592.08 | G58: 2,630,298.23 | H58: 58,498.57 | I58: 74,090.65
A59: POSITIVA45838 | B59: POSITIVA | C59: 2025-06-30 | D59: 8,723,271.97 | E59: 1,063,920.07 | F59: 15,958.80 | G59: 2,652,406.53 | H59: 59,077.83 | I59: 75,036.63
A60: SKANDIA45777 | B60: SKANDIA | C60: 2025-04-30 | D60: 1,206,537.11 | E60: 319,906.29 | F60: 4,876.06 | G60: 203,351.70 | H60: 8,225.56 | I60: 13,101.62
A61: SKANDIA45808 | B61: SKANDIA | C61: 2025-05-31 | D61: 1,257,547.04 | E61: 328,161.16 | F61: 5,000.40 | G61: 194,028.71 | H61: 7,799.69 | I61: 12,800.09
A62: SKANDIA45838 | B62: SKANDIA | C62: 2025-06-30 | D62: 1,286,559.04 | E62: 333,779.92 | F62: 5,042.27 | G62: 184,414.95 | H62: 7,013.47 | I62: 12,055.74
A63: SURAMERICANA VIDA45777 | B63: SURAMERICANA VIDA | C63: 2025-04-30 | D63: 18,787,126.55 | E63: 554,722.15 | F63: 8,320.61 | G63: 6,406,912.41 | H63: 193,224.98 | I63: 201,545.59
A64: SURAMERICANA VIDA45808 | B64: SURAMERICANA VIDA | C64: 2025-05-31 | D64: 19,137,508.77 | E64: 461,798.93 | F64: 6,926.96 | G64: 6,357,235.29 | H64: 192,454.93 | I64: 199,381.89
A65: SURAMERICANA VIDA45838 | B65: SURAMERICANA VIDA | C65: 2025-06-30 | D65: 19,318,643.52 | E65: 449,635.78 | F65: 6,744.53 | G65: 6,397,109.85 | H65: 196,421.14 | I65: 203,165.67

Sheet RA_VID
B1: COMPAÑÍAS DE SEGUROS DE VIDA
D2: RIESGO DE ACTIVOS
D3: 2025-06-30
D4: CIFRAS EN MILLONES DE PESOS
A5: COMPAÑÍAS | B5: CATEGORÍA I | C5: CATEGORÍA II | E5: CATEGORÍA III | G5: TOTAL RIESGO DE ACTIVO
B6: Valor reportado en balance o formato | C6: Valor reportado en balance o formato | D6: Valor ponderado | E6: Valor reportado en balance o formato | F6: Valor ponderado | G6: Valor Ponderado
A7: ALFA VIDA | B7: =+IFERROR(VLOOKUP($A7&$D$3,BaseRA_VID!$A$3:$I$910,4,0),"N.A.") -> 36,083,203 | C7: =+IFERROR(VLOOKUP($A7&$D$3,BaseRA_VID!$A$3:$I$910,5,0),"N.A.") -> 4,281,880 | D7: =+IFERROR(VLOOKUP($A7&$D$3,BaseRA_VID!$A$3:$I$910,6,0),"N.A.") -> 64,228 | E7: =+IFERROR(VLOOKUP($A7&$D$3,BaseRA_VID!$A$3:$I$910,7,0),"N.A.") -> 8,222,627 | F7: =+IFERROR(VLOOKUP($A7&$D$3,BaseRA_VID!$A$3:$I$910,8,0),"N.A.") -> 167,287 | G7: =+IFERROR(VLOOKUP($A7&$D$3,BaseRA_VID!$A$3:$I$910,9,0),"N.A.") -> 231,516
A8: ALLIANZ VIDA | B8: =+IFERROR(VLOOKUP($A8&$D$3,BaseRA_VID!$A$3:$I$910,4,0),"N.A.") -> 2,952,949 | C8: =+IFERROR(VLOOKUP($A8&$D$3,BaseRA_VID!$A$3:$I$910,5,0),"N.A.") -> 66,375 | D8: =+IFERROR(VLOOKUP($A8&$D$3,BaseRA_VID!$A$3:$I$910,6,0),"N.A.") -> 996 | E8: =+IFERROR(VLOOKUP($A8&$D$3,BaseRA_VID!$A$3:$I$910,7,0),"N.A.") -> 211,303 | F8: =+IFERROR(VLOOKUP($A8&$D$3,BaseRA_VID!$A$3:$I$910,8,0),"N.A.") -> 5,493 | G8: =+IFERROR(VLOOKUP($A8&$D$3,BaseRA_VID!$A$3:$I$910,9,0),"N.A.") -> 6,489
A9: ASULADO | B9: =+IFERROR(VLOOKUP($A9&$D$3,BaseRA_VID!$A$3:$I$910,4,0),"N.A.") -> 26,313,288 | C9: =+IFERROR(VLOOKUP($A9&$D$3,BaseRA_VID!$A$3:$I$910,5,0),"N.A.") -> 109,069 | D9: =+IFERROR(VLOOKUP($A9&$D$3,BaseRA_VID!$A$3:$I$910,6,0),"N.A.") -> 1,636 | E9: =+IFERROR(VLOOKUP($A9&$D$3,BaseRA_VID!$A$3:$I$910,7,0),"N.A.") -> 565,145 | F9: =+IFERROR(VLOOKUP($A9&$D$3,BaseRA_VID!$A$3:$I$910,8,0),"N.A.") -> 19,699 | G9: =+IFERROR(VLOOKUP($A9&$D$3,BaseRA_VID!$A$3:$I$910,9,0),"N.A.") -> 21,335
A10: AURORA VIDA | B10: =+IFERROR(VLOOKUP($A10&$D$3,BaseRA_VID!$A$3:$I$910,4,0),"N.A.") -> 31,860 | C10: =+IFERROR(VLOOKUP($A10&$D$3,BaseRA_VID!$A$3:$I$910,5,0),"N.A.") -> 2,780 | D10: =+IFERROR(VLOOKUP($A10&$D$3,BaseRA_VID!$A$3:$I$910,6,0),"N.A.") -> 42 | E10: =+IFERROR(VLOOKUP($A10&$D$3,BaseRA_VID!$A$3:$I$910,7,0),"N.A.") -> 11,347 | F10: =+IFERROR(VLOOKUP($A10&$D$3,BaseRA_VID!$A$3:$I$910,8,0),"N.A.") -> 471 | G10: =+IFERROR(VLOOKUP($A10&$D$3,BaseRA_VID!$A$3:$I$910,9,0),"N.A.") -> 513
A11: AXA COLPATRIA VIDA | B11: =+IFERROR(VLOOKUP($A11&$D$3,BaseRA_VID!$A$3:$I$910,4,0),"N.A.") -> 4,626,270 | C11: =+IFERROR(VLOOKUP($A11&$D$3,BaseRA_VID!$A$3:$I$910,5,0),"N.A.") -> 205,222 | D11: =+IFERROR(VLOOKUP($A11&$D$3,BaseRA_VID!$A$3:$I$910,6,0),"N.A.") -> 3,078 | E11: =+IFERROR(VLOOKUP($A11&$D$3,BaseRA_VID!$A$3:$I$910,7,0),"N.A.") -> 1,347,359 | F11: =+IFERROR(VLOOKUP($A11&$D$3,BaseRA_VID!$A$3:$I$910,8,0),"N.A.") -> 29,100 | G11: =+IFERROR(VLOOKUP($A11&$D$3,BaseRA_VID!$A$3:$I$910,9,0),"N.A.") -> 32,178
A12: BBVA SEGUROS VIDA | B12: =+IFERROR(VLOOKUP($A12&$D$3,BaseRA_VID!$A$3:$I$910,4,0),"N.A.") -> 3,021,541 | C12: =+IFERROR(VLOOKUP($A12&$D$3,BaseRA_VID!$A$3:$I$910,5,0),"N.A.") -> 160,303 | D12: =+IFERROR(VLOOKUP($A12&$D$3,BaseRA_VID!$A$3:$I$910,6,0),"N.A.") -> 2,405 | E12: =+IFERROR(VLOOKUP($A12&$D$3,BaseRA_VID!$A$3:$I$910,7,0),"N.A.") -> 648,049 | F12: =+IFERROR(VLOOKUP($A12&$D$3,BaseRA_VID!$A$3:$I$910,8,0),"N.A.") -> 13,074 | G12: =+IFERROR(VLOOKUP($A12&$D$3,BaseRA_VID!$A$3:$I$910,9,0),"N.A.") -> 15,479
A13: BMI COLOMBIA | B13: =+IFERROR(VLOOKUP($A13&$D$3,BaseRA_VID!$A$3:$I$910,4,0),"N.A.") -> 69,330 | C13: =+IFERROR(VLOOKUP($A13&$D$3,BaseRA_VID!$A$3:$I$910,5,0),"N.A.") -> 0 | D13: =+IFERROR(VLOOKUP($A13&$D$3,BaseRA_VID!$A$3:$I$910,6,0),"N.A.") -> 0 | E13: =+IFERROR(VLOOKUP($A13&$D$3,BaseRA_VID!$A$3:$I$910,7,0),"N.A.") -> 98,192 | F13: =+IFERROR(VLOOKUP($A13&$D$3,BaseRA_VID!$A$3:$I$910,8,0),"N.A.") -> 262 | G13: =+IFERROR(VLOOKUP($A13&$D$3,BaseRA_VID!$A$3:$I$910,9,0),"N.A.") -> 262
A14: BOLIVAR VIDA | B14: =+IFERROR(VLOOKUP($A14&$D$3,BaseRA_VID!$A$3:$I$910,4,0),"N.A.") -> 10,779,345 | C14: =+IFERROR(VLOOKUP($A14&$D$3,BaseRA_VID!$A$3:$I$910,5,0),"N.A.") -> 1,255,712 | D14: =+IFERROR(VLOOKUP($A14&$D$3,BaseRA_VID!$A$3:$I$910,6,0),"N.A.") -> 18,934 | E14: =+IFERROR(VLOOKUP($A14&$D$3,BaseRA_VID!$A$3:$I$910,7,0),"N.A.") -> 6,514,446 | F14: =+IFERROR(VLOOKUP($A14&$D$3,BaseRA_VID!$A$3:$I$910,8,0),"N.A.") -> 110,462 | G14: =+IFERROR(VLOOKUP($A14&$D$3,BaseRA_VID!$A$3:$I$910,9,0),"N.A.") -> 129,396
A15: COLMENA ARL | B15: =+IFERROR(VLOOKUP($A15&$D$3,BaseRA_VID!$A$3:$I$910,4,0),"N.A.") -> 2,116,598 | C15: =+IFERROR(VLOOKUP($A15&$D$3,BaseRA_VID!$A$3:$I$910,5,0),"N.A.") -> 225,972 | D15: =+IFERROR(VLOOKUP($A15&$D$3,BaseRA_VID!$A$3:$I$910,6,0),"N.A.") -> 3,390 | E15: =+IFERROR(VLOOKUP($A15&$D$3,BaseRA_VID!$A$3:$I$910,7,0),"N.A.") -> 726,613 | F15: =+IFERROR(VLOOKUP($A15&$D$3,BaseRA_VID!$A$3:$I$910,8,0),"N.A.") -> 16,056 | G15: =+IFERROR(VLOOKUP($A15&$D$3,BaseRA_VID!$A$3:$I$910,9,0),"N.A.") -> 19,445
A16: COLMENA VIDA | B16: =+IFERROR(VLOOKUP($A16&$D$3,BaseRA_VID!$A$3:$I$910,4,0),"N.A.") -> 94,840 | C16: =+IFERROR(VLOOKUP($A16&$D$3,BaseRA_VID!$A$3:$I$910,5,0),"N.A.") -> 27,931 | D16: =+IFERROR(VLOOKUP($A16&$D$3,BaseRA_VID!$A$3:$I$910,6,0),"N.A.") -> 419 | E16: =+IFERROR(VLOOKUP($A16&$D$3,BaseRA_VID!$A$3:$I$910,7,0),"N.A.") -> 203,541 | F16: =+IFERROR(VLOOKUP($A16&$D$3,BaseRA_VID!$A$3:$I$910,8,0),"N.A.") -> 6,932 | G16: =+IFERROR(VLOOKUP($A16&$D$3,BaseRA_VID!$A$3:$I$910,9,0),"N.A.") -> 7,351
A17: COLSANITAS | B17: =+IFERROR(VLOOKUP($A17&$D$3,BaseRA_VID!$A$3:$I$910,4,0),"N.A.") -> 65,168 | C17: =+IFERROR(VLOOKUP($A17&$D$3,BaseRA_VID!$A$3:$I$910,5,0),"N.A.") -> 26,795 | D17: =+IFERROR(VLOOKUP($A17&$D$3,BaseRA_VID!$A$3:$I$910,6,0),"N.A.") -> 402 | E17: =+IFERROR(VLOOKUP($A17&$D$3,BaseRA_VID!$A$3:$I$910,7,0),"N.A.") -> 68,252 | F17: =+IFERROR(VLOOKUP($A17&$D$3,BaseRA_VID!$A$3:$I$910,8,0),"N.A.") -> 3,625 | G17: =+IFERROR(VLOOKUP($A17&$D$3,BaseRA_VID!$A$3:$I$910,9,0),"N.A.") -> 4,027
A18: EQUIDAD VIDA | B18: =+IFERROR(VLOOKUP($A18&$D$3,BaseRA_VID!$A$3:$I$910,4,0),"N.A.") -> 572,971 | C18: =+IFERROR(VLOOKUP($A18&$D$3,BaseRA_VID!$A$3:$I$910,5,0),"N.A.") -> 43,485 | D18: =+IFERROR(VLOOKUP($A18&$D$3,BaseRA_VID!$A$3:$I$910,6,0),"N.A.") -> 652 | E18: =+IFERROR(VLOOKUP($A18&$D$3,BaseRA_VID!$A$3:$I$910,7,0),"N.A.") -> 264,396 | F18: =+IFERROR(VLOOKUP($A18&$D$3,BaseRA_VID!$A$3:$I$910,8,0),"N.A.") -> 5,217 | G18: =+IFERROR(VLOOKUP($A18&$D$3,BaseRA_VID!$A$3:$I$910,9,0),"N.A.") -> 5,869
A19: ESTADO VIDA | B19: =+IFERROR(VLOOKUP($A19&$D$3,BaseRA_VID!$A$3:$I$910,4,0),"N.A.") -> 38,239 | C19: =+IFERROR(VLOOKUP($A19&$D$3,BaseRA_VID!$A$3:$I$910,5,0),"N.A.") -> 49,308 | D19: =+IFERROR(VLOOKUP($A19&$D$3,BaseRA_VID!$A$3:$I$910,6,0),"N.A.") -> 740 | E19: =+IFERROR(VLOOKUP($A19&$D$3,BaseRA_VID!$A$3:$I$910,7,0),"N.A.") -> 100,865 | F19: =+IFERROR(VLOOKUP($A19&$D$3,BaseRA_VID!$A$3:$I$910,8,0),"N.A.") -> 3,056 | G19: =+IFERROR(VLOOKUP($A19&$D$3,BaseRA_VID!$A$3:$I$910,9,0),"N.A.") -> 3,796
A20: GLOBAL | B20: =+IFERROR(VLOOKUP($A20&$D$3,BaseRA_VID!$A$3:$I$910,4,0),"N.A.") -> 3,225,627 | C20: =+IFERROR(VLOOKUP($A20&$D$3,BaseRA_VID!$A$3:$I$910,5,0),"N.A.") -> 302,714 | D20: =+IFERROR(VLOOKUP($A20&$D$3,BaseRA_VID!$A$3:$I$910,6,0),"N.A.") -> 6,117 | E20: =+IFERROR(VLOOKUP($A20&$D$3,BaseRA_VID!$A$3:$I$910,7,0),"N.A.") -> 3,002,701 | F20: =+IFERROR(VLOOKUP($A20&$D$3,BaseRA_VID!$A$3:$I$910,8,0),"N.A.") -> 83,922 | G20: =+IFERROR(VLOOKUP($A20&$D$3,BaseRA_VID!$A$3:$I$910,9,0),"N.A.") -> 90,039
A21: MAPFRE VIDA | B21: =+IFERROR(VLOOKUP($A21&$D$3,BaseRA_VID!$A$3:$I$910,4,0),"N.A.") -> 5,488,442 | C21: =+IFERROR(VLOOKUP($A21&$D$3,BaseRA_VID!$A$3:$I$910,5,0),"N.A.") -> 162,479 | D21: =+IFERROR(VLOOKUP($A21&$D$3,BaseRA_VID!$A$3:$I$910,6,0),"N.A.") -> 2,417 | E21: =+IFERROR(VLOOKUP($A21&$D$3,BaseRA_VID!$A$3:$I$910,7,0),"N.A.") -> 1,412,880 | F21: =+IFERROR(VLOOKUP($A21&$D$3,BaseRA_VID!$A$3:$I$910,8,0),"N.A.") -> 22,197 | G21: =+IFERROR(VLOOKUP($A21&$D$3,BaseRA_VID!$A$3:$I$910,9,0),"N.A.") -> 24,614
A22: METLIFE | B22: =+IFERROR(VLOOKUP($A22&$D$3,BaseRA_VID!$A$3:$I$910,4,0),"N.A.") -> 2,376,290 | C22: =+IFERROR(VLOOKUP($A22&$D$3,BaseRA_VID!$A$3:$I$910,5,0),"N.A.") -> 7,419 | D22: =+IFERROR(VLOOKUP($A22&$D$3,BaseRA_VID!$A$3:$I$910,6,0),"N.A.") -> 111 | E22: =+IFERROR(VLOOKUP($A22&$D$3,BaseRA_VID!$A$3:$I$910,7,0),"N.A.") -> 365,252 | F22: =+IFERROR(VLOOKUP($A22&$D$3,BaseRA_VID!$A$3:$I$910,8,0),"N.A.") -> 11,918 | G22: =+IFERROR(VLOOKUP($A22&$D$3,BaseRA_VID!$A$3:$I$910,9,0),"N.A.") -> 12,029
A23: PANAMERICAN VIDA | B23: =+IFERROR(VLOOKUP($A23&$D$3,BaseRA_VID!$A$3:$I$910,4,0),"N.A.") -> 73,759 | C23: =+IFERROR(VLOOKUP($A23&$D$3,BaseRA_VID!$A$3:$I$910,5,0),"N.A.") -> 32,237 | D23: =+IFERROR(VLOOKUP($A23&$D$3,BaseRA_VID!$A$3:$I$910,6,0),"N.A.") -> 484 | E23: =+IFERROR(VLOOKUP($A23&$D$3,BaseRA_VID!$A$3:$I$910,7,0),"N.A.") -> 185,287 | F23: =+IFERROR(VLOOKUP($A23&$D$3,BaseRA_VID!$A$3:$I$910,8,0),"N.A.") -> 7,658 | G23: =+IFERROR(VLOOKUP($A23&$D$3,BaseRA_VID!$A$3:$I$910,9,0),"N.A.") -> 8,142
A24: POSITIVA | B24: =+IFERROR(VLOOKUP($A24&$D$3,BaseRA_VID!$A$3:$I$910,4,0),"N.A.") -> 8,723,272 | C24: =+IFERROR(VLOOKUP($A24&$D$3,BaseRA_VID!$A$3:$I$910,5,0),"N.A.") -> 1,063,920 | D24: =+IFERROR(VLOOKUP($A24&$D$3,BaseRA_VID!$A$3:$I$910,6,0),"N.A.") -> 15,959 | E24: =+IFERROR(VLOOKUP($A24&$D$3,BaseRA_VID!$A$3:$I$910,7,0),"N.A.") -> 2,652,407 | F24: =+IFERROR(VLOOKUP($A24&$D$3,BaseRA_VID!$A$3:$I$910,8,0),"N.A.") -> 59,078 | G24: =+IFERROR(VLOOKUP($A24&$D$3,BaseRA_VID!$A$3:$I$910,9,0),"N.A.") -> 75,037
A25: SKANDIA | B25: =+IFERROR(VLOOKUP($A25&$D$3,BaseRA_VID!$A$3:$I$910,4,0),"N.A.") -> 1,286,559 | C25: =+IFERROR(VLOOKUP($A25&$D$3,BaseRA_VID!$A$3:$I$910,5,0),"N.A.") -> 333,780 | D25: =+IFERROR(VLOOKUP($A25&$D$3,BaseRA_VID!$A$3:$I$910,6,0),"N.A.") -> 5,042 | E25: =+IFERROR(VLOOKUP($A25&$D$3,BaseRA_VID!$A$3:$I$910,7,0),"N.A.") -> 184,415 | F25: =+IFERROR(VLOOKUP($A25&$D$3,BaseRA_VID!$A$3:$I$910,8,0),"N.A.") -> 7,013 | G25: =+IFERROR(VLOOKUP($A25&$D$3,BaseRA_VID!$A$3:$I$910,9,0),"N.A.") -> 12,056
A26: SURAMERICANA VIDA | B26: =+IFERROR(VLOOKUP($A26&$D$3,BaseRA_VID!$A$3:$I$910,4,0),"N.A.") -> 19,318,644 | C26: =+IFERROR(VLOOKUP($A26&$D$3,BaseRA_VID!$A$3:$I$910,5,0),"N.A.") -> 449,636 | D26: =+IFERROR(VLOOKUP($A26&$D$3,BaseRA_VID!$A$3:$I$910,6,0),"N.A.") -> 6,745 | E26: =+IFERROR(VLOOKUP($A26&$D$3,BaseRA_VID!$A$3:$I$910,7,0),"N.A.") -> 6,397,110 | F26: =+IFERROR(VLOOKUP($A26&$D$3,BaseRA_VID!$A$3:$I$910,8,0),"N.A.") -> 196,421 | G26: =+IFERROR(VLOOKUP($A26&$D$3,BaseRA_VID!$A$3:$I$910,9,0),"N.A.") -> 203,166

Sheet BaseCM_GEN (hidden)
D1: VALOR
D2: CAPITAL MINIMO ACREDITADO | E2: CAPITAL MÍNIMO REQUERIDO | F2: EXCESO O DEFECTO | G2: RESULTADOS DEL EJERCICIO
A3: =+B3&C3 -> ALFA45777 | B3: ALFA | C3: 2025-04-30 | D3: 159,733 | E3: 31,231.00 | F3: 128,502 | G3: 8,449
A4: =+B4&C4 -> ALFA45808 | B4: ALFA | C4: 2025-05-31 | D4: 159,733 | E4: 31,231.00 | F4: 128,502 | G4: 9,597
A5: ALFA45838 | B5: ALFA | C5: 2025-06-30 | D5: 159,733 | E5: 31,231.00 | F5: 128,502 | G5: 10,729
A6: ALLIANZ45777 | B6: ALLIANZ | C6: 2025-04-30 | D6: 321,184 | E6: 63,980.00 | F6: 257,204 | G6: 29,353
A7: ALLIANZ45808 | B7: ALLIANZ | C7: 2025-05-31 | D7: 321,184 | E7: 63,980.00 | F7: 257,204 | G7: 40,376
A8: ALLIANZ45838 | B8: ALLIANZ | C8: 2025-06-30 | D8: 321,184 | E8: 63,980.00 | F8: 257,204 | G8: 44,382
A9: AXA COLPATRIA45777 | B9: AXA COLPATRIA | C9: 2025-04-30 | D9: 536,431 | E9: 63,980.00 | F9: 472,451 | G9: 37,833
A10: AXA COLPATRIA45808 | B10: AXA COLPATRIA | C10: 2025-05-31 | D10: 536,431 | E10: 63,980.00 | F10: 472,451 | G10: 50,382
A11: AXA COLPATRIA45838 | B11: AXA COLPATRIA | C11: 2025-06-30 | D11: 536,431 | E11: 63,980.00 | F11: 472,451 | G11: 56,492
A12: BBVA SEGUROS45777 | B12: BBVA SEGUROS | C12: 2025-04-30 | D12: 146,519 | E12: 31,231.00 | F12: 115,288 | G12: 15,347
A13: BBVA SEGUROS45808 | B13: BBVA SEGUROS | C13: 2025-05-31 | D13: 146,519 | E13: 31,231.00 | F13: 115,288 | G13: 15,162
A14: BBVA SEGUROS45838 | B14: BBVA SEGUROS | C14: 2025-06-30 | D14: 146,519 | E14: 31,231.00 | F14: 115,288 | G14: 18,419
A15: BERKLEY45777 | B15: BERKLEY | C15: 2025-04-30 | D15: 37,756 | E15: 26,291.00 | F15: 11,465 | G15: 3,560
A16: BERKLEY45808 | B16: BERKLEY | C16: 2025-05-31 | D16: 37,756 | E16: 26,291.00 | F16: 11,465 | G16: 4,185
A17: BERKLEY45838 | B17: BERKLEY | C17: 2025-06-30 | D17: 37,756 | E17: 26,291.00 | F17: 11,465 | G17: 3,998
A18: BOLIVAR45777 | B18: BOLIVAR | C18: 2025-04-30 | D18: 1,246,958 | E18: 63,980.00 | F18: 1,182,978 | G18: 92,416
A19: BOLIVAR45808 | B19: BOLIVAR | C19: 2025-05-31 | D19: 1,246,924 | E19: 63,980.00 | F19: 1,182,944 | G19: 97,021
A20: BOLIVAR45838 | B20: BOLIVAR | C20: 2025-06-30 | D20: 1,246,924 | E20: 63,980.00 | F20: 1,182,944 | G20: 118,386
A21: CARDIF45777 | B21: CARDIF | C21: 2025-04-30 | D21: 561,895 | E21: 63,980.00 | F21: 497,915 | G21: 21,582
A22: CARDIF45808 | B22: CARDIF | C22: 2025-05-31 | D22: 437,124 | E22: 63,980.00 | F22: 373,144 | G22: 26,547
A23: CARDIF45838 | B23: CARDIF | C23: 2025-06-30 | D23: 437,124 | E23: 63,980.00 | F23: 373,144 | G23: 35,465
A24: CHUBB45777 | B24: CHUBB | C24: 2025-04-30 | D24: 283,761 | E24: 63,980.00 | F24: 219,781 | G24: 32,186
A25: CHUBB45808 | B25: CHUBB | C25: 2025-05-31 | D25: 283,761 | E25: 63,980.00 | F25: 219,781 | G25: 32,192
A26: CHUBB45838 | B26: CHUBB | C26: 2025-06-30 | D26: 283,761 | E26: 63,980.00 | F26: 219,781 | G26: 31,252
A27: COFACE45777 | B27: COFACE | C27: 2025-04-30 | D27: 95,332 | E27: 20,994.00 | F27: 74,338 | G27: 3,173
A28: COFACE45808 | B28: COFACE | C28: 2025-05-31 | D28: 95,332 | E28: 20,994.00 | F28: 74,338 | G28: 3,846
A29: COFACE45838 | B29: COFACE | C29: 2025-06-30 | D29: 95,332 | E29: 20,994.00 | F29: 74,338 | G29: 3,892
A30: COLMENA45777 | B30: COLMENA | C30: 2025-04-30 | D30: 22,347 | E30: 21,868.00 | F30: 479 | G30: 421
A31: COLMENA45808 | B31: COLMENA | C31: 2025-05-31 | D31: 22,347 | E31: 21,868.00 | F31: 479 | G31: 500
A32: COLMENA45838 | B32: COLMENA | C32: 2025-06-30 | D32: 25,612 | E32: 21,868.00 | F32: 3,744 | G32: 0
A33: CONFIANZA45777 | B33: CONFIANZA | C33: 2025-04-30 | D33: 120,634 | E33: 28,906.00 | F33: 91,728 | G33: 17,439
A34: CONFIANZA45808 | B34: CONFIANZA | C34: 2025-05-31 | D34: 120,634 | E34: 28,906.00 | F34: 91,728 | G34: 19,455
A35: CONFIANZA45838 | B35: CONFIANZA | C35: 2025-06-30 | D35: 120,634 | E35: 28,906.00 | F35: 91,728 | G35: 18,950
A36: EQUIDAD45777 | B36: EQUIDAD | C36: 2025-04-30 | D36: 82,984 | E36: 37,376.00 | F36: 45,608 | G36: 3,414
A37: EQUIDAD45808 | B37: EQUIDAD | C37: 2025-05-31 | D37: 82,986 | E37: 37,376.00 | F37: 45,610 | G37: 4,773
A38: EQUIDAD45838 | B38: EQUIDAD | C38: 2025-06-30 | D38: 83,178 | E38: 37,376.00 | F38: 45,802 | G38: 3,855
A39: ESTADO45777 | B39: ESTADO | C39: 2025-04-30 | D39: 297,698 | E39: 34,449.00 | F39: 263,249 | G39: 68,066
A40: ESTADO45808 | B40: ESTADO | C40: 2025-05-31 | D40: 297,698 | E40: 34,449.00 | F40: 263,249 | G40: 85,962
A41: ESTADO45838 | B41: ESTADO | C41: 2025-06-30 | D41: 297,698 | E41: 34,449.00 | F41: 263,249 | G41: 81,543
A42: EVEREST45777 | B42: EVEREST | C42: 2025-04-30 | D42: 34,701 | E42: 20,994.00 | F42: 13,707 | G42: 269
A43: EVEREST45808 | B43: EVEREST | C43: 2025-05-31 | D43: 34,395 | E43: 20,994.00 | F43: 13,401 | G43: 0
A44: EVEREST45838 | B44: EVEREST | C44: 2025-06-30 | D44: 98,255 | E44: 20,994.00 | F44: 77,261 | G44: 0
A45: JMALUCELLI TRAVELERS45777 | B45: JMALUCELLI TRAVELERS | C45: 2025-04-30 | D45: 43,588 | E45: 20,994.00 | F45: 22,594 | G45: 0
A46: JMALUCELLI TRAVELERS45808 | B46: JMALUCELLI TRAVELERS | C46: 2025-05-31 | D46: 43,788 | E46: 20,994.00 | F46: 22,794 | G46: 0
A47: JMALUCELLI TRAVELERS45838 | B47: JMALUCELLI TRAVELERS | C47: 2025-06-30 | D47: 43,570 | E47: 20,994.00 | F47: 22,576 | G47: 0
A48: HDI SEGUROS45777 | B48: HDI SEGUROS | C48: 2025-04-30 | D48: 438,483 | E48: 40,303.00 | F48: 398,180 | G48: 40,879
A49: HDI SEGUROS45808 | B49: HDI SEGUROS | C49: 2025-05-31 | D49: 438,483 | E49: 40,303.00 | F49: 398,180 | G49: 54,200
A50: HDI SEGUROS45838 | B50: HDI SEGUROS | C50: 2025-06-30 | D50: 438,483 | E50: 40,303.00 | F50: 398,180 | G50: 68,378
A51: MAPFRE45777 | B51: MAPFRE | C51: 2025-04-30 | D51: 493,258 | E51: 63,980.00 | F51: 429,278 | G51: 47,747
A52: MAPFRE45808 | B52: MAPFRE | C52: 2025-05-31 | D52: 493,258 | E52: 63,980.00 | F52: 429,278 | G52: 57,817
A53: MAPFRE45838 | B53: MAPFRE | C53: 2025-06-30 | D53: 493,258 | E53: 63,980.00 | F53: 429,278 | G53: 67,496
A54: MUNDIAL45777 | B54: MUNDIAL | C54: 2025-04-30 | D54: 215,417 | E54: 41,468.00 | F54: 173,949 | G54: 32,601
A55: MUNDIAL45808 | B55: MUNDIAL | C55: 2025-05-31 | D55: 215,417 | E55: 41,468.00 | F55: 173,949 | G55: 38,275
A56: MUNDIAL45838 | B56: MUNDIAL | C56: 2025-06-30 | D56: 195,417 | E56: 41,468.00 | F56: 153,949 | G56: 39,704
A57: NACIONAL45777 | B57: NACIONAL | C57: 2025-04-30 | D57: 92,725 | E57: 20,994.00 | F57: 71,731 | G57: 5,663
A58: NACIONAL45808 | B58: NACIONAL | C58: 2025-05-31 | D58: 92,725 | E58: 20,994.00 | F58: 71,731 | G58: 7,167
A59: NACIONAL45838 | B59: NACIONAL | C59: 2025-06-30 | D59: 92,725 | E59: 20,994.00 | F59: 71,731 | G59: 8,618
A60: PREVISORA45777 | B60: PREVISORA | C60: 2025-04-30 | D60: 567,742 | E60: 37,376.00 | F60: 530,366 | G60: 85,538
A61: PREVISORA45808 | B61: PREVISORA | C61: 2025-05-31 | D61: 567,742 | E61: 37,376.00 | F61: 530,366 | G61: 95,421
A62: PREVISORA45838 | B62: PREVISORA | C62: 2025-06-30 | D62: 567,742 | E62: 37,376.00 | F62: 530,366 | G62: 111,179
A63: QUALITAS45777 | B63: QUALITAS | C63: 2025-04-30 | D63: 32,506 | E63: 21,261.00 | F63: 11,245 | G63: 0
A64: QUALITAS45808 | B64: QUALITAS | C64: 2025-05-31 | D64: 31,212 | E64: 21,261.00 | F64: 9,951 | G64: 0
A65: QUALITAS45838 | B65: QUALITAS | C65: 2025-06-30 | D65: 40,233 | E65: 21,261.00 | F65: 18,972 | G65: 0
A66: SBS SEGUROS45777 | B66: SBS SEGUROS | C66: 2025-04-30 | D66: 292,750 | E66: 63,980.00 | F66: 228,770 | G66: 7,956
A67: SBS SEGUROS45808 | B67: SBS SEGUROS | C67: 2025-05-31 | D67: 292,750 | E67: 63,980.00 | F67: 228,770 | G67: 14,600
A68: =+B68&C68 -> SBS SEGUROS45838 | B68: SBS SEGUROS | C68: 2025-06-30 | D68: 292,750 | E68: 63,980.00 | F68: 228,770 | G68: 17,437
A69: SEGUREXPO45777 | B69: SEGUREXPO | C69: 2025-04-30 | D69: 32,643 | E69: 25,086.00 | F69: 7,557 | G69: 1,852
A70: SEGUREXPO45808 | B70: SEGUREXPO | C70: 2025-05-31 | D70: 32,643 | E70: 25,086.00 | F70: 7,557 | G70: 1,156
A71: SEGUREXPO45838 | B71: SEGUREXPO | C71: 2025-06-30 | D71: 32,643 | E71: 25,086.00 | F71: 7,557 | G71: 956
A72: SOLIDARIA45777 | B72: SOLIDARIA | C72: 2025-04-30 | D72: 336,383 | E72: 37,376.00 | F72: 299,007 | G72: 25,908
A73: SOLIDARIA45808 | B73: SOLIDARIA | C73: 2025-05-31 | D73: 336,383 | E73: 37,376.00 | F73: 299,007 | G73: 28,424
A74: SOLIDARIA45838 | B74: SOLIDARIA | C74: 2025-06-30 | D74: 336,383 | E74: 37,376.00 | F74: 299,007 | G74: 34,050
A75: SOLUNION45777 | B75: SOLUNION | C75: 2025-04-30 | D75: 45,865 | E75: 25,086.00 | F75: 20,779 | G75: 5,035
A76: SOLUNION45808 | B76: SOLUNION | C76: 2025-05-31 | D76: 45,865 | E76: 25,086.00 | F76: 20,779 | G76: 4,434
A77: SOLUNION45838 | B77: SOLUNION | C77: 2025-06-30 | D77: 45,865 | E77: 25,086.00 | F77: 20,779 | G77: 5,355
A78: SURAMERICANA45777 | B78: SURAMERICANA | C78: 2025-04-30 | D78: 730,621 | E78: 63,980.00 | F78: 666,641 | G78: 51,225
A79: SURAMERICANA45808 | B79: SURAMERICANA | C79: 2025-05-31 | D79: 730,621 | E79: 63,980.00 | F79: 666,641 | G79: 68,474
A80: SURAMERICANA45838 | B80: SURAMERICANA | C80: 2025-06-30 | D80: 730,807 | E80: 63,980.00 | F80: 666,827 | G80: 78,622
A81: ZURICH45777 | B81: ZURICH | C81: 2025-04-30 | D81: 184,138 | E81: 63,980.00 | F81: 120,158 | G81: 0
A82: ZURICH45808 | B82: ZURICH | C82: 2025-05-31 | D82: 178,683 | E82: 63,980.00 | F82: 114,703 | G82: 0
A83: ZURICH45838 | B83: ZURICH | C83: 2025-06-30 | D83: 196,539 | E83: 63,980.00 | F83: 132,559 | G83: 0
A84: COMPAÑÍAS45777 | B84: COMPAÑÍAS | C84: 2025-04-30 | D84: 7,454,051 | E84: 1,099,104.00 | F84: 6,354,947 | G84: 637,912
A85: COMPAÑÍAS45808 | B85: COMPAÑÍAS | C85: 2025-05-31 | D85: 7,322,395 | E85: 1,099,104.00 | F85: 6,223,291 | G85: 759,964
A86: COMPAÑÍAS45838 | B86: COMPAÑÍAS | C86: 2025-06-30 | D86: 7,396,557 | E86: 1,099,104.00 | F86: 6,297,453 | G86: 859,159

Sheet CM_GEN
B1: COMPAÑÍAS DE SEGUROS GENERALES
C2: CAPITALES MÍNIMOS
C3: 2025-06-30
C4: CIFRAS EN MILLONES DE PESOS
A5: COMPAÑÍAS | B5: Valor
B6: Capital Mínimo Acreditado | C6: Capital Mínimo Requerido | D6: Exceso o defecto | E6: Resultados del Ejecicio
A7: ALFA | B7: =+IFERROR(VLOOKUP($A7&$C$3,BaseCM_GEN!$A$3:$I$865,4,0),"N.A.") -> 159,733 | C7: =+IFERROR(VLOOKUP($A7&$C$3,BaseCM_GEN!$A$3:$I$865,5,0),"N.A.") -> 31,231 | D7: =+IFERROR(VLOOKUP($A7&$C$3,BaseCM_GEN!$A$3:$I$865,6,0),"N.A.") -> 128,502 | E7: =+IFERROR(VLOOKUP($A7&$C$3,BaseCM_GEN!$A$3:$I$865,7,0),"N.A.") -> 10,729
A8: ALLIANZ | B8: =+IFERROR(VLOOKUP($A8&$C$3,BaseCM_GEN!$A$3:$I$865,4,0),"N.A.") -> 321,184 | C8: =+IFERROR(VLOOKUP($A8&$C$3,BaseCM_GEN!$A$3:$I$865,5,0),"N.A.") -> 63,980 | D8: =+IFERROR(VLOOKUP($A8&$C$3,BaseCM_GEN!$A$3:$I$865,6,0),"N.A.") -> 257,204 | E8: =+IFERROR(VLOOKUP($A8&$C$3,BaseCM_GEN!$A$3:$I$865,7,0),"N.A.") -> 44,382
A9: AXA COLPATRIA | B9: =+IFERROR(VLOOKUP($A9&$C$3,BaseCM_GEN!$A$3:$I$865,4,0),"N.A.") -> 536,431 | C9: =+IFERROR(VLOOKUP($A9&$C$3,BaseCM_GEN!$A$3:$I$865,5,0),"N.A.") -> 63,980 | D9: =+IFERROR(VLOOKUP($A9&$C$3,BaseCM_GEN!$A$3:$I$865,6,0),"N.A.") -> 472,451 | E9: =+IFERROR(VLOOKUP($A9&$C$3,BaseCM_GEN!$A$3:$I$865,7,0),"N.A.") -> 56,492
A10: BBVA SEGUROS | B10: =+IFERROR(VLOOKUP($A10&$C$3,BaseCM_GEN!$A$3:$I$865,4,0),"N.A.") -> 146,519 | C10: =+IFERROR(VLOOKUP($A10&$C$3,BaseCM_GEN!$A$3:$I$865,5,0),"N.A.") -> 31,231 | D10: =+IFERROR(VLOOKUP($A10&$C$3,BaseCM_GEN!$A$3:$I$865,6,0),"N.A.") -> 115,288 | E10: =+IFERROR(VLOOKUP($A10&$C$3,BaseCM_GEN!$A$3:$I$865,7,0),"N.A.") -> 18,419
A11: BERKLEY | B11: =+IFERROR(VLOOKUP($A11&$C$3,BaseCM_GEN!$A$3:$I$865,4,0),"N.A.") -> 37,756 | C11: =+IFERROR(VLOOKUP($A11&$C$3,BaseCM_GEN!$A$3:$I$865,5,0),"N.A.") -> 26,291 | D11: =+IFERROR(VLOOKUP($A11&$C$3,BaseCM_GEN!$A$3:$I$865,6,0),"N.A.") -> 11,465 | E11: =+IFERROR(VLOOKUP($A11&$C$3,BaseCM_GEN!$A$3:$I$865,7,0),"N.A.") -> 3,998
A12: BOLIVAR | B12: =+IFERROR(VLOOKUP($A12&$C$3,BaseCM_GEN!$A$3:$I$865,4,0),"N.A.") -> 1,246,924 | C12: =+IFERROR(VLOOKUP($A12&$C$3,BaseCM_GEN!$A$3:$I$865,5,0),"N.A.") -> 63,980 | D12: =+IFERROR(VLOOKUP($A12&$C$3,BaseCM_GEN!$A$3:$I$865,6,0),"N.A.") -> 1,182,944 | E12: =+IFERROR(VLOOKUP($A12&$C$3,BaseCM_GEN!$A$3:$I$865,7,0),"N.A.") -> 118,386
A13: CARDIF | B13: =+IFERROR(VLOOKUP($A13&$C$3,BaseCM_GEN!$A$3:$I$865,4,0),"N.A.") -> 437,124 | C13: =+IFERROR(VLOOKUP($A13&$C$3,BaseCM_GEN!$A$3:$I$865,5,0),"N.A.") -> 63,980 | D13: =+IFERROR(VLOOKUP($A13&$C$3,BaseCM_GEN!$A$3:$I$865,6,0),"N.A.") -> 373,144 | E13: =+IFERROR(VLOOKUP($A13&$C$3,BaseCM_GEN!$A$3:$I$865,7,0),"N.A.") -> 35,465
A14: CHUBB | B14: =+IFERROR(VLOOKUP($A14&$C$3,BaseCM_GEN!$A$3:$I$865,4,0),"N.A.") -> 283,761 | C14: =+IFERROR(VLOOKUP($A14&$C$3,BaseCM_GEN!$A$3:$I$865,5,0),"N.A.") -> 63,980 | D14: =+IFERROR(VLOOKUP($A14&$C$3,BaseCM_GEN!$A$3:$I$865,6,0),"N.A.") -> 219,781 | E14: =+IFERROR(VLOOKUP($A14&$C$3,BaseCM_GEN!$A$3:$I$865,7,0),"N.A.") -> 31,252
A15: COFACE | B15: =+IFERROR(VLOOKUP($A15&$C$3,BaseCM_GEN!$A$3:$I$865,4,0),"N.A.") -> 95,332 | C15: =+IFERROR(VLOOKUP($A15&$C$3,BaseCM_GEN!$A$3:$I$865,5,0),"N.A.") -> 20,994 | D15: =+IFERROR(VLOOKUP($A15&$C$3,BaseCM_GEN!$A$3:$I$865,6,0),"N.A.") -> 74,338 | E15: =+IFERROR(VLOOKUP($A15&$C$3,BaseCM_GEN!$A$3:$I$865,7,0),"N.A.") -> 3,892
A16: COLMENA | B16: =+IFERROR(VLOOKUP($A16&$C$3,BaseCM_GEN!$A$3:$I$865,4,0),"N.A.") -> 25,612 | C16: =+IFERROR(VLOOKUP($A16&$C$3,BaseCM_GEN!$A$3:$I$865,5,0),"N.A.") -> 21,868 | D16: =+IFERROR(VLOOKUP($A16&$C$3,BaseCM_GEN!$A$3:$I$865,6,0),"N.A.") -> 3,744 | E16: =+IFERROR(VLOOKUP($A16&$C$3,BaseCM_GEN!$A$3:$I$865,7,0),"N.A.") -> 0
A17: CONFIANZA | B17: =+IFERROR(VLOOKUP($A17&$C$3,BaseCM_GEN!$A$3:$I$865,4,0),"N.A.") -> 120,634 | C17: =+IFERROR(VLOOKUP($A17&$C$3,BaseCM_GEN!$A$3:$I$865,5,0),"N.A.") -> 28,906 | D17: =+IFERROR(VLOOKUP($A17&$C$3,BaseCM_GEN!$A$3:$I$865,6,0),"N.A.") -> 91,728 | E17: =+IFERROR(VLOOKUP($A17&$C$3,BaseCM_GEN!$A$3:$I$865,7,0),"N.A.") -> 18,950
A18: EQUIDAD | B18: =+IFERROR(VLOOKUP($A18&$C$3,BaseCM_GEN!$A$3:$I$865,4,0),"N.A.") -> 83,178 | C18: =+IFERROR(VLOOKUP($A18&$C$3,BaseCM_GEN!$A$3:$I$865,5,0),"N.A.") -> 37,376 | D18: =+IFERROR(VLOOKUP($A18&$C$3,BaseCM_GEN!$A$3:$I$865,6,0),"N.A.") -> 45,802 | E18: =+IFERROR(VLOOKUP($A18&$C$3,BaseCM_GEN!$A$3:$I$865,7,0),"N.A.") -> 3,855
A19: ESTADO | B19: =+IFERROR(VLOOKUP($A19&$C$3,BaseCM_GEN!$A$3:$I$865,4,0),"N.A.") -> 297,698 | C19: =+IFERROR(VLOOKUP($A19&$C$3,BaseCM_GEN!$A$3:$I$865,5,0),"N.A.") -> 34,449 | D19: =+IFERROR(VLOOKUP($A19&$C$3,BaseCM_GEN!$A$3:$I$865,6,0),"N.A.") -> 263,249 | E19: =+IFERROR(VLOOKUP($A19&$C$3,BaseCM_GEN!$A$3:$I$865,7,0),"N.A.") -> 81,543
A20: HDI SEGUROS | B20: =+IFERROR(VLOOKUP($A20&$C$3,BaseCM_GEN!$A$3:$I$865,4,0),"N.A.") -> 438,483 | C20: =+IFERROR(VLOOKUP($A20&$C$3,BaseCM_GEN!$A$3:$I$865,5,0),"N.A.") -> 40,303 | D20: =+IFERROR(VLOOKUP($A20&$C$3,BaseCM_GEN!$A$3:$I$865,6,0),"N.A.") -> 398,180 | E20: =+IFERROR(VLOOKUP($A20&$C$3,BaseCM_GEN!$A$3:$I$865,7,0),"N.A.") -> 68,378
A21: JMALUCELLI TRAVELERS | B21: =+IFERROR(VLOOKUP($A21&$C$3,BaseCM_GEN!$A$3:$I$865,4,0),"N.A.") -> 43,570 | C21: =+IFERROR(VLOOKUP($A21&$C$3,BaseCM_GEN!$A$3:$I$865,5,0),"N.A.") -> 20,994 | D21: =+IFERROR(VLOOKUP($A21&$C$3,BaseCM_GEN!$A$3:$I$865,6,0),"N.A.") -> 22,576 | E21: =+IFERROR(VLOOKUP($A21&$C$3,BaseCM_GEN!$A$3:$I$865,7,0),"N.A.") -> 0
A22: MAPFRE | B22: =+IFERROR(VLOOKUP($A22&$C$3,BaseCM_GEN!$A$3:$I$865,4,0),"N.A.") -> 493,258 | C22: =+IFERROR(VLOOKUP($A22&$C$3,BaseCM_GEN!$A$3:$I$865,5,0),"N.A.") -> 63,980 | D22: =+IFERROR(VLOOKUP($A22&$C$3,BaseCM_GEN!$A$3:$I$865,6,0),"N.A.") -> 429,278 | E22: =+IFERROR(VLOOKUP($A22&$C$3,BaseCM_GEN!$A$3:$I$865,7,0),"N.A.") -> 67,496
A23: MUNDIAL | B23: =+IFERROR(VLOOKUP($A23&$C$3,BaseCM_GEN!$A$3:$I$865,4,0),"N.A.") -> 195,417 | C23: =+IFERROR(VLOOKUP($A23&$C$3,BaseCM_GEN!$A$3:$I$865,5,0),"N.A.") -> 41,468 | D23: =+IFERROR(VLOOKUP($A23&$C$3,BaseCM_GEN!$A$3:$I$865,6,0),"N.A.") -> 153,949 | E23: =+IFERROR(VLOOKUP($A23&$C$3,BaseCM_GEN!$A$3:$I$865,7,0),"N.A.") -> 39,704
A24: NACIONAL | B24: =+IFERROR(VLOOKUP($A24&$C$3,BaseCM_GEN!$A$3:$I$865,4,0),"N.A.") -> 92,725 | C24: =+IFERROR(VLOOKUP($A24&$C$3,BaseCM_GEN!$A$3:$I$865,5,0),"N.A.") -> 20,994 | D24: =+IFERROR(VLOOKUP($A24&$C$3,BaseCM_GEN!$A$3:$I$865,6,0),"N.A.") -> 71,731 | E24: =+IFERROR(VLOOKUP($A24&$C$3,BaseCM_GEN!$A$3:$I$865,7,0),"N.A.") -> 8,618
A25: PREVISORA | B25: =+IFERROR(VLOOKUP($A25&$C$3,BaseCM_GEN!$A$3:$I$865,4,0),"N.A.") -> 567,742 | C25: =+IFERROR(VLOOKUP($A25&$C$3,BaseCM_GEN!$A$3:$I$865,5,0),"N.A.") -> 37,376 | D25: =+IFERROR(VLOOKUP($A25&$C$3,BaseCM_GEN!$A$3:$I$865,6,0),"N.A.") -> 530,366 | E25: =+IFERROR(VLOOKUP($A25&$C$3,BaseCM_GEN!$A$3:$I$865,7,0),"N.A.") -> 111,179
A26: QUALITAS | B26: =+IFERROR(VLOOKUP($A26&$C$3,BaseCM_GEN!$A$3:$I$865,4,0),"N.A.") -> 40,233 | C26: =+IFERROR(VLOOKUP($A26&$C$3,BaseCM_GEN!$A$3:$I$865,5,0),"N.A.") -> 21,261 | D26: =+IFERROR(VLOOKUP($A26&$C$3,BaseCM_GEN!$A$3:$I$865,6,0),"N.A.") -> 18,972 | E26: =+IFERROR(VLOOKUP($A26&$C$3,BaseCM_GEN!$A$3:$I$865,7,0),"N.A.") -> 0
A27: SBS SEGUROS | B27: =+IFERROR(VLOOKUP($A27&$C$3,BaseCM_GEN!$A$3:$I$865,4,0),"N.A.") -> 292,750 | C27: =+IFERROR(VLOOKUP($A27&$C$3,BaseCM_GEN!$A$3:$I$865,5,0),"N.A.") -> 63,980 | D27: =+IFERROR(VLOOKUP($A27&$C$3,BaseCM_GEN!$A$3:$I$865,6,0),"N.A.") -> 228,770 | E27: =+IFERROR(VLOOKUP($A27&$C$3,BaseCM_GEN!$A$3:$I$865,7,0),"N.A.") -> 17,437
A28: SEGUREXPO | B28: =+IFERROR(VLOOKUP($A28&$C$3,BaseCM_GEN!$A$3:$I$865,4,0),"N.A.") -> 32,643 | C28: =+IFERROR(VLOOKUP($A28&$C$3,BaseCM_GEN!$A$3:$I$865,5,0),"N.A.") -> 25,086 | D28: =+IFERROR(VLOOKUP($A28&$C$3,BaseCM_GEN!$A$3:$I$865,6,0),"N.A.") -> 7,557 | E28: =+IFERROR(VLOOKUP($A28&$C$3,BaseCM_GEN!$A$3:$I$865,7,0),"N.A.") -> 956
A29: SOLIDARIA | B29: =+IFERROR(VLOOKUP($A29&$C$3,BaseCM_GEN!$A$3:$I$865,4,0),"N.A.") -> 336,383 | C29: =+IFERROR(VLOOKUP($A29&$C$3,BaseCM_GEN!$A$3:$I$865,5,0),"N.A.") -> 37,376 | D29: =+IFERROR(VLOOKUP($A29&$C$3,BaseCM_GEN!$A$3:$I$865,6,0),"N.A.") -> 299,007 | E29: =+IFERROR(VLOOKUP($A29&$C$3,BaseCM_GEN!$A$3:$I$865,7,0),"N.A.") -> 34,050
A30: SOLUNION | B30: =+IFERROR(VLOOKUP($A30&$C$3,BaseCM_GEN!$A$3:$I$865,4,0),"N.A.") -> 45,865 | C30: =+IFERROR(VLOOKUP($A30&$C$3,BaseCM_GEN!$A$3:$I$865,5,0),"N.A.") -> 25,086 | D30: =+IFERROR(VLOOKUP($A30&$C$3,BaseCM_GEN!$A$3:$I$865,6,0),"N.A.") -> 20,779 | E30: =+IFERROR(VLOOKUP($A30&$C$3,BaseCM_GEN!$A$3:$I$865,7,0),"N.A.") -> 5,355
A31: SURAMERICANA | B31: =+IFERROR(VLOOKUP($A31&$C$3,BaseCM_GEN!$A$3:$I$865,4,0),"N.A.") -> 730,807 | C31: =+IFERROR(VLOOKUP($A31&$C$3,BaseCM_GEN!$A$3:$I$865,5,0),"N.A.") -> 63,980 | D31: =+IFERROR(VLOOKUP($A31&$C$3,BaseCM_GEN!$A$3:$I$865,6,0),"N.A.") -> 666,827 | E31: =+IFERROR(VLOOKUP($A31&$C$3,BaseCM_GEN!$A$3:$I$865,7,0),"N.A.") -> 78,622
A32: ZURICH | B32: =+IFERROR(VLOOKUP($A32&$C$3,BaseCM_GEN!$A$3:$I$865,4,0),"N.A.") -> 196,539 | C32: =+IFERROR(VLOOKUP($A32&$C$3,BaseCM_GEN!$A$3:$I$865,5,0),"N.A.") -> 63,980 | D32: =+IFERROR(VLOOKUP($A32&$C$3,BaseCM_GEN!$A$3:$I$865,6,0),"N.A.") -> 132,559 | E32: =+IFERROR(VLOOKUP($A32&$C$3,BaseCM_GEN!$A$3:$I$865,7,0),"N.A.") -> 0

Sheet BaseCM_VID (hidden)
D1: VALOR
D2: CAPITAL MINIMO ACREDITADO | E2: CAPITAL MÍNIMO REQUERIDO | F2: EXCESO O DEFECTO | G2: RESULTADOS DEL EJERCICIO
A3: =+B3&C3 -> ALFA VIDA45777 | B3: ALFA VIDA | C3: 2025-04-30 | D3: 2,131,799 | E3: 38,220.00 | F3: 2,093,579 | G3: 176,954
A4: ALFA VIDA45808 | B4: ALFA VIDA | C4: 2025-05-31 | D4: 2,131,799 | E4: 38,220.00 | F4: 2,093,579 | G4: 239,362
A5: ALFA VIDA45838 | B5: ALFA VIDA | C5: 2025-06-30 | D5: 2,131,799 | E5: 38,220.00 | F5: 2,093,579 | G5: 268,721
A6: ALLIANZ VIDA45777 | B6: ALLIANZ VIDA | C6: 2025-04-30 | D6: 284,029 | E6: 43,472.00 | F6: 240,557 | G6: 27,661
A7: ALLIANZ VIDA45808 | B7: ALLIANZ VIDA | C7: 2025-05-31 | D7: 284,029 | E7: 43,472.00 | F7: 240,557 | G7: 46,189
A8: ALLIANZ VIDA45838 | B8: ALLIANZ VIDA | C8: 2025-06-30 | D8: 284,029 | E8: 43,472.00 | F8: 240,557 | G8: 46,341
A9: ANDINA45777 | B9: ANDINA | C9: 2025-04-30 | D9: 73,489 | E9: 23,005.00 | F9: 50,484 | G9: 3,020
A10: ANDINA45808 | B10: ANDINA | C10: 2025-05-31 | D10: 73,489 | E10: 23,005.00 | F10: 50,484 | G10: 4,558
A11: ANDINA45838 | B11: ANDINA | C11: 2025-06-30 | D11: 73,489 | E11: 25,932.00 | F11: 47,557 | G11: 7,379
A12: ASULADO45777 | B12: ASULADO | C12: 2025-04-30 | D12: 1,099,860 | E12: 25,932.00 | F12: 1,073,928 | G12: 81,294
A13: ASULADO45808 | B13: ASULADO | C13: 2025-05-31 | D13: 1,099,860 | E13: 25,932.00 | F13: 1,073,928 | G13: 100,955
A14: ASULADO45838 | B14: ASULADO | C14: 2025-06-30 | D14: 1,099,860 | E14: 25,932.00 | F14: 1,073,928 | G14: 112,588
A15: AURORA VIDA45777 | B15: AURORA VIDA | C15: 2025-04-30 | D15: 28,376 | E15: 28,297.00 | F15: 79 | G15: 0
A16: AURORA VIDA45808 | B16: AURORA VIDA | C16: 2025-05-31 | D16: 29,690 | E16: 28,297.00 | F16: 1,393 | G16: 0
A17: AURORA VIDA45838 | B17: AURORA VIDA | C17: 2025-06-30 | D17: 29,145 | E17: 28,297.00 | F17: 848 | G17: 0
A18: AXA COLPATRIA VIDA45777 | B18: AXA COLPATRIA VIDA | C18: 2025-04-30 | D18: 996,324 | E18: 46,340.00 | F18: 949,984 | G18: 108,260
A19: AXA COLPATRIA VIDA45808 | B19: AXA COLPATRIA VIDA | C19: 2025-05-31 | D19: 996,324 | E19: 46,340.00 | F19: 949,984 | G19: 143,033
A20: AXA COLPATRIA VIDA45838 | B20: AXA COLPATRIA VIDA | C20: 2025-06-30 | D20: 996,324 | E20: 46,340.00 | F20: 949,984 | G20: 167,879
A21: BBVA SEGUROS VIDA45777 | B21: BBVA SEGUROS VIDA | C21: 2025-04-30 | D21: 682,602 | E21: 38,805.00 | F21: 643,797 | G21: 71,763
A22: BBVA SEGUROS VIDA45808 | B22: BBVA SEGUROS VIDA | C22: 2025-05-31 | D22: 682,602 | E22: 38,805.00 | F22: 643,797 | G22: 94,529
A23: BBVA SEGUROS VIDA45838 | B23: BBVA SEGUROS VIDA | C23: 2025-06-30 | D23: 682,602 | E23: 38,805.00 | F23: 643,797 | G23: 108,638
A24: BMI COLOMBIA45777 | B24: BMI COLOMBIA | C24: 2025-04-30 | D24: 27,608 | E24: 23,630.00 | F24: 3,978 | G24: 299
A25: BMI COLOMBIA45808 | B25: BMI COLOMBIA | C25: 2025-05-31 | D25: 27,608 | E25: 23,630.00 | F25: 3,978 | G25: 2,813
A26: BMI COLOMBIA45838 | B26: BMI COLOMBIA | C26: 2025-06-30 | D26: 27,608 | E26: 23,630.00 | F26: 3,978 | G26: 3,255
A27: BOLIVAR VIDA45777 | B27: BOLIVAR VIDA | C27: 2025-04-30 | D27: 3,149,033 | E27: 43,472.00 | F27: 3,105,561 | G27: 210,348
A28: BOLIVAR VIDA45808 | B28: BOLIVAR VIDA | C28: 2025-05-31 | D28: 3,148,847 | E28: 43,472.00 | F28: 3,105,375 | G28: 317,349
A29: BOLIVAR VIDA45838 | B29: BOLIVAR VIDA | C29: 2025-06-30 | D29: 3,148,847 | E29: 43,472.00 | F29: 3,105,375 | G29: 247,767
A30: COLMENA ARL45777 | B30: COLMENA ARL | C30: 2025-04-30 | D30: 185,514 | E30: 20,676.00 | F30: 164,838 | G30: 99,054
A31: COLMENA ARL45808 | B31: COLMENA ARL | C31: 2025-05-31 | D31: 185,514 | E31: 20,676.00 | F31: 164,838 | G31: 123,069
A32: COLMENA ARL45838 | B32: COLMENA ARL | C32: 2025-06-30 | D32: 185,514 | E32: 20,676.00 | F32: 164,838 | G32: 141,684
A33: COLMENA VIDA45777 | B33: COLMENA VIDA | C33: 2025-04-30 | D33: 143,229 | E33: 23,630.00 | F33: 119,599 | G33: 10,811
A34: COLMENA VIDA45808 | B34: COLMENA VIDA | C34: 2025-05-31 | D34: 143,229 | E34: 23,630.00 | F34: 119,599 | G34: 13,048
A35: COLMENA VIDA45838 | B35: COLMENA VIDA | C35: 2025-06-30 | D35: 143,229 | E35: 23,630.00 | F35: 119,599 | G35: 15,968
A36: COLSANITAS45777 | B36: COLSANITAS | C36: 2025-04-30 | D36: 39,336 | E36: 28,297.00 | F36: 11,039 | G36: 197
A37: =+B37&C37 -> COLSANITAS45808 | B37: COLSANITAS | C37: 2025-05-31 | D37: 46,836 | E37: 28,297.00 | F37: 18,539 | G37: 254
A38: COLSANITAS45838 | B38: COLSANITAS | C38: 2025-06-30 | D38: 46,163 | E38: 28,297.00 | F38: 17,866 | G38: 0
A39: EQUIDAD VIDA45777 | B39: EQUIDAD VIDA | C39: 2025-04-30 | D39: 67,858 | E39: 34,092.00 | F39: 33,766 | G39: 0
A40: EQUIDAD VIDA45808 | B40: EQUIDAD VIDA | C40: 2025-05-31 | D40: 71,017 | E40: 34,092.00 | F40: 36,925 | G40: 0
A41: EQUIDAD VIDA45838 | B41: EQUIDAD VIDA | C41: 2025-06-30 | D41: 72,300 | E41: 34,092.00 | F41: 38,208 | G41: 0
A42: ESTADO VIDA45777 | B42: ESTADO VIDA | C42: 2025-04-30 | D42: 36,148 | E42: 23,630.00 | F42: 12,518 | G42: 8,113
A43: ESTADO VIDA45808 | B43: ESTADO VIDA | C43: 2025-05-31 | D43: 36,148 | E43: 23,630.00 | F43: 12,518 | G43: 9,524
A44: ESTADO VIDA45838 | B44: ESTADO VIDA | C44: 2025-06-30 | D44: 36,148 | E44: 23,630.00 | F44: 12,518 | G44: 7,560
A45: GLOBAL45777 | B45: GLOBAL | C45: 2025-04-30 | D45: 343,014 | E45: 43,440.00 | F45: 299,574 | G45: 4,732
A46: GLOBAL45808 | B46: GLOBAL | C46: 2025-05-31 | D46: 343,014 | E46: 43,440.00 | F46: 299,574 | G46: 9,657
A47: GLOBAL45838 | B47: GLOBAL | C47: 2025-06-30 | D47: 343,014 | E47: 43,440.00 | F47: 299,574 | G47: 9,657
A48: MAPFRE VIDA45777 | B48: MAPFRE VIDA | C48: 2025-04-30 | D48: 300,268 | E48: 41,088.00 | F48: 259,180 | G48: 0
A49: MAPFRE VIDA45808 | B49: MAPFRE VIDA | C49: 2025-05-31 | D49: 301,048 | E49: 41,088.00 | F49: 259,960 | G49: 0
A50: MAPFRE VIDA45838 | B50: MAPFRE VIDA | C50: 2025-06-30 | D50: 285,816 | E50: 41,088.00 | F50: 244,728 | G50: 0
A51: METLIFE45777 | B51: METLIFE | C51: 2025-04-30 | D51: 418,444 | E51: 35,878.00 | F51: 382,566 | G51: 20,000
A52: METLIFE45808 | B52: METLIFE | C52: 2025-05-31 | D52: 418,444 | E52: 35,878.00 | F52: 382,566 | G52: 27,138
A53: METLIFE45838 | B53: METLIFE | C53: 2025-06-30 | D53: 418,444 | E53: 35,878.00 | F53: 382,566 | G53: 28,885
A54: PANAMERICAN VIDA45777 | B54: PANAMERICAN VIDA | C54: 2025-04-30 | D54: 73,504 | E54: 23,630.00 | F54: 49,874 | G54: 175
A55: PANAMERICAN VIDA45808 | B55: PANAMERICAN VIDA | C55: 2025-05-31 | D55: 72,780 | E55: 23,630.00 | F55: 49,150 | G55: 0
A56: PANAMERICAN VIDA45838 | B56: PANAMERICAN VIDA | C56: 2025-06-30 | D56: 72,707 | E56: 23,630.00 | F56: 49,077 | G56: 0
A57: POSITIVA45777 | B57: POSITIVA | C57: 2025-04-30 | D57: 1,129,259 | E57: 40,545.00 | F57: 1,088,714 | G57: 80,708
A58: POSITIVA45808 | B58: POSITIVA | C58: 2025-05-31 | D58: 1,129,259 | E58: 40,545.00 | F58: 1,088,714 | G58: 111,616
A59: POSITIVA45838 | B59: POSITIVA | C59: 2025-06-30 | D59: 1,129,259 | E59: 40,545.00 | F59: 1,088,714 | G59: 109,087
A60: SKANDIA45777 | B60: SKANDIA | C60: 2025-04-30 | D60: 116,047 | E60: 24,188.00 | F60: 91,859 | G60: 19,216
A61: SKANDIA45808 | B61: SKANDIA | C61: 2025-05-31 | D61: 116,047 | E61: 24,188.00 | F61: 91,859 | G61: 20,559
A62: SKANDIA45838 | B62: SKANDIA | C62: 2025-06-30 | D62: 116,047 | E62: 24,188.00 | F62: 91,859 | G62: 20,407
A63: SURAMERICANA VIDA45777 | B63: SURAMERICANA VIDA | C63: 2025-04-30 | D63: 2,557,468 | E63: 63,980.00 | F63: 2,493,488 | G63: 338,940
A64: SURAMERICANA VIDA45808 | B64: SURAMERICANA VIDA | C64: 2025-05-31 | D64: 2,557,496 | E64: 63,980.00 | F64: 2,493,516 | G64: 393,280
A65: SURAMERICANA VIDA45838 | B65: SURAMERICANA VIDA | C65: 2025-06-30 | D65: 2,557,680 | E65: 63,980.00 | F65: 2,493,700 | G65: 453,351
A66: COMPAÑÍAS45777 | B66: COMPAÑÍAS | C66: 2025-04-30 | D66: 13,883,212 | E66: 714,247.00 | F66: 13,168,965 | G66: 1,261,547
A67: COMPAÑÍAS45808 | B67: COMPAÑÍAS | C67: 2025-05-31 | D67: 13,895,082 | E67: 714,247.00 | F67: 13,180,835 | G67: 1,656,933
A68: COMPAÑÍAS45838 | B68: COMPAÑÍAS | C68: 2025-06-30 | D68: 13,880,026 | E68: 717,174.00 | F68: 13,162,852 | G68: 1,749,168

Sheet CM_VID
B1: COMPAÑÍAS DE SEGUROS DE VIDA
C2: CAPITALES MÍNIMOS
C3: 2025-06-30
C4: CIFRAS EN MILLONES DE PESOS
A5: COMPAÑÍAS | B5: Valor
B6: Capital Mínimo Acreditado | C6: Capital Mínimo Requerido | D6: Exceso o defecto | E6: Resultados del Ejecicio
A7: ALFA VIDA | B7: =+IFERROR(VLOOKUP($A7&$C$3,BaseCM_VID!$A$3:$I$913,4,0),"N.A.") -> 2,131,799 | C7: =+IFERROR(VLOOKUP($A7&$C$3,BaseCM_VID!$A$3:$I$913,5,0),"N.A.") -> 38,220 | D7: =+IFERROR(VLOOKUP($A7&$C$3,BaseCM_VID!$A$3:$I$913,6,0),"N.A.") -> 2,093,579 | E7: =+IFERROR(VLOOKUP($A7&$C$3,BaseCM_VID!$A$3:$I$913,7,0),"N.A.") -> 268,721
A8: ALLIANZ VIDA | B8: =+IFERROR(VLOOKUP($A8&$C$3,BaseCM_VID!$A$3:$I$913,4,0),"N.A.") -> 284,029 | C8: =+IFERROR(VLOOKUP($A8&$C$3,BaseCM_VID!$A$3:$I$913,5,0),"N.A.") -> 43,472 | D8: =+IFERROR(VLOOKUP($A8&$C$3,BaseCM_VID!$A$3:$I$913,6,0),"N.A.") -> 240,557 | E8: =+IFERROR(VLOOKUP($A8&$C$3,BaseCM_VID!$A$3:$I$913,7,0),"N.A.") -> 46,341
A9: ANDINA | B9: =+IFERROR(VLOOKUP($A9&$C$3,BaseCM_VID!$A$3:$I$913,4,0),"N.A.") -> 73,489 | C9: =+IFERROR(VLOOKUP($A9&$C$3,BaseCM_VID!$A$3:$I$913,5,0),"N.A.") -> 25,932 | D9: =+IFERROR(VLOOKUP($A9&$C$3,BaseCM_VID!$A$3:$I$913,6,0),"N.A.") -> 47,557 | E9: =+IFERROR(VLOOKUP($A9&$C$3,BaseCM_VID!$A$3:$I$913,7,0),"N.A.") -> 7,379
A10: ASULADO | B10: =+IFERROR(VLOOKUP($A10&$C$3,BaseCM_VID!$A$3:$I$913,4,0),"N.A.") -> 1,099,860 | C10: =+IFERROR(VLOOKUP($A10&$C$3,BaseCM_VID!$A$3:$I$913,5,0),"N.A.") -> 25,932 | D10: =+IFERROR(VLOOKUP($A10&$C$3,BaseCM_VID!$A$3:$I$913,6,0),"N.A.") -> 1,073,928 | E10: =+IFERROR(VLOOKUP($A10&$C$3,BaseCM_VID!$A$3:$I$913,7,0),"N.A.") -> 112,588
A11: AURORA VIDA | B11: =+IFERROR(VLOOKUP($A11&$C$3,BaseCM_VID!$A$3:$I$913,4,0),"N.A.") -> 29,145 | C11: =+IFERROR(VLOOKUP($A11&$C$3,BaseCM_VID!$A$3:$I$913,5,0),"N.A.") -> 28,297 | D11: =+IFERROR(VLOOKUP($A11&$C$3,BaseCM_VID!$A$3:$I$913,6,0),"N.A.") -> 848 | E11: =+IFERROR(VLOOKUP($A11&$C$3,BaseCM_VID!$A$3:$I$913,7,0),"N.A.") -> 0
A12: AXA COLPATRIA VIDA | B12: =+IFERROR(VLOOKUP($A12&$C$3,BaseCM_VID!$A$3:$I$913,4,0),"N.A.") -> 996,324 | C12: =+IFERROR(VLOOKUP($A12&$C$3,BaseCM_VID!$A$3:$I$913,5,0),"N.A.") -> 46,340 | D12: =+IFERROR(VLOOKUP($A12&$C$3,BaseCM_VID!$A$3:$I$913,6,0),"N.A.") -> 949,984 | E12: =+IFERROR(VLOOKUP($A12&$C$3,BaseCM_VID!$A$3:$I$913,7,0),"N.A.") -> 167,879
A13: BBVA SEGUROS VIDA | B13: =+IFERROR(VLOOKUP($A13&$C$3,BaseCM_VID!$A$3:$I$913,4,0),"N.A.") -> 682,602 | C13: =+IFERROR(VLOOKUP($A13&$C$3,BaseCM_VID!$A$3:$I$913,5,0),"N.A.") -> 38,805 | D13: =+IFERROR(VLOOKUP($A13&$C$3,BaseCM_VID!$A$3:$I$913,6,0),"N.A.") -> 643,797 | E13: =+IFERROR(VLOOKUP($A13&$C$3,BaseCM_VID!$A$3:$I$913,7,0),"N.A.") -> 108,638
A14: BMI COLOMBIA | B14: =+IFERROR(VLOOKUP($A14&$C$3,BaseCM_VID!$A$3:$I$913,4,0),"N.A.") -> 27,608 | C14: =+IFERROR(VLOOKUP($A14&$C$3,BaseCM_VID!$A$3:$I$913,5,0),"N.A.") -> 23,630 | D14: =+IFERROR(VLOOKUP($A14&$C$3,BaseCM_VID!$A$3:$I$913,6,0),"N.A.") -> 3,978 | E14: =+IFERROR(VLOOKUP($A14&$C$3,BaseCM_VID!$A$3:$I$913,7,0),"N.A.") -> 3,255
A15: BOLIVAR VIDA | B15: =+IFERROR(VLOOKUP($A15&$C$3,BaseCM_VID!$A$3:$I$913,4,0),"N.A.") -> 3,148,847 | C15: =+IFERROR(VLOOKUP($A15&$C$3,BaseCM_VID!$A$3:$I$913,5,0),"N.A.") -> 43,472 | D15: =+IFERROR(VLOOKUP($A15&$C$3,BaseCM_VID!$A$3:$I$913,6,0),"N.A.") -> 3,105,375 | E15: =+IFERROR(VLOOKUP($A15&$C$3,BaseCM_VID!$A$3:$I$913,7,0),"N.A.") -> 247,767
A16: COLMENA ARL | B16: =+IFERROR(VLOOKUP($A16&$C$3,BaseCM_VID!$A$3:$I$913,4,0),"N.A.") -> 185,514 | C16: =+IFERROR(VLOOKUP($A16&$C$3,BaseCM_VID!$A$3:$I$913,5,0),"N.A.") -> 20,676 | D16: =+IFERROR(VLOOKUP($A16&$C$3,BaseCM_VID!$A$3:$I$913,6,0),"N.A.") -> 164,838 | E16: =+IFERROR(VLOOKUP($A16&$C$3,BaseCM_VID!$A$3:$I$913,7,0),"N.A.") -> 141,684
A17: COLMENA VIDA | B17: =+IFERROR(VLOOKUP($A17&$C$3,BaseCM_VID!$A$3:$I$913,4,0),"N.A.") -> 143,229 | C17: =+IFERROR(VLOOKUP($A17&$C$3,BaseCM_VID!$A$3:$I$913,5,0),"N.A.") -> 23,630 | D17: =+IFERROR(VLOOKUP($A17&$C$3,BaseCM_VID!$A$3:$I$913,6,0),"N.A.") -> 119,599 | E17: =+IFERROR(VLOOKUP($A17&$C$3,BaseCM_VID!$A$3:$I$913,7,0),"N.A.") -> 15,968
A18: COLSANITAS | B18: =+IFERROR(VLOOKUP($A18&$C$3,BaseCM_VID!$A$3:$I$913,4,0),"N.A.") -> 46,163 | C18: =+IFERROR(VLOOKUP($A18&$C$3,BaseCM_VID!$A$3:$I$913,5,0),"N.A.") -> 28,297 | D18: =+IFERROR(VLOOKUP($A18&$C$3,BaseCM_VID!$A$3:$I$913,6,0),"N.A.") -> 17,866 | E18: =+IFERROR(VLOOKUP($A18&$C$3,BaseCM_VID!$A$3:$I$913,7,0),"N.A.") -> 0
A19: EQUIDAD VIDA | B19: =+IFERROR(VLOOKUP($A19&$C$3,BaseCM_VID!$A$3:$I$913,4,0),"N.A.") -> 72,300 | C19: =+IFERROR(VLOOKUP($A19&$C$3,BaseCM_VID!$A$3:$I$913,5,0),"N.A.") -> 34,092 | D19: =+IFERROR(VLOOKUP($A19&$C$3,BaseCM_VID!$A$3:$I$913,6,0),"N.A.") -> 38,208 | E19: =+IFERROR(VLOOKUP($A19&$C$3,BaseCM_VID!$A$3:$I$913,7,0),"N.A.") -> 0
A20: ESTADO VIDA | B20: =+IFERROR(VLOOKUP($A20&$C$3,BaseCM_VID!$A$3:$I$913,4,0),"N.A.") -> 36,148 | C20: =+IFERROR(VLOOKUP($A20&$C$3,BaseCM_VID!$A$3:$I$913,5,0),"N.A.") -> 23,630 | D20: =+IFERROR(VLOOKUP($A20&$C$3,BaseCM_VID!$A$3:$I$913,6,0),"N.A.") -> 12,518 | E20: =+IFERROR(VLOOKUP($A20&$C$3,BaseCM_VID!$A$3:$I$913,7,0),"N.A.") -> 7,560
A21: GLOBAL | B21: =+IFERROR(VLOOKUP($A21&$C$3,BaseCM_VID!$A$3:$I$913,4,0),"N.A.") -> 343,014 | C21: =+IFERROR(VLOOKUP($A21&$C$3,BaseCM_VID!$A$3:$I$913,5,0),"N.A.") -> 43,440 | D21: =+IFERROR(VLOOKUP($A21&$C$3,BaseCM_VID!$A$3:$I$913,6,0),"N.A.") -> 299,574 | E21: =+IFERROR(VLOOKUP($A21&$C$3,BaseCM_VID!$A$3:$I$913,7,0),"N.A.") -> 9,657
A22: MAPFRE VIDA | B22: =+IFERROR(VLOOKUP($A22&$C$3,BaseCM_VID!$A$3:$I$913,4,0),"N.A.") -> 285,816 | C22: =+IFERROR(VLOOKUP($A22&$C$3,BaseCM_VID!$A$3:$I$913,5,0),"N.A.") -> 41,088 | D22: =+IFERROR(VLOOKUP($A22&$C$3,BaseCM_VID!$A$3:$I$913,6,0),"N.A.") -> 244,728 | E22: =+IFERROR(VLOOKUP($A22&$C$3,BaseCM_VID!$A$3:$I$913,7,0),"N.A.") -> 0
A23: METLIFE | B23: =+IFERROR(VLOOKUP($A23&$C$3,BaseCM_VID!$A$3:$I$913,4,0),"N.A.") -> 418,444 | C23: =+IFERROR(VLOOKUP($A23&$C$3,BaseCM_VID!$A$3:$I$913,5,0),"N.A.") -> 35,878 | D23: =+IFERROR(VLOOKUP($A23&$C$3,BaseCM_VID!$A$3:$I$913,6,0),"N.A.") -> 382,566 | E23: =+IFERROR(VLOOKUP($A23&$C$3,BaseCM_VID!$A$3:$I$913,7,0),"N.A.") -> 28,885
A24: PANAMERICAN VIDA | B24: =+IFERROR(VLOOKUP($A24&$C$3,BaseCM_VID!$A$3:$I$913,4,0),"N.A.") -> 72,707 | C24: =+IFERROR(VLOOKUP($A24&$C$3,BaseCM_VID!$A$3:$I$913,5,0),"N.A.") -> 23,630 | D24: =+IFERROR(VLOOKUP($A24&$C$3,BaseCM_VID!$A$3:$I$913,6,0),"N.A.") -> 49,077 | E24: =+IFERROR(VLOOKUP($A24&$C$3,BaseCM_VID!$A$3:$I$913,7,0),"N.A.") -> 0
A25: POSITIVA | B25: =+IFERROR(VLOOKUP($A25&$C$3,BaseCM_VID!$A$3:$I$913,4,0),"N.A.") -> 1,129,259 | C25: =+IFERROR(VLOOKUP($A25&$C$3,BaseCM_VID!$A$3:$I$913,5,0),"N.A.") -> 40,545 | D25: =+IFERROR(VLOOKUP($A25&$C$3,BaseCM_VID!$A$3:$I$913,6,0),"N.A.") -> 1,088,714 | E25: =+IFERROR(VLOOKUP($A25&$C$3,BaseCM_VID!$A$3:$I$913,7,0),"N.A.") -> 109,087
A26: SKANDIA | B26: =+IFERROR(VLOOKUP($A26&$C$3,BaseCM_VID!$A$3:$I$913,4,0),"N.A.") -> 116,047 | C26: =+IFERROR(VLOOKUP($A26&$C$3,BaseCM_VID!$A$3:$I$913,5,0),"N.A.") -> 24,188 | D26: =+IFERROR(VLOOKUP($A26&$C$3,BaseCM_VID!$A$3:$I$913,6,0),"N.A.") -> 91,859 | E26: =+IFERROR(VLOOKUP($A26&$C$3,BaseCM_VID!$A$3:$I$913,7,0),"N.A.") -> 20,407
A27: SURAMERICANA VIDA | B27: =+IFERROR(VLOOKUP($A27&$C$3,BaseCM_VID!$A$3:$I$913,4,0),"N.A.") -> 2,557,680 | C27: =+IFERROR(VLOOKUP($A27&$C$3,BaseCM_VID!$A$3:$I$913,5,0),"N.A.") -> 63,980 | D27: =+IFERROR(VLOOKUP($A27&$C$3,BaseCM_VID!$A$3:$I$913,6,0),"N.A.") -> 2,493,700 | E27: =+IFERROR(VLOOKUP($A27&$C$3,BaseCM_VID!$A$3:$I$913,7,0),"N.A.") -> 453,351
